{"text_format":"1","workbook":"xlsx","n_sheets":6,"sheets":["編集用","編集用-2","編集用-3","お客様用_メッセージ表","見本・説明","標準電子音検索"],"not_rendered":{"charts":0,"images":6,"macros":1,"external_links":0,"defined_names":1,"comments":0,"pivot_tables":0},"unopened":[],"bounds":{"document_bytes":16777216,"sheet_cells":100000,"rows_first":2000,"rows_last":500,"rows_between":2000,"halvings":0,"cell_chars":16384,"cell_head_chars":4096},"cells_cut":0,"cells_raw":0,"read":"whole","date_system":"1900"}

{"sheet":"編集用","index":0,"n_rows":0,"n_cols":0,"rows_kept":0,"cut":false,"hidden":true,"merged":[]}

{"sheet":"編集用-2","index":1,"n_rows":0,"n_cols":0,"rows_kept":0,"cut":false,"hidden":true,"merged":[]}

{"sheet":"編集用-3","index":2,"n_rows":25,"n_cols":28,"rows_kept":25,"cut":false,"hidden":true,"merged":[[9,28,10,39],[10,4,10,25],[0,0,0,11],[0,23,0,25],[1,2,1,8],[1,11,1,25],[2,2,2,8],[2,11,6,25],[3,2,3,6],[4,2,4,3],[4,4,4,5],[4,7,4,8],[5,3,5,5],[5,7,5,8],[6,1,6,9],[9,1,10,1],[11,26,12,26],[12,4,12,25],[7,23,7,24],[8,3,8,25],[9,26,10,26],[9,2,10,2],[9,4,9,25],[15,1,16,1],[15,2,16,2],[15,4,15,25],[11,1,12,1],[11,2,12,2],[11,4,11,25],[15,26,16,26],[16,4,16,25],[13,1,14,1],[13,2,14,2],[13,4,13,25],[13,26,14,26],[14,4,14,25],[17,1,18,1],[17,26,18,26],[19,1,20,1],[19,2,20,2],[19,26,20,26],[21,1,22,1],[21,2,22,2],[21,26,22,26],[23,1,24,1],[23,2,24,2],[23,26,24,26]]}
["音声合成報知器　メッセージ表",null,null,null,null,null,null,null,null,null,null,null,null,null,null,null,null,null,null,null,null,null,"記入日：","年　　月　　日"]
[null,"会社名","株式会社パトライト",null,null,null,null,null,null,null,null,"【特記事項】登録内容について何かございましたらこちらでご記入ください。　"]
[null,"ご担当者","羽戸　雷人",null,null,null,null,null,null,null,null,null,null,null,null,null,null,null,null,null,null,null,null,null,null,null,null,"日本語"]
[null,"製品型式　","EHV-M2HFM",null,null,null,null,"数量",1,null,null,null,null,null,null,null,null,null,null,null,null,null,null,null,null,null,null,"英語（アメリカ）"]
[null,"言語","その他言語はこちら　➡",null,"****",null,"アナウンサ","女性",null,null,null,null,null,null,null,null,null,null,null,null,null,null,null,null,null,null,null,"英語（イギリス）"]
[null,"受注情報\n(ﾊﾟﾄﾗｲﾄ記入欄)","受注№",null,null,null,"手配№",null,null,null,null,null,null,null,null,null,null,null,null,null,null,null,null,null,null,null,null,"中国語（北京）"]
[null,"　",null,null,null,null,null,null,null,null,null,null,null,null,null,null,null,null,null,null,null,null,null,null,null,null,null,"中国語（台湾）"]
[null,null,null,null,null,null,null,null,null,null,null,null,null,null,null,null,null,null,null,null,null,"合計CH",null,"新規録音合計秒数\n※参考値となります",null,null,null,"その他言語はこちら　➡"]
[null,"CH","指定\n音声番号","メッセージ詳細",null,null,null,null,null,null,null,null,null,null,null,null,null,null,null,null,null,null,null,null,null,null,null,"女性"]
[null,1,"EK+00557","フリカナ","クルマガデマス。ゴイチュウイクダサイ。",null,null,null,null,null,null,null,null,null,null,null,null,null,null,null,null,null,null,null,null,null,{"$f":"IF(AND(C10=\"\",LEN(E10)>0),LEN(E10),\"\")","v":""},"男性"]
[null,null,null,"音声内容","車が出ます。ご注意ください。"]
[null,2,null,"フリカナ","キケンデス。キケンデス。",null,null,null,null,null,null,null,null,null,null,null,null,null,null,null,null,null,null,null,null,null,{"$f":"IF(AND(C12=\"\",LEN(E12)>0),LEN(E12),\"\")","v":12}]
[null,null,null,"音声内容","＃危険です。＃危険です。"]
[null,3,"OYH00001","フリカナ",null,null,null,null,null,null,null,null,null,null,null,null,null,null,null,null,null,null,null,null,null,null,{"$f":"IF(AND(C14=\"\",LEN(E14)>0),LEN(E14),\"\")","v":""}]
[null,null,null,"音声内容","ブー（１．５秒＋空白１．５秒）　"]
[null,4,"OYH00001","フリカナ",null,null,null,null,null,null,null,null,null,null,null,null,null,null,null,null,null,null,null,null,null,null,{"$f":"IF(AND(C16=\"\",LEN(E16)>0),LEN(E16),\"\")","v":""}]
[null,null,null,"音声内容","ブー（１．５秒＋空白１．５秒）　"]
[null,5,"OYH00001","フリカナ",null,null,null,null,null,null,null,null,null,null,null,null,null,null,null,null,null,null,null,null,null,null,{"$f":"IF(AND(C18=\"\",LEN(E18)>0),LEN(E18),\"\")","v":""}]
[null,null,null,"音声内容","ブー（１．５秒＋空白１．５秒）　２回"]
[null,6,"EK+00193\nEK+02797","フリカナ",null,null,null,null,null,null,null,null,null,null,null,null,null,null,null,null,null,null,null,null,null,null,{"$f":"IF(AND(C20=\"\",LEN(E20)>0),LEN(E20),\"\")","v":""}]
[null,null,null,"音声内容","エラーが発生しました。一時停止中です"]
[null,7,"OYH00002\nEK+00792\nOYH00002","フリカナ",null,null,null,null,null,null,null,null,null,null,null,null,null,null,null,null,null,null,null,null,null,null,{"$f":"IF(AND(C22=\"\",LEN(E22)>0),LEN(E22),\"\")","v":""}]
[null,null,null,"音声内容","プルル（１．２秒）ご注意ください。プルル（１．２秒）"]
[null,8,"OYH00002\nEK+00792\nOYH00002","フリカナ",null,null,null,null,null,null,null,null,null,null,null,null,null,null,null,null,null,null,null,null,null,null,{"$f":"IF(AND(C24=\"\",LEN(E24)>0),LEN(E24),\"\")","v":""}]
[null,null,null,"音声内容","プルル（１．２秒）２回　ご注意ください。プルル（１．２秒）３回"]

{"sheet":"お客様用_メッセージ表","index":3,"n_rows":1033,"n_cols":28,"rows_kept":1033,"cut":false,"hidden":false,"merged":[[1031,1,1032,1],[1031,2,1032,2],[1031,4,1031,25],[1032,4,1032,25],[1021,1,1022,1],[1021,2,1022,2],[1021,4,1021,25],[1022,4,1022,25],[1023,1,1024,1],[1023,2,1024,2],[1023,4,1023,25],[1024,4,1024,25],[1025,1,1026,1],[1025,2,1026,2],[1025,4,1025,25],[1026,4,1026,25],[1027,1,1028,1],[1027,2,1028,2],[1027,4,1027,25],[1028,4,1028,25],[1029,1,1030,1],[1029,2,1030,2],[1029,4,1029,25],[1030,4,1030,25],[1011,1,1012,1],[1011,2,1012,2],[1011,4,1011,25],[1012,4,1012,25],[1013,1,1014,1],[1013,2,1014,2],[1013,4,1013,25],[1014,4,1014,25],[1015,1,1016,1],[1015,2,1016,2],[1015,4,1015,25],[1016,4,1016,25],[1017,1,1018,1],[1017,2,1018,2],[1017,4,1017,25],[1018,4,1018,25],[1019,1,1020,1],[1019,2,1020,2],[1019,4,1019,25],[1020,4,1020,25],[1001,1,1002,1],[1001,2,1002,2],[1001,4,1001,25],[1002,4,1002,25],[1003,1,1004,1],[1003,2,1004,2],[1003,4,1003,25],[1004,4,1004,25],[1005,1,1006,1],[1005,2,1006,2],[1005,4,1005,25],[1006,4,1006,25],[1007,1,1008,1],[1007,2,1008,2],[1007,4,1007,25],[1008,4,1008,25],[1009,1,1010,1],[1009,2,1010,2],[1009,4,1009,25],[1010,4,1010,25],[991,1,992,1],[991,2,992,2],[991,4,991,25],[992,4,992,25],[993,1,994,1],[993,2,994,2],[993,4,993,25],[994,4,994,25],[995,1,996,1],[995,2,996,2],[995,4,995,25],[996,4,996,25],[997,1,998,1],[997,2,998,2],[997,4,997,25],[998,4,998,25],[999,1,1000,1],[999,2,1000,2],[999,4,999,25],[1000,4,1000,25],[981,1,982,1],[981,2,982,2],[981,4,981,25],[982,4,982,25],[983,1,984,1],[983,2,984,2],[983,4,983,25],[984,4,984,25],[985,1,986,1],[985,2,986,2],[985,4,985,25],[986,4,986,25],[987,1,988,1],[987,2,988,2],[987,4,987,25],[988,4,988,25],[989,1,990,1],[989,2,990,2],[989,4,989,25],[990,4,990,25],[971,1,972,1],[971,2,972,2],[971,4,971,25],[972,4,972,25],[973,1,974,1],[973,2,974,2],[973,4,973,25],[974,4,974,25],[975,1,976,1],[975,2,976,2],[975,4,975,25],[976,4,976,25],[977,1,978,1],[977,2,978,2],[977,4,977,25],[978,4,978,25],[979,1,980,1],[979,2,980,2],[979,4,979,25],[980,4,980,25],[961,1,962,1],[961,2,962,2],[961,4,961,25],[962,4,962,25],[963,1,964,1],[963,2,964,2],[963,4,963,25],[964,4,964,25],[965,1,966,1],[965,2,966,2],[965,4,965,25],[966,4,966,25],[967,1,968,1],[967,2,968,2],[967,4,967,25],[968,4,968,25],[969,1,970,1],[969,2,970,2],[969,4,969,25],[970,4,970,25],[951,1,952,1],[951,2,952,2],[951,4,951,25],[952,4,952,25],[953,1,954,1],[953,2,954,2],[953,4,953,25],[954,4,954,25],[955,1,956,1],[955,2,956,2],[955,4,955,25],[956,4,956,25],[957,1,958,1],[957,2,958,2],[957,4,957,25],[958,4,958,25],[959,1,960,1],[959,2,960,2],[959,4,959,25],[960,4,960,25],[941,1,942,1],[941,2,942,2],[941,4,941,25],[942,4,942,25],[943,1,944,1],[943,2,944,2],[943,4,943,25],[944,4,944,25],[945,1,946,1],[945,2,946,2],[945,4,945,25],[946,4,946,25],[947,1,948,1],[947,2,948,2],[947,4,947,25],[948,4,948,25],[949,1,950,1],[949,2,950,2],[949,4,949,25],[950,4,950,25],[931,1,932,1],[931,2,932,2],[931,4,931,25],[932,4,932,25],[933,1,934,1],[933,2,934,2],[933,4,933,25],[934,4,934,25],[935,1,936,1],[935,2,936,2],[935,4,935,25],[936,4,936,25],[937,1,938,1],[937,2,938,2],[937,4,937,25],[938,4,938,25],[939,1,940,1],[939,2,940,2],[939,4,939,25],[940,4,940,25],[921,1,922,1],[921,2,922,2],[921,4,921,25],[922,4,922,25],[923,1,924,1],[923,2,924,2],[923,4,923,25],[924,4,924,25],[925,1,926,1],[925,2,926,2],[925,4,925,25],[926,4,926,25],[927,1,928,1],[927,2,928,2],[927,4,927,25],[928,4,928,25],[929,1,930,1],[929,2,930,2],[929,4,929,25],[930,4,930,25],[911,1,912,1],[911,2,912,2],[911,4,911,25],[912,4,912,25],[913,1,914,1],[913,2,914,2],[913,4,913,25],[914,4,914,25],[915,1,916,1],[915,2,916,2],[915,4,915,25],[916,4,916,25],[917,1,918,1],[917,2,918,2],[917,4,917,25],[918,4,918,25],[919,1,920,1],[919,2,920,2],[919,4,919,25],[920,4,920,25],[901,1,902,1],[901,2,902,2],[901,4,901,25],[902,4,902,25],[903,1,904,1],[903,2,904,2],[903,4,903,25],[904,4,904,25],[905,1,906,1],[905,2,906,2],[905,4,905,25],[906,4,906,25],[907,1,908,1],[907,2,908,2],[907,4,907,25],[908,4,908,25],[909,1,910,1],[909,2,910,2],[909,4,909,25],[910,4,910,25],[891,1,892,1],[891,2,892,2],[891,4,891,25],[892,4,892,25],[893,1,894,1],[893,2,894,2],[893,4,893,25],[894,4,894,25],[895,1,896,1],[895,2,896,2],[895,4,895,25],[896,4,896,25],[897,1,898,1],[897,2,898,2],[897,4,897,25],[898,4,898,25],[899,1,900,1],[899,2,900,2],[899,4,899,25],[900,4,900,25],[881,1,882,1],[881,2,882,2],[881,4,881,25],[882,4,882,25],[883,1,884,1],[883,2,884,2],[883,4,883,25],[884,4,884,25],[885,1,886,1],[885,2,886,2],[885,4,885,25],[886,4,886,25],[887,1,888,1],[887,2,888,2],[887,4,887,25],[888,4,888,25],[889,1,890,1],[889,2,890,2],[889,4,889,25],[890,4,890,25],[871,1,872,1],[871,2,872,2],[871,4,871,25],[872,4,872,25],[873,1,874,1],[873,2,874,2],[873,4,873,25],[874,4,874,25],[875,1,876,1],[875,2,876,2],[875,4,875,25],[876,4,876,25],[877,1,878,1],[877,2,878,2],[877,4,877,25],[878,4,878,25],[879,1,880,1],[879,2,880,2],[879,4,879,25],[880,4,880,25],[861,1,862,1],[861,2,862,2],[861,4,861,25],[862,4,862,25],[863,1,864,1],[863,2,864,2],[863,4,863,25],[864,4,864,25],[865,1,866,1],[865,2,866,2],[865,4,865,25],[866,4,866,25],[867,1,868,1],[867,2,868,2],[867,4,867,25],[868,4,868,25],[869,1,870,1],[869,2,870,2],[869,4,869,25],[870,4,870,25],[851,1,852,1],[851,2,852,2],[851,4,851,25],[852,4,852,25],[853,1,854,1],[853,2,854,2],[853,4,853,25],[854,4,854,25],[855,1,856,1],[855,2,856,2],[855,4,855,25],[856,4,856,25],[857,1,858,1],[857,2,858,2],[857,4,857,25],[858,4,858,25],[859,1,860,1],[859,2,860,2],[859,4,859,25],[860,4,860,25],[841,1,842,1],[841,2,842,2],[841,4,841,25],[842,4,842,25],[843,1,844,1],[843,2,844,2],[843,4,843,25],[844,4,844,25],[845,1,846,1],[845,2,846,2],[845,4,845,25],[846,4,846,25],[847,1,848,1],[847,2,848,2],[847,4,847,25],[848,4,848,25],[849,1,850,1],[849,2,850,2],[849,4,849,25],[850,4,850,25],[831,1,832,1],[831,2,832,2],[831,4,831,25],[832,4,832,25],[833,1,834,1],[833,2,834,2],[833,4,833,25],[834,4,834,25],[835,1,836,1],[835,2,836,2],[835,4,835,25],[836,4,836,25],[837,1,838,1],[837,2,838,2],[837,4,837,25],[838,4,838,25],[839,1,840,1],[839,2,840,2],[839,4,839,25],[840,4,840,25],[821,1,822,1],[821,2,822,2],[821,4,821,25],[822,4,822,25],[823,1,824,1],[823,2,824,2],[823,4,823,25],[824,4,824,25],[825,1,826,1],[825,2,826,2],[825,4,825,25],[826,4,826,25],[827,1,828,1],[827,2,828,2],[827,4,827,25],[828,4,828,25],[829,1,830,1],[829,2,830,2],[829,4,829,25],[830,4,830,25],[811,1,812,1],[811,2,812,2],[811,4,811,25],[812,4,812,25],[813,1,814,1],[813,2,814,2],[813,4,813,25],[814,4,814,25],[815,1,816,1],[815,2,816,2],[815,4,815,25],[816,4,816,25],[817,1,818,1],[817,2,818,2],[817,4,817,25],[818,4,818,25],[819,1,820,1],[819,2,820,2],[819,4,819,25],[820,4,820,25],[801,1,802,1],[801,2,802,2],[801,4,801,25],[802,4,802,25],[803,1,804,1],[803,2,804,2],[803,4,803,25],[804,4,804,25],[805,1,806,1],[805,2,806,2],[805,4,805,25],[806,4,806,25],[807,1,808,1],[807,2,808,2],[807,4,807,25],[808,4,808,25],[809,1,810,1],[809,2,810,2],[809,4,809,25],[810,4,810,25],[791,1,792,1],[791,2,792,2],[791,4,791,25],[792,4,792,25],[793,1,794,1],[793,2,794,2],[793,4,793,25],[794,4,794,25],[795,1,796,1],[795,2,796,2],[795,4,795,25],[796,4,796,25],[797,1,798,1],[797,2,798,2],[797,4,797,25],[798,4,798,25],[799,1,800,1],[799,2,800,2],[799,4,799,25],[800,4,800,25],[781,1,782,1],[781,2,782,2],[781,4,781,25],[782,4,782,25],[783,1,784,1],[783,2,784,2],[783,4,783,25],[784,4,784,25],[785,1,786,1],[785,2,786,2],[785,4,785,25],[786,4,786,25],[787,1,788,1],[787,2,788,2],[787,4,787,25],[788,4,788,25],[789,1,790,1],[789,2,790,2],[789,4,789,25],[790,4,790,25],[771,1,772,1],[771,2,772,2],[771,4,771,25],[772,4,772,25],[773,1,774,1],[773,2,774,2],[773,4,773,25],[774,4,774,25],[775,1,776,1],[775,2,776,2],[775,4,775,25],[776,4,776,25],[777,1,778,1],[777,2,778,2],[777,4,777,25],[778,4,778,25],[779,1,780,1],[779,2,780,2],[779,4,779,25],[780,4,780,25],[761,1,762,1],[761,2,762,2],[761,4,761,25],[762,4,762,25],[763,1,764,1],[763,2,764,2],[763,4,763,25],[764,4,764,25],[765,1,766,1],[765,2,766,2],[765,4,765,25],[766,4,766,25],[767,1,768,1],[767,2,768,2],[767,4,767,25],[768,4,768,25],[769,1,770,1],[769,2,770,2],[769,4,769,25],[770,4,770,25],[751,1,752,1],[751,2,752,2],[751,4,751,25],[752,4,752,25],[753,1,754,1],[753,2,754,2],[753,4,753,25],[754,4,754,25],[755,1,756,1],[755,2,756,2],[755,4,755,25],[756,4,756,25],[757,1,758,1],[757,2,758,2],[757,4,757,25],[758,4,758,25],[759,1,760,1],[759,2,760,2],[759,4,759,25],[760,4,760,25],[741,1,742,1],[741,2,742,2],[741,4,741,25],[742,4,742,25],[743,1,744,1],[743,2,744,2],[743,4,743,25],[744,4,744,25],[745,1,746,1],[745,2,746,2],[745,4,745,25],[746,4,746,25],[747,1,748,1],[747,2,748,2],[747,4,747,25],[748,4,748,25],[749,1,750,1],[749,2,750,2],[749,4,749,25],[750,4,750,25],[731,1,732,1],[731,2,732,2],[731,4,731,25],[732,4,732,25],[733,1,734,1],[733,2,734,2],[733,4,733,25],[734,4,734,25],[735,1,736,1],[735,2,736,2],[735,4,735,25],[736,4,736,25],[737,1,738,1],[737,2,738,2],[737,4,737,25],[738,4,738,25],[739,1,740,1],[739,2,740,2],[739,4,739,25],[740,4,740,25],[721,1,722,1],[721,2,722,2],[721,4,721,25],[722,4,722,25],[723,1,724,1],[723,2,724,2],[723,4,723,25],[724,4,724,25],[725,1,726,1],[725,2,726,2],[725,4,725,25],[726,4,726,25],[727,1,728,1],[727,2,728,2],[727,4,727,25],[728,4,728,25],[729,1,730,1],[729,2,730,2],[729,4,729,25],[730,4,730,25],[711,1,712,1],[711,2,712,2],[711,4,711,25],[712,4,712,25],[713,1,714,1],[713,2,714,2],[713,4,713,25],[714,4,714,25],[715,1,716,1],[715,2,716,2],[715,4,715,25],[716,4,716,25],[717,1,718,1],[717,2,718,2],[717,4,717,25],[718,4,718,25],[719,1,720,1],[719,2,720,2],[719,4,719,25],[720,4,720,25],[701,1,702,1],[701,2,702,2],[701,4,701,25],[702,4,702,25],[703,1,704,1],[703,2,704,2],[703,4,703,25],[704,4,704,25],[705,1,706,1],[705,2,706,2],[705,4,705,25],[706,4,706,25],[707,1,708,1],[707,2,708,2],[707,4,707,25],[708,4,708,25],[709,1,710,1],[709,2,710,2],[709,4,709,25],[710,4,710,25],[691,1,692,1],[691,2,692,2],[691,4,691,25],[692,4,692,25],[693,1,694,1],[693,2,694,2],[693,4,693,25],[694,4,694,25],[695,1,696,1],[695,2,696,2],[695,4,695,25],[696,4,696,25],[697,1,698,1],[697,2,698,2],[697,4,697,25],[698,4,698,25],[699,1,700,1],[699,2,700,2],[699,4,699,25],[700,4,700,25],[681,1,682,1],[681,2,682,2],[681,4,681,25],[682,4,682,25],[683,1,684,1],[683,2,684,2],[683,4,683,25],[684,4,684,25],[685,1,686,1],[685,2,686,2],[685,4,685,25],[686,4,686,25],[687,1,688,1],[687,2,688,2],[687,4,687,25],[688,4,688,25],[689,1,690,1],[689,2,690,2],[689,4,689,25],[690,4,690,25],[671,1,672,1],[671,2,672,2],[671,4,671,25],[672,4,672,25],[673,1,674,1],[673,2,674,2],[673,4,673,25],[674,4,674,25],[675,1,676,1],[675,2,676,2],[675,4,675,25],[676,4,676,25],[677,1,678,1],[677,2,678,2],[677,4,677,25],[678,4,678,25],[679,1,680,1],[679,2,680,2],[679,4,679,25],[680,4,680,25],[661,1,662,1],[661,2,662,2],[661,4,661,25],[662,4,662,25],[663,1,664,1],[663,2,664,2],[663,4,663,25],[664,4,664,25],[665,1,666,1],[665,2,666,2],[665,4,665,25],[666,4,666,25],[667,1,668,1],[667,2,668,2],[667,4,667,25],[668,4,668,25],[669,1,670,1],[669,2,670,2],[669,4,669,25],[670,4,670,25],[651,1,652,1],[651,2,652,2],[651,4,651,25],[652,4,652,25],[653,1,654,1],[653,2,654,2],[653,4,653,25],[654,4,654,25],[655,1,656,1],[655,2,656,2],[655,4,655,25],[656,4,656,25],[657,1,658,1],[657,2,658,2],[657,4,657,25],[658,4,658,25],[659,1,660,1],[659,2,660,2],[659,4,659,25],[660,4,660,25],[641,1,642,1],[641,2,642,2],[641,4,641,25],[642,4,642,25],[643,1,644,1],[643,2,644,2],[643,4,643,25],[644,4,644,25],[645,1,646,1],[645,2,646,2],[645,4,645,25],[646,4,646,25],[647,1,648,1],[647,2,648,2],[647,4,647,25],[648,4,648,25],[649,1,650,1],[649,2,650,2],[649,4,649,25],[650,4,650,25],[631,1,632,1],[631,2,632,2],[631,4,631,25],[632,4,632,25],[633,1,634,1],[633,2,634,2],[633,4,633,25],[634,4,634,25],[635,1,636,1],[635,2,636,2],[635,4,635,25],[636,4,636,25],[637,1,638,1],[637,2,638,2],[637,4,637,25],[638,4,638,25],[639,1,640,1],[639,2,640,2],[639,4,639,25],[640,4,640,25],[621,1,622,1],[621,2,622,2],[621,4,621,25],[622,4,622,25],[623,1,624,1],[623,2,624,2],[623,4,623,25],[624,4,624,25],[625,1,626,1],[625,2,626,2],[625,4,625,25],[626,4,626,25],[627,1,628,1],[627,2,628,2],[627,4,627,25],[628,4,628,25],[629,1,630,1],[629,2,630,2],[629,4,629,25],[630,4,630,25],[611,1,612,1],[611,2,612,2],[611,4,611,25],[612,4,612,25],[613,1,614,1],[613,2,614,2],[613,4,613,25],[614,4,614,25],[615,1,616,1],[615,2,616,2],[615,4,615,25],[616,4,616,25],[617,1,618,1],[617,2,618,2],[617,4,617,25],[618,4,618,25],[619,1,620,1],[619,2,620,2],[619,4,619,25],[620,4,620,25],[601,1,602,1],[601,2,602,2],[601,4,601,25],[602,4,602,25],[603,1,604,1],[603,2,604,2],[603,4,603,25],[604,4,604,25],[605,1,606,1],[605,2,606,2],[605,4,605,25],[606,4,606,25],[607,1,608,1],[607,2,608,2],[607,4,607,25],[608,4,608,25],[609,1,610,1],[609,2,610,2],[609,4,609,25],[610,4,610,25],[591,1,592,1],[591,2,592,2],[591,4,591,25],[592,4,592,25],[593,1,594,1],[593,2,594,2],[593,4,593,25],[594,4,594,25],[595,1,596,1],[595,2,596,2],[595,4,595,25],[596,4,596,25],[597,1,598,1],[597,2,598,2],[597,4,597,25],[598,4,598,25],[599,1,600,1],[599,2,600,2],[599,4,599,25],[600,4,600,25],[581,1,582,1],[581,2,582,2],[581,4,581,25],[582,4,582,25],[583,1,584,1],[583,2,584,2],[583,4,583,25],[584,4,584,25],[585,1,586,1],[585,2,586,2],[585,4,585,25],[586,4,586,25],[587,1,588,1],[587,2,588,2],[587,4,587,25],[588,4,588,25],[589,1,590,1],[589,2,590,2],[589,4,589,25],[590,4,590,25],[571,1,572,1],[571,2,572,2],[571,4,571,25],[572,4,572,25],[573,1,574,1],[573,2,574,2],[573,4,573,25],[574,4,574,25],[575,1,576,1],[575,2,576,2],[575,4,575,25],[576,4,576,25],[577,1,578,1],[577,2,578,2],[577,4,577,25],[578,4,578,25],[579,1,580,1],[579,2,580,2],[579,4,579,25],[580,4,580,25],[561,1,562,1],[561,2,562,2],[561,4,561,25],[562,4,562,25],[563,1,564,1],[563,2,564,2],[563,4,563,25],[564,4,564,25],[565,1,566,1],[565,2,566,2],[565,4,565,25],[566,4,566,25],[567,1,568,1],[567,2,568,2],[567,4,567,25],[568,4,568,25],[569,1,570,1],[569,2,570,2],[569,4,569,25],[570,4,570,25],[551,1,552,1],[551,2,552,2],[551,4,551,25],[552,4,552,25],[553,1,554,1],[553,2,554,2],[553,4,553,25],[554,4,554,25],[555,1,556,1],[555,2,556,2],[555,4,555,25],[556,4,556,25],[557,1,558,1],[557,2,558,2],[557,4,557,25],[558,4,558,25],[559,1,560,1],[559,2,560,2],[559,4,559,25],[560,4,560,25],[541,1,542,1],[541,2,542,2],[541,4,541,25],[542,4,542,25],[543,1,544,1],[543,2,544,2],[543,4,543,25],[544,4,544,25],[545,1,546,1],[545,2,546,2],[545,4,545,25],[546,4,546,25],[547,1,548,1],[547,2,548,2],[547,4,547,25],[548,4,548,25],[549,1,550,1],[549,2,550,2],[549,4,549,25],[550,4,550,25],[531,1,532,1],[531,2,532,2],[531,4,531,25],[532,4,532,25],[533,1,534,1],[533,2,534,2],[533,4,533,25],[534,4,534,25],[535,1,536,1],[535,2,536,2],[535,4,535,25],[536,4,536,25],[537,1,538,1],[537,2,538,2],[537,4,537,25],[538,4,538,25]],"merged_total":2575,"flags":["merged_cut"]}
["音声合成報知器　メッセージ表",null,null,null,null,null,null,null,null,null,null,null,null,null,null,null,null,null,null,null,null,null,"記入日：","年　　　月　　日"]
[null,"会社名",null,null,null,null,null,null,null,null,null,"【特記事項】登録内容について何かございましたらこちらでご記入ください。"]
[null,"ご担当者",null,null,null,null,null,null,null,null,null,null,null,null,null,null,null,null,null,null,null,null,null,null,null,null,null,"日本語"]
[null,"製品型式　",null,null,null,null,null,"数量",null,null,null,null,null,null,null,null,null,null,null,null,null,null,null,null,null,null,null,"英語（アメリカ）"]
[null,"言語",null,null,null,null,"アナウンサ",null,null,null,null,null,null,null,null,null,null,null,null,null,null,null,null,null,null,null,null,"英語（イギリス）"]
[null,"受注情報\n(弊社記入欄)","受注№",null,null,null,"手配№",null,null,null,null,null,null,null,null,null,null,null,null,null,null,null,null,null,null,null,null,"中国語（北京）"]
[null,"　",null,null,null,null,null,null,null,null,null,null,null,null,null,null,null,null,null,null,null,null,null,null,null,null,null,"中国語（台湾）"]
[null,null,null,null,null,null,null,null,null,null,null,null,null,null,null,null,null,null,null,null,null,"合計CH",{"$f":"SUMPRODUCT((MOD(ROW(E:E),2)=1)*1,(E:E<>\"\")*1,(ROW(E:E)>10)*1)","v":0},"新規録音合計秒数\n※参考値となります",null,{"$f":"SUM(AA:AA)/5","v":0},null,"その他言語はこちら　➡"]
[null,"CH","指定音声番号","メッセージ詳細",null,null,null,null,null,null,null,null,null,null,null,null,null,null,null,null,null,null,null,null,null,null,null,"女性"]
[null,1,null,"フリガナ",null,null,null,null,null,null,null,null,null,null,null,null,null,null,null,null,null,null,null,null,null,null,{"$f":"IF(AND(C10=\"\",LEN(E10)>0),LEN(E10),\"\")","v":""},"男性"]
[null,null,null,"音声内容"]
[null,2,null,"フリガナ",null,null,null,null,null,null,null,null,null,null,null,null,null,null,null,null,null,null,null,null,null,null,{"$f":"IF(AND(C12=\"\",LEN(E12)>0),LEN(E12),\"\")","v":""}]
[null,null,null,"音声内容"]
[null,3,null,"フリガナ",null,null,null,null,null,null,null,null,null,null,null,null,null,null,null,null,null,null,null,null,null,null,{"$f":"IF(AND(C14=\"\",LEN(E14)>0),LEN(E14),\"\")","v":""}]
[null,null,null,"音声内容"]
[null,4,null,"フリガナ",null,null,null,null,null,null,null,null,null,null,null,null,null,null,null,null,null,null,null,null,null,null,{"$f":"IF(AND(C16=\"\",LEN(E16)>0),LEN(E16),\"\")","v":""}]
[null,null,null,"音声内容"]
[null,5,null,"フリガナ",null,null,null,null,null,null,null,null,null,null,null,null,null,null,null,null,null,null,null,null,null,null,{"$f":"IF(AND(C18=\"\",LEN(E18)>0),LEN(E18),\"\")","v":""}]
[null,null,null,"音声内容"]
[null,6,null,"フリガナ",null,null,null,null,null,null,null,null,null,null,null,null,null,null,null,null,null,null,null,null,null,null,{"$f":"IF(AND(C20=\"\",LEN(E20)>0),LEN(E20),\"\")","v":""}]
[null,null,null,"音声内容"]
[null,7,null,"フリガナ",null,null,null,null,null,null,null,null,null,null,null,null,null,null,null,null,null,null,null,null,null,null,{"$f":"IF(AND(C22=\"\",LEN(E22)>0),LEN(E22),\"\")","v":""}]
[null,null,null,"音声内容"]
[null,8,null,"フリガナ",null,null,null,null,null,null,null,null,null,null,null,null,null,null,null,null,null,null,null,null,null,null,{"$f":"IF(AND(C24=\"\",LEN(E24)>0),LEN(E24),\"\")","v":""}]
[null,null,null,"音声内容"]
[null,9,null,"フリガナ",null,null,null,null,null,null,null,null,null,null,null,null,null,null,null,null,null,null,null,null,null,null,{"$f":"IF(AND(C26=\"\",LEN(E26)>0),LEN(E26),\"\")","v":""}]
[null,null,null,"音声内容"]
[null,10,null,"フリガナ",null,null,null,null,null,null,null,null,null,null,null,null,null,null,null,null,null,null,null,null,null,null,{"$f":"IF(AND(C28=\"\",LEN(E28)>0),LEN(E28),\"\")","v":""}]
[null,null,null,"音声内容"]
[null,11,null,"フリガナ",null,null,null,null,null,null,null,null,null,null,null,null,null,null,null,null,null,null,null,null,null,null,{"$f":"IF(AND(C30=\"\",LEN(E30)>0),LEN(E30),\"\")","v":""}]
[null,null,null,"音声内容"]
[null,12,null,"フリガナ",null,null,null,null,null,null,null,null,null,null,null,null,null,null,null,null,null,null,null,null,null,null,{"$f":"IF(AND(C32=\"\",LEN(E32)>0),LEN(E32),\"\")","v":""}]
[null,null,null,"音声内容"]
[null,13,null,"フリガナ",null,null,null,null,null,null,null,null,null,null,null,null,null,null,null,null,null,null,null,null,null,null,{"$f":"IF(AND(C34=\"\",LEN(E34)>0),LEN(E34),\"\")","v":""}]
[null,null,null,"音声内容"]
[null,14,null,"フリガナ",null,null,null,null,null,null,null,null,null,null,null,null,null,null,null,null,null,null,null,null,null,null,{"$f":"IF(AND(C36=\"\",LEN(E36)>0),LEN(E36),\"\")","v":""}]
[null,null,null,"音声内容"]
[null,15,null,"フリガナ",null,null,null,null,null,null,null,null,null,null,null,null,null,null,null,null,null,null,null,null,null,null,{"$f":"IF(AND(C38=\"\",LEN(E38)>0),LEN(E38),\"\")","v":""}]
[null,null,null,"音声内容"]
[null,16,null,"フリガナ",null,null,null,null,null,null,null,null,null,null,null,null,null,null,null,null,null,null,null,null,null,null,{"$f":"IF(AND(C40=\"\",LEN(E40)>0),LEN(E40),\"\")","v":""}]
[null,null,null,"音声内容"]
[null,17,null,"フリガナ",null,null,null,null,null,null,null,null,null,null,null,null,null,null,null,null,null,null,null,null,null,null,{"$f":"IF(AND(C42=\"\",LEN(E42)>0),LEN(E42),\"\")","v":""}]
[null,null,null,"音声内容"]
[null,18,null,"フリガナ",null,null,null,null,null,null,null,null,null,null,null,null,null,null,null,null,null,null,null,null,null,null,{"$f":"IF(AND(C44=\"\",LEN(E44)>0),LEN(E44),\"\")","v":""}]
[null,null,null,"音声内容"]
[null,19,null,"フリガナ",null,null,null,null,null,null,null,null,null,null,null,null,null,null,null,null,null,null,null,null,null,null,{"$f":"IF(AND(C46=\"\",LEN(E46)>0),LEN(E46),\"\")","v":""}]
[null,null,null,"音声内容"]
[null,20,null,"フリガナ",null,null,null,null,null,null,null,null,null,null,null,null,null,null,null,null,null,null,null,null,null,null,{"$f":"IF(AND(C48=\"\",LEN(E48)>0),LEN(E48),\"\")","v":""}]
[null,null,null,"音声内容"]
[null,21,null,"フリガナ",null,null,null,null,null,null,null,null,null,null,null,null,null,null,null,null,null,null,null,null,null,null,{"$f":"IF(AND(C50=\"\",LEN(E50)>0),LEN(E50),\"\")","v":""}]
[null,null,null,"音声内容"]
[null,22,null,"フリガナ",null,null,null,null,null,null,null,null,null,null,null,null,null,null,null,null,null,null,null,null,null,null,{"$f":"IF(AND(C52=\"\",LEN(E52)>0),LEN(E52),\"\")","v":""}]
[null,null,null,"音声内容"]
[null,23,null,"フリガナ",null,null,null,null,null,null,null,null,null,null,null,null,null,null,null,null,null,null,null,null,null,null,{"$f":"IF(AND(C54=\"\",LEN(E54)>0),LEN(E54),\"\")","v":""}]
[null,null,null,"音声内容"]
[null,24,null,"フリガナ",null,null,null,null,null,null,null,null,null,null,null,null,null,null,null,null,null,null,null,null,null,null,{"$f":"IF(AND(C56=\"\",LEN(E56)>0),LEN(E56),\"\")","v":""}]
[null,null,null,"音声内容"]
[null,25,null,"フリガナ",null,null,null,null,null,null,null,null,null,null,null,null,null,null,null,null,null,null,null,null,null,null,{"$f":"IF(AND(C58=\"\",LEN(E58)>0),LEN(E58),\"\")","v":""}]
[null,null,null,"音声内容"]
[null,26,null,"フリガナ",null,null,null,null,null,null,null,null,null,null,null,null,null,null,null,null,null,null,null,null,null,null,{"$f":"IF(AND(C60=\"\",LEN(E60)>0),LEN(E60),\"\")","v":""}]
[null,null,null,"音声内容"]
[null,27,null,"フリガナ",null,null,null,null,null,null,null,null,null,null,null,null,null,null,null,null,null,null,null,null,null,null,{"$f":"IF(AND(C62=\"\",LEN(E62)>0),LEN(E62),\"\")","v":""}]
[null,null,null,"音声内容"]
[null,28,null,"フリガナ",null,null,null,null,null,null,null,null,null,null,null,null,null,null,null,null,null,null,null,null,null,null,{"$f":"IF(AND(C64=\"\",LEN(E64)>0),LEN(E64),\"\")","v":""}]
[null,null,null,"音声内容"]
[null,29,null,"フリガナ",null,null,null,null,null,null,null,null,null,null,null,null,null,null,null,null,null,null,null,null,null,null,{"$f":"IF(AND(C66=\"\",LEN(E66)>0),LEN(E66),\"\")","v":""}]
[null,null,null,"音声内容"]
[null,30,null,"フリガナ",null,null,null,null,null,null,null,null,null,null,null,null,null,null,null,null,null,null,null,null,null,null,{"$f":"IF(AND(C68=\"\",LEN(E68)>0),LEN(E68),\"\")","v":""}]
[null,null,null,"音声内容"]
[null,31,null,"フリガナ",null,null,null,null,null,null,null,null,null,null,null,null,null,null,null,null,null,null,null,null,null,null,{"$f":"IF(AND(C70=\"\",LEN(E70)>0),LEN(E70),\"\")","v":""}]
[null,null,null,"音声内容"]
[null,32,null,"フリガナ",null,null,null,null,null,null,null,null,null,null,null,null,null,null,null,null,null,null,null,null,null,null,{"$f":"IF(AND(C72=\"\",LEN(E72)>0),LEN(E72),\"\")","v":""}]
[null,null,null,"音声内容"]
[null,33,null,"フリガナ",null,null,null,null,null,null,null,null,null,null,null,null,null,null,null,null,null,null,null,null,null,null,{"$f":"IF(AND(C74=\"\",LEN(E74)>0),LEN(E74),\"\")","v":""}]
[null,null,null,"音声内容"]
[null,34,null,"フリガナ",null,null,null,null,null,null,null,null,null,null,null,null,null,null,null,null,null,null,null,null,null,null,{"$f":"IF(AND(C76=\"\",LEN(E76)>0),LEN(E76),\"\")","v":""}]
[null,null,null,"音声内容"]
[null,35,null,"フリガナ",null,null,null,null,null,null,null,null,null,null,null,null,null,null,null,null,null,null,null,null,null,null,{"$f":"IF(AND(C78=\"\",LEN(E78)>0),LEN(E78),\"\")","v":""}]
[null,null,null,"音声内容"]
[null,36,null,"フリガナ",null,null,null,null,null,null,null,null,null,null,null,null,null,null,null,null,null,null,null,null,null,null,{"$f":"IF(AND(C80=\"\",LEN(E80)>0),LEN(E80),\"\")","v":""}]
[null,null,null,"音声内容"]
[null,37,null,"フリガナ",null,null,null,null,null,null,null,null,null,null,null,null,null,null,null,null,null,null,null,null,null,null,{"$f":"IF(AND(C82=\"\",LEN(E82)>0),LEN(E82),\"\")","v":""}]
[null,null,null,"音声内容"]
[null,38,null,"フリガナ",null,null,null,null,null,null,null,null,null,null,null,null,null,null,null,null,null,null,null,null,null,null,{"$f":"IF(AND(C84=\"\",LEN(E84)>0),LEN(E84),\"\")","v":""}]
[null,null,null,"音声内容"]
[null,39,null,"フリガナ",null,null,null,null,null,null,null,null,null,null,null,null,null,null,null,null,null,null,null,null,null,null,{"$f":"IF(AND(C86=\"\",LEN(E86)>0),LEN(E86),\"\")","v":""}]
[null,null,null,"音声内容"]
[null,40,null,"フリガナ",null,null,null,null,null,null,null,null,null,null,null,null,null,null,null,null,null,null,null,null,null,null,{"$f":"IF(AND(C88=\"\",LEN(E88)>0),LEN(E88),\"\")","v":""}]
[null,null,null,"音声内容"]
[null,41,null,"フリガナ",null,null,null,null,null,null,null,null,null,null,null,null,null,null,null,null,null,null,null,null,null,null,{"$f":"IF(AND(C90=\"\",LEN(E90)>0),LEN(E90),\"\")","v":""}]
[null,null,null,"音声内容"]
[null,42,null,"フリガナ",null,null,null,null,null,null,null,null,null,null,null,null,null,null,null,null,null,null,null,null,null,null,{"$f":"IF(AND(C92=\"\",LEN(E92)>0),LEN(E92),\"\")","v":""}]
[null,null,null,"音声内容"]
[null,43,null,"フリガナ",null,null,null,null,null,null,null,null,null,null,null,null,null,null,null,null,null,null,null,null,null,null,{"$f":"IF(AND(C94=\"\",LEN(E94)>0),LEN(E94),\"\")","v":""}]
[null,null,null,"音声内容"]
[null,44,null,"フリガナ",null,null,null,null,null,null,null,null,null,null,null,null,null,null,null,null,null,null,null,null,null,null,{"$f":"IF(AND(C96=\"\",LEN(E96)>0),LEN(E96),\"\")","v":""}]
[null,null,null,"音声内容"]
[null,45,null,"フリガナ",null,null,null,null,null,null,null,null,null,null,null,null,null,null,null,null,null,null,null,null,null,null,{"$f":"IF(AND(C98=\"\",LEN(E98)>0),LEN(E98),\"\")","v":""}]
[null,null,null,"音声内容"]
[null,46,null,"フリガナ",null,null,null,null,null,null,null,null,null,null,null,null,null,null,null,null,null,null,null,null,null,null,{"$f":"IF(AND(C100=\"\",LEN(E100)>0),LEN(E100),\"\")","v":""}]
[null,null,null,"音声内容"]
[null,47,null,"フリガナ",null,null,null,null,null,null,null,null,null,null,null,null,null,null,null,null,null,null,null,null,null,null,{"$f":"IF(AND(C102=\"\",LEN(E102)>0),LEN(E102),\"\")","v":""}]
[null,null,null,"音声内容"]
[null,48,null,"フリガナ",null,null,null,null,null,null,null,null,null,null,null,null,null,null,null,null,null,null,null,null,null,null,{"$f":"IF(AND(C104=\"\",LEN(E104)>0),LEN(E104),\"\")","v":""}]
[null,null,null,"音声内容"]
[null,49,null,"フリガナ",null,null,null,null,null,null,null,null,null,null,null,null,null,null,null,null,null,null,null,null,null,null,{"$f":"IF(AND(C106=\"\",LEN(E106)>0),LEN(E106),\"\")","v":""}]
[null,null,null,"音声内容"]
[null,50,null,"フリガナ",null,null,null,null,null,null,null,null,null,null,null,null,null,null,null,null,null,null,null,null,null,null,{"$f":"IF(AND(C108=\"\",LEN(E108)>0),LEN(E108),\"\")","v":""}]
[null,null,null,"音声内容"]
[null,51,null,"フリガナ",null,null,null,null,null,null,null,null,null,null,null,null,null,null,null,null,null,null,null,null,null,null,{"$f":"IF(AND(C110=\"\",LEN(E110)>0),LEN(E110),\"\")","v":""}]
[null,null,null,"音声内容"]
[null,52,null,"フリガナ",null,null,null,null,null,null,null,null,null,null,null,null,null,null,null,null,null,null,null,null,null,null,{"$f":"IF(AND(C112=\"\",LEN(E112)>0),LEN(E112),\"\")","v":""}]
[null,null,null,"音声内容"]
[null,53,null,"フリガナ",null,null,null,null,null,null,null,null,null,null,null,null,null,null,null,null,null,null,null,null,null,null,{"$f":"IF(AND(C114=\"\",LEN(E114)>0),LEN(E114),\"\")","v":""}]
[null,null,null,"音声内容"]
[null,54,null,"フリガナ",null,null,null,null,null,null,null,null,null,null,null,null,null,null,null,null,null,null,null,null,null,null,{"$f":"IF(AND(C116=\"\",LEN(E116)>0),LEN(E116),\"\")","v":""}]
[null,null,null,"音声内容"]
[null,55,null,"フリガナ",null,null,null,null,null,null,null,null,null,null,null,null,null,null,null,null,null,null,null,null,null,null,{"$f":"IF(AND(C118=\"\",LEN(E118)>0),LEN(E118),\"\")","v":""}]
[null,null,null,"音声内容"]
[null,56,null,"フリガナ",null,null,null,null,null,null,null,null,null,null,null,null,null,null,null,null,null,null,null,null,null,null,{"$f":"IF(AND(C120=\"\",LEN(E120)>0),LEN(E120),\"\")","v":""}]
[null,null,null,"音声内容"]
[null,57,null,"フリガナ",null,null,null,null,null,null,null,null,null,null,null,null,null,null,null,null,null,null,null,null,null,null,{"$f":"IF(AND(C122=\"\",LEN(E122)>0),LEN(E122),\"\")","v":""}]
[null,null,null,"音声内容"]
[null,58,null,"フリガナ",null,null,null,null,null,null,null,null,null,null,null,null,null,null,null,null,null,null,null,null,null,null,{"$f":"IF(AND(C124=\"\",LEN(E124)>0),LEN(E124),\"\")","v":""}]
[null,null,null,"音声内容"]
[null,59,null,"フリガナ",null,null,null,null,null,null,null,null,null,null,null,null,null,null,null,null,null,null,null,null,null,null,{"$f":"IF(AND(C126=\"\",LEN(E126)>0),LEN(E126),\"\")","v":""}]
[null,null,null,"音声内容"]
[null,60,null,"フリガナ",null,null,null,null,null,null,null,null,null,null,null,null,null,null,null,null,null,null,null,null,null,null,{"$f":"IF(AND(C128=\"\",LEN(E128)>0),LEN(E128),\"\")","v":""}]
[null,null,null,"音声内容"]
[null,61,null,"フリガナ",null,null,null,null,null,null,null,null,null,null,null,null,null,null,null,null,null,null,null,null,null,null,{"$f":"IF(AND(C130=\"\",LEN(E130)>0),LEN(E130),\"\")","v":""}]
[null,null,null,"音声内容"]
[null,62,null,"フリガナ",null,null,null,null,null,null,null,null,null,null,null,null,null,null,null,null,null,null,null,null,null,null,{"$f":"IF(AND(C132=\"\",LEN(E132)>0),LEN(E132),\"\")","v":""}]
[null,null,null,"音声内容"]
[null,63,null,"フリガナ",null,null,null,null,null,null,null,null,null,null,null,null,null,null,null,null,null,null,null,null,null,null,{"$f":"IF(AND(C134=\"\",LEN(E134)>0),LEN(E134),\"\")","v":""}]
[null,null,null,"音声内容"]
[null,64,null,"フリガナ",null,null,null,null,null,null,null,null,null,null,null,null,null,null,null,null,null,null,null,null,null,null,{"$f":"IF(AND(C136=\"\",LEN(E136)>0),LEN(E136),\"\")","v":""}]
[null,null,null,"音声内容"]
[null,65,null,"フリガナ",null,null,null,null,null,null,null,null,null,null,null,null,null,null,null,null,null,null,null,null,null,null,{"$f":"IF(AND(C138=\"\",LEN(E138)>0),LEN(E138),\"\")","v":""}]
[null,null,null,"音声内容"]
[null,66,null,"フリガナ",null,null,null,null,null,null,null,null,null,null,null,null,null,null,null,null,null,null,null,null,null,null,{"$f":"IF(AND(C140=\"\",LEN(E140)>0),LEN(E140),\"\")","v":""}]
[null,null,null,"音声内容"]
[null,67,null,"フリガナ",null,null,null,null,null,null,null,null,null,null,null,null,null,null,null,null,null,null,null,null,null,null,{"$f":"IF(AND(C142=\"\",LEN(E142)>0),LEN(E142),\"\")","v":""}]
[null,null,null,"音声内容"]
[null,68,null,"フリガナ",null,null,null,null,null,null,null,null,null,null,null,null,null,null,null,null,null,null,null,null,null,null,{"$f":"IF(AND(C144=\"\",LEN(E144)>0),LEN(E144),\"\")","v":""}]
[null,null,null,"音声内容"]
[null,69,null,"フリガナ",null,null,null,null,null,null,null,null,null,null,null,null,null,null,null,null,null,null,null,null,null,null,{"$f":"IF(AND(C146=\"\",LEN(E146)>0),LEN(E146),\"\")","v":""}]
[null,null,null,"音声内容"]
[null,70,null,"フリガナ",null,null,null,null,null,null,null,null,null,null,null,null,null,null,null,null,null,null,null,null,null,null,{"$f":"IF(AND(C148=\"\",LEN(E148)>0),LEN(E148),\"\")","v":""}]
[null,null,null,"音声内容"]
[null,71,null,"フリガナ",null,null,null,null,null,null,null,null,null,null,null,null,null,null,null,null,null,null,null,null,null,null,{"$f":"IF(AND(C150=\"\",LEN(E150)>0),LEN(E150),\"\")","v":""}]
[null,null,null,"音声内容"]
[null,72,null,"フリガナ",null,null,null,null,null,null,null,null,null,null,null,null,null,null,null,null,null,null,null,null,null,null,{"$f":"IF(AND(C152=\"\",LEN(E152)>0),LEN(E152),\"\")","v":""}]
[null,null,null,"音声内容"]
[null,73,null,"フリガナ",null,null,null,null,null,null,null,null,null,null,null,null,null,null,null,null,null,null,null,null,null,null,{"$f":"IF(AND(C154=\"\",LEN(E154)>0),LEN(E154),\"\")","v":""}]
[null,null,null,"音声内容"]
[null,74,null,"フリガナ",null,null,null,null,null,null,null,null,null,null,null,null,null,null,null,null,null,null,null,null,null,null,{"$f":"IF(AND(C156=\"\",LEN(E156)>0),LEN(E156),\"\")","v":""}]
[null,null,null,"音声内容"]
[null,75,null,"フリガナ",null,null,null,null,null,null,null,null,null,null,null,null,null,null,null,null,null,null,null,null,null,null,{"$f":"IF(AND(C158=\"\",LEN(E158)>0),LEN(E158),\"\")","v":""}]
[null,null,null,"音声内容"]
[null,76,null,"フリガナ",null,null,null,null,null,null,null,null,null,null,null,null,null,null,null,null,null,null,null,null,null,null,{"$f":"IF(AND(C160=\"\",LEN(E160)>0),LEN(E160),\"\")","v":""}]
[null,null,null,"音声内容"]
[null,77,null,"フリガナ",null,null,null,null,null,null,null,null,null,null,null,null,null,null,null,null,null,null,null,null,null,null,{"$f":"IF(AND(C162=\"\",LEN(E162)>0),LEN(E162),\"\")","v":""}]
[null,null,null,"音声内容"]
[null,78,null,"フリガナ",null,null,null,null,null,null,null,null,null,null,null,null,null,null,null,null,null,null,null,null,null,null,{"$f":"IF(AND(C164=\"\",LEN(E164)>0),LEN(E164),\"\")","v":""}]
[null,null,null,"音声内容"]
[null,79,null,"フリガナ",null,null,null,null,null,null,null,null,null,null,null,null,null,null,null,null,null,null,null,null,null,null,{"$f":"IF(AND(C166=\"\",LEN(E166)>0),LEN(E166),\"\")","v":""}]
[null,null,null,"音声内容"]
[null,80,null,"フリガナ",null,null,null,null,null,null,null,null,null,null,null,null,null,null,null,null,null,null,null,null,null,null,{"$f":"IF(AND(C168=\"\",LEN(E168)>0),LEN(E168),\"\")","v":""}]
[null,null,null,"音声内容"]
[null,81,null,"フリガナ",null,null,null,null,null,null,null,null,null,null,null,null,null,null,null,null,null,null,null,null,null,null,{"$f":"IF(AND(C170=\"\",LEN(E170)>0),LEN(E170),\"\")","v":""}]
[null,null,null,"音声内容"]
[null,82,null,"フリガナ",null,null,null,null,null,null,null,null,null,null,null,null,null,null,null,null,null,null,null,null,null,null,{"$f":"IF(AND(C172=\"\",LEN(E172)>0),LEN(E172),\"\")","v":""}]
[null,null,null,"音声内容"]
[null,83,null,"フリガナ",null,null,null,null,null,null,null,null,null,null,null,null,null,null,null,null,null,null,null,null,null,null,{"$f":"IF(AND(C174=\"\",LEN(E174)>0),LEN(E174),\"\")","v":""}]
[null,null,null,"音声内容"]
[null,84,null,"フリガナ",null,null,null,null,null,null,null,null,null,null,null,null,null,null,null,null,null,null,null,null,null,null,{"$f":"IF(AND(C176=\"\",LEN(E176)>0),LEN(E176),\"\")","v":""}]
[null,null,null,"音声内容"]
[null,85,null,"フリガナ",null,null,null,null,null,null,null,null,null,null,null,null,null,null,null,null,null,null,null,null,null,null,{"$f":"IF(AND(C178=\"\",LEN(E178)>0),LEN(E178),\"\")","v":""}]
[null,null,null,"音声内容"]
[null,86,null,"フリガナ",null,null,null,null,null,null,null,null,null,null,null,null,null,null,null,null,null,null,null,null,null,null,{"$f":"IF(AND(C180=\"\",LEN(E180)>0),LEN(E180),\"\")","v":""}]
[null,null,null,"音声内容"]
[null,87,null,"フリガナ",null,null,null,null,null,null,null,null,null,null,null,null,null,null,null,null,null,null,null,null,null,null,{"$f":"IF(AND(C182=\"\",LEN(E182)>0),LEN(E182),\"\")","v":""}]
[null,null,null,"音声内容"]
[null,88,null,"フリガナ",null,null,null,null,null,null,null,null,null,null,null,null,null,null,null,null,null,null,null,null,null,null,{"$f":"IF(AND(C184=\"\",LEN(E184)>0),LEN(E184),\"\")","v":""}]
[null,null,null,"音声内容"]
[null,89,null,"フリガナ",null,null,null,null,null,null,null,null,null,null,null,null,null,null,null,null,null,null,null,null,null,null,{"$f":"IF(AND(C186=\"\",LEN(E186)>0),LEN(E186),\"\")","v":""}]
[null,null,null,"音声内容"]
[null,90,null,"フリガナ",null,null,null,null,null,null,null,null,null,null,null,null,null,null,null,null,null,null,null,null,null,null,{"$f":"IF(AND(C188=\"\",LEN(E188)>0),LEN(E188),\"\")","v":""}]
[null,null,null,"音声内容"]
[null,91,null,"フリガナ",null,null,null,null,null,null,null,null,null,null,null,null,null,null,null,null,null,null,null,null,null,null,{"$f":"IF(AND(C190=\"\",LEN(E190)>0),LEN(E190),\"\")","v":""}]
[null,null,null,"音声内容"]
[null,92,null,"フリガナ",null,null,null,null,null,null,null,null,null,null,null,null,null,null,null,null,null,null,null,null,null,null,{"$f":"IF(AND(C192=\"\",LEN(E192)>0),LEN(E192),\"\")","v":""}]
[null,null,null,"音声内容"]
[null,93,null,"フリガナ",null,null,null,null,null,null,null,null,null,null,null,null,null,null,null,null,null,null,null,null,null,null,{"$f":"IF(AND(C194=\"\",LEN(E194)>0),LEN(E194),\"\")","v":""}]
[null,null,null,"音声内容"]
[null,94,null,"フリガナ",null,null,null,null,null,null,null,null,null,null,null,null,null,null,null,null,null,null,null,null,null,null,{"$f":"IF(AND(C196=\"\",LEN(E196)>0),LEN(E196),\"\")","v":""}]
[null,null,null,"音声内容"]
[null,95,null,"フリガナ",null,null,null,null,null,null,null,null,null,null,null,null,null,null,null,null,null,null,null,null,null,null,{"$f":"IF(AND(C198=\"\",LEN(E198)>0),LEN(E198),\"\")","v":""}]
[null,null,null,"音声内容"]
[null,96,null,"フリガナ",null,null,null,null,null,null,null,null,null,null,null,null,null,null,null,null,null,null,null,null,null,null,{"$f":"IF(AND(C200=\"\",LEN(E200)>0),LEN(E200),\"\")","v":""}]
[null,null,null,"音声内容"]
[null,97,null,"フリガナ",null,null,null,null,null,null,null,null,null,null,null,null,null,null,null,null,null,null,null,null,null,null,{"$f":"IF(AND(C202=\"\",LEN(E202)>0),LEN(E202),\"\")","v":""}]
[null,null,null,"音声内容"]
[null,98,null,"フリガナ",null,null,null,null,null,null,null,null,null,null,null,null,null,null,null,null,null,null,null,null,null,null,{"$f":"IF(AND(C204=\"\",LEN(E204)>0),LEN(E204),\"\")","v":""}]
[null,null,null,"音声内容"]
[null,99,null,"フリガナ",null,null,null,null,null,null,null,null,null,null,null,null,null,null,null,null,null,null,null,null,null,null,{"$f":"IF(AND(C206=\"\",LEN(E206)>0),LEN(E206),\"\")","v":""}]
[null,null,null,"音声内容"]
[null,100,null,"フリガナ",null,null,null,null,null,null,null,null,null,null,null,null,null,null,null,null,null,null,null,null,null,null,{"$f":"IF(AND(C208=\"\",LEN(E208)>0),LEN(E208),\"\")","v":""}]
[null,null,null,"音声内容"]
[null,101,null,"フリガナ",null,null,null,null,null,null,null,null,null,null,null,null,null,null,null,null,null,null,null,null,null,null,{"$f":"IF(AND(C210=\"\",LEN(E210)>0),LEN(E210),\"\")","v":""}]
[null,null,null,"音声内容"]
[null,102,null,"フリガナ",null,null,null,null,null,null,null,null,null,null,null,null,null,null,null,null,null,null,null,null,null,null,{"$f":"IF(AND(C212=\"\",LEN(E212)>0),LEN(E212),\"\")","v":""}]
[null,null,null,"音声内容"]
[null,103,null,"フリガナ",null,null,null,null,null,null,null,null,null,null,null,null,null,null,null,null,null,null,null,null,null,null,{"$f":"IF(AND(C214=\"\",LEN(E214)>0),LEN(E214),\"\")","v":""}]
[null,null,null,"音声内容"]
[null,104,null,"フリガナ",null,null,null,null,null,null,null,null,null,null,null,null,null,null,null,null,null,null,null,null,null,null,{"$f":"IF(AND(C216=\"\",LEN(E216)>0),LEN(E216),\"\")","v":""}]
[null,null,null,"音声内容"]
[null,105,null,"フリガナ",null,null,null,null,null,null,null,null,null,null,null,null,null,null,null,null,null,null,null,null,null,null,{"$f":"IF(AND(C218=\"\",LEN(E218)>0),LEN(E218),\"\")","v":""}]
[null,null,null,"音声内容"]
[null,106,null,"フリガナ",null,null,null,null,null,null,null,null,null,null,null,null,null,null,null,null,null,null,null,null,null,null,{"$f":"IF(AND(C220=\"\",LEN(E220)>0),LEN(E220),\"\")","v":""}]
[null,null,null,"音声内容"]
[null,107,null,"フリガナ",null,null,null,null,null,null,null,null,null,null,null,null,null,null,null,null,null,null,null,null,null,null,{"$f":"IF(AND(C222=\"\",LEN(E222)>0),LEN(E222),\"\")","v":""}]
[null,null,null,"音声内容"]
[null,108,null,"フリガナ",null,null,null,null,null,null,null,null,null,null,null,null,null,null,null,null,null,null,null,null,null,null,{"$f":"IF(AND(C224=\"\",LEN(E224)>0),LEN(E224),\"\")","v":""}]
[null,null,null,"音声内容"]
[null,109,null,"フリガナ",null,null,null,null,null,null,null,null,null,null,null,null,null,null,null,null,null,null,null,null,null,null,{"$f":"IF(AND(C226=\"\",LEN(E226)>0),LEN(E226),\"\")","v":""}]
[null,null,null,"音声内容"]
[null,110,null,"フリガナ",null,null,null,null,null,null,null,null,null,null,null,null,null,null,null,null,null,null,null,null,null,null,{"$f":"IF(AND(C228=\"\",LEN(E228)>0),LEN(E228),\"\")","v":""}]
[null,null,null,"音声内容"]
[null,111,null,"フリガナ",null,null,null,null,null,null,null,null,null,null,null,null,null,null,null,null,null,null,null,null,null,null,{"$f":"IF(AND(C230=\"\",LEN(E230)>0),LEN(E230),\"\")","v":""}]
[null,null,null,"音声内容"]
[null,112,null,"フリガナ",null,null,null,null,null,null,null,null,null,null,null,null,null,null,null,null,null,null,null,null,null,null,{"$f":"IF(AND(C232=\"\",LEN(E232)>0),LEN(E232),\"\")","v":""}]
[null,null,null,"音声内容"]
[null,113,null,"フリガナ",null,null,null,null,null,null,null,null,null,null,null,null,null,null,null,null,null,null,null,null,null,null,{"$f":"IF(AND(C234=\"\",LEN(E234)>0),LEN(E234),\"\")","v":""}]
[null,null,null,"音声内容"]
[null,114,null,"フリガナ",null,null,null,null,null,null,null,null,null,null,null,null,null,null,null,null,null,null,null,null,null,null,{"$f":"IF(AND(C236=\"\",LEN(E236)>0),LEN(E236),\"\")","v":""}]
[null,null,null,"音声内容"]
[null,115,null,"フリガナ",null,null,null,null,null,null,null,null,null,null,null,null,null,null,null,null,null,null,null,null,null,null,{"$f":"IF(AND(C238=\"\",LEN(E238)>0),LEN(E238),\"\")","v":""}]
[null,null,null,"音声内容"]
[null,116,null,"フリガナ",null,null,null,null,null,null,null,null,null,null,null,null,null,null,null,null,null,null,null,null,null,null,{"$f":"IF(AND(C240=\"\",LEN(E240)>0),LEN(E240),\"\")","v":""}]
[null,null,null,"音声内容"]
[null,117,null,"フリガナ",null,null,null,null,null,null,null,null,null,null,null,null,null,null,null,null,null,null,null,null,null,null,{"$f":"IF(AND(C242=\"\",LEN(E242)>0),LEN(E242),\"\")","v":""}]
[null,null,null,"音声内容"]
[null,118,null,"フリガナ",null,null,null,null,null,null,null,null,null,null,null,null,null,null,null,null,null,null,null,null,null,null,{"$f":"IF(AND(C244=\"\",LEN(E244)>0),LEN(E244),\"\")","v":""}]
[null,null,null,"音声内容"]
[null,119,null,"フリガナ",null,null,null,null,null,null,null,null,null,null,null,null,null,null,null,null,null,null,null,null,null,null,{"$f":"IF(AND(C246=\"\",LEN(E246)>0),LEN(E246),\"\")","v":""}]
[null,null,null,"音声内容"]
[null,120,null,"フリガナ",null,null,null,null,null,null,null,null,null,null,null,null,null,null,null,null,null,null,null,null,null,null,{"$f":"IF(AND(C248=\"\",LEN(E248)>0),LEN(E248),\"\")","v":""}]
[null,null,null,"音声内容"]
[null,121,null,"フリガナ",null,null,null,null,null,null,null,null,null,null,null,null,null,null,null,null,null,null,null,null,null,null,{"$f":"IF(AND(C250=\"\",LEN(E250)>0),LEN(E250),\"\")","v":""}]
[null,null,null,"音声内容"]
[null,122,null,"フリガナ",null,null,null,null,null,null,null,null,null,null,null,null,null,null,null,null,null,null,null,null,null,null,{"$f":"IF(AND(C252=\"\",LEN(E252)>0),LEN(E252),\"\")","v":""}]
[null,null,null,"音声内容"]
[null,123,null,"フリガナ",null,null,null,null,null,null,null,null,null,null,null,null,null,null,null,null,null,null,null,null,null,null,{"$f":"IF(AND(C254=\"\",LEN(E254)>0),LEN(E254),\"\")","v":""}]
[null,null,null,"音声内容"]
[null,124,null,"フリガナ",null,null,null,null,null,null,null,null,null,null,null,null,null,null,null,null,null,null,null,null,null,null,{"$f":"IF(AND(C256=\"\",LEN(E256)>0),LEN(E256),\"\")","v":""}]
[null,null,null,"音声内容"]
[null,125,null,"フリガナ",null,null,null,null,null,null,null,null,null,null,null,null,null,null,null,null,null,null,null,null,null,null,{"$f":"IF(AND(C258=\"\",LEN(E258)>0),LEN(E258),\"\")","v":""}]
[null,null,null,"音声内容"]
[null,126,null,"フリガナ",null,null,null,null,null,null,null,null,null,null,null,null,null,null,null,null,null,null,null,null,null,null,{"$f":"IF(AND(C260=\"\",LEN(E260)>0),LEN(E260),\"\")","v":""}]
[null,null,null,"音声内容"]
[null,127,null,"フリガナ",null,null,null,null,null,null,null,null,null,null,null,null,null,null,null,null,null,null,null,null,null,null,{"$f":"IF(AND(C262=\"\",LEN(E262)>0),LEN(E262),\"\")","v":""}]
[null,null,null,"音声内容"]
[null,128,null,"フリガナ",null,null,null,null,null,null,null,null,null,null,null,null,null,null,null,null,null,null,null,null,null,null,{"$f":"IF(AND(C264=\"\",LEN(E264)>0),LEN(E264),\"\")","v":""}]
[null,null,null,"音声内容"]
[null,129,null,"フリガナ",null,null,null,null,null,null,null,null,null,null,null,null,null,null,null,null,null,null,null,null,null,null,{"$f":"IF(AND(C266=\"\",LEN(E266)>0),LEN(E266),\"\")","v":""}]
[null,null,null,"音声内容"]
[null,130,null,"フリガナ",null,null,null,null,null,null,null,null,null,null,null,null,null,null,null,null,null,null,null,null,null,null,{"$f":"IF(AND(C268=\"\",LEN(E268)>0),LEN(E268),\"\")","v":""}]
[null,null,null,"音声内容"]
[null,131,null,"フリガナ",null,null,null,null,null,null,null,null,null,null,null,null,null,null,null,null,null,null,null,null,null,null,{"$f":"IF(AND(C270=\"\",LEN(E270)>0),LEN(E270),\"\")","v":""}]
[null,null,null,"音声内容"]
[null,132,null,"フリガナ",null,null,null,null,null,null,null,null,null,null,null,null,null,null,null,null,null,null,null,null,null,null,{"$f":"IF(AND(C272=\"\",LEN(E272)>0),LEN(E272),\"\")","v":""}]
[null,null,null,"音声内容"]
[null,133,null,"フリガナ",null,null,null,null,null,null,null,null,null,null,null,null,null,null,null,null,null,null,null,null,null,null,{"$f":"IF(AND(C274=\"\",LEN(E274)>0),LEN(E274),\"\")","v":""}]
[null,null,null,"音声内容"]
[null,134,null,"フリガナ",null,null,null,null,null,null,null,null,null,null,null,null,null,null,null,null,null,null,null,null,null,null,{"$f":"IF(AND(C276=\"\",LEN(E276)>0),LEN(E276),\"\")","v":""}]
[null,null,null,"音声内容"]
[null,135,null,"フリガナ",null,null,null,null,null,null,null,null,null,null,null,null,null,null,null,null,null,null,null,null,null,null,{"$f":"IF(AND(C278=\"\",LEN(E278)>0),LEN(E278),\"\")","v":""}]
[null,null,null,"音声内容"]
[null,136,null,"フリガナ",null,null,null,null,null,null,null,null,null,null,null,null,null,null,null,null,null,null,null,null,null,null,{"$f":"IF(AND(C280=\"\",LEN(E280)>0),LEN(E280),\"\")","v":""}]
[null,null,null,"音声内容"]
[null,137,null,"フリガナ",null,null,null,null,null,null,null,null,null,null,null,null,null,null,null,null,null,null,null,null,null,null,{"$f":"IF(AND(C282=\"\",LEN(E282)>0),LEN(E282),\"\")","v":""}]
[null,null,null,"音声内容"]
[null,138,null,"フリガナ",null,null,null,null,null,null,null,null,null,null,null,null,null,null,null,null,null,null,null,null,null,null,{"$f":"IF(AND(C284=\"\",LEN(E284)>0),LEN(E284),\"\")","v":""}]
[null,null,null,"音声内容"]
[null,139,null,"フリガナ",null,null,null,null,null,null,null,null,null,null,null,null,null,null,null,null,null,null,null,null,null,null,{"$f":"IF(AND(C286=\"\",LEN(E286)>0),LEN(E286),\"\")","v":""}]
[null,null,null,"音声内容"]
[null,140,null,"フリガナ",null,null,null,null,null,null,null,null,null,null,null,null,null,null,null,null,null,null,null,null,null,null,{"$f":"IF(AND(C288=\"\",LEN(E288)>0),LEN(E288),\"\")","v":""}]
[null,null,null,"音声内容"]
[null,141,null,"フリガナ",null,null,null,null,null,null,null,null,null,null,null,null,null,null,null,null,null,null,null,null,null,null,{"$f":"IF(AND(C290=\"\",LEN(E290)>0),LEN(E290),\"\")","v":""}]
[null,null,null,"音声内容"]
[null,142,null,"フリガナ",null,null,null,null,null,null,null,null,null,null,null,null,null,null,null,null,null,null,null,null,null,null,{"$f":"IF(AND(C292=\"\",LEN(E292)>0),LEN(E292),\"\")","v":""}]
[null,null,null,"音声内容"]
[null,143,null,"フリガナ",null,null,null,null,null,null,null,null,null,null,null,null,null,null,null,null,null,null,null,null,null,null,{"$f":"IF(AND(C294=\"\",LEN(E294)>0),LEN(E294),\"\")","v":""}]
[null,null,null,"音声内容"]
[null,144,null,"フリガナ",null,null,null,null,null,null,null,null,null,null,null,null,null,null,null,null,null,null,null,null,null,null,{"$f":"IF(AND(C296=\"\",LEN(E296)>0),LEN(E296),\"\")","v":""}]
[null,null,null,"音声内容"]
[null,145,null,"フリガナ",null,null,null,null,null,null,null,null,null,null,null,null,null,null,null,null,null,null,null,null,null,null,{"$f":"IF(AND(C298=\"\",LEN(E298)>0),LEN(E298),\"\")","v":""}]
[null,null,null,"音声内容"]
[null,146,null,"フリガナ",null,null,null,null,null,null,null,null,null,null,null,null,null,null,null,null,null,null,null,null,null,null,{"$f":"IF(AND(C300=\"\",LEN(E300)>0),LEN(E300),\"\")","v":""}]
[null,null,null,"音声内容"]
[null,147,null,"フリガナ",null,null,null,null,null,null,null,null,null,null,null,null,null,null,null,null,null,null,null,null,null,null,{"$f":"IF(AND(C302=\"\",LEN(E302)>0),LEN(E302),\"\")","v":""}]
[null,null,null,"音声内容"]
[null,148,null,"フリガナ",null,null,null,null,null,null,null,null,null,null,null,null,null,null,null,null,null,null,null,null,null,null,{"$f":"IF(AND(C304=\"\",LEN(E304)>0),LEN(E304),\"\")","v":""}]
[null,null,null,"音声内容"]
[null,149,null,"フリガナ",null,null,null,null,null,null,null,null,null,null,null,null,null,null,null,null,null,null,null,null,null,null,{"$f":"IF(AND(C306=\"\",LEN(E306)>0),LEN(E306),\"\")","v":""}]
[null,null,null,"音声内容"]
[null,150,null,"フリガナ",null,null,null,null,null,null,null,null,null,null,null,null,null,null,null,null,null,null,null,null,null,null,{"$f":"IF(AND(C308=\"\",LEN(E308)>0),LEN(E308),\"\")","v":""}]
[null,null,null,"音声内容"]
[null,151,null,"フリガナ",null,null,null,null,null,null,null,null,null,null,null,null,null,null,null,null,null,null,null,null,null,null,{"$f":"IF(AND(C310=\"\",LEN(E310)>0),LEN(E310),\"\")","v":""}]
[null,null,null,"音声内容"]
[null,152,null,"フリガナ",null,null,null,null,null,null,null,null,null,null,null,null,null,null,null,null,null,null,null,null,null,null,{"$f":"IF(AND(C312=\"\",LEN(E312)>0),LEN(E312),\"\")","v":""}]
[null,null,null,"音声内容"]
[null,153,null,"フリガナ",null,null,null,null,null,null,null,null,null,null,null,null,null,null,null,null,null,null,null,null,null,null,{"$f":"IF(AND(C314=\"\",LEN(E314)>0),LEN(E314),\"\")","v":""}]
[null,null,null,"音声内容"]
[null,154,null,"フリガナ",null,null,null,null,null,null,null,null,null,null,null,null,null,null,null,null,null,null,null,null,null,null,{"$f":"IF(AND(C316=\"\",LEN(E316)>0),LEN(E316),\"\")","v":""}]
[null,null,null,"音声内容"]
[null,155,null,"フリガナ",null,null,null,null,null,null,null,null,null,null,null,null,null,null,null,null,null,null,null,null,null,null,{"$f":"IF(AND(C318=\"\",LEN(E318)>0),LEN(E318),\"\")","v":""}]
[null,null,null,"音声内容"]
[null,156,null,"フリガナ",null,null,null,null,null,null,null,null,null,null,null,null,null,null,null,null,null,null,null,null,null,null,{"$f":"IF(AND(C320=\"\",LEN(E320)>0),LEN(E320),\"\")","v":""}]
[null,null,null,"音声内容"]
[null,157,null,"フリガナ",null,null,null,null,null,null,null,null,null,null,null,null,null,null,null,null,null,null,null,null,null,null,{"$f":"IF(AND(C322=\"\",LEN(E322)>0),LEN(E322),\"\")","v":""}]
[null,null,null,"音声内容"]
[null,158,null,"フリガナ",null,null,null,null,null,null,null,null,null,null,null,null,null,null,null,null,null,null,null,null,null,null,{"$f":"IF(AND(C324=\"\",LEN(E324)>0),LEN(E324),\"\")","v":""}]
[null,null,null,"音声内容"]
[null,159,null,"フリガナ",null,null,null,null,null,null,null,null,null,null,null,null,null,null,null,null,null,null,null,null,null,null,{"$f":"IF(AND(C326=\"\",LEN(E326)>0),LEN(E326),\"\")","v":""}]
[null,null,null,"音声内容"]
[null,160,null,"フリガナ",null,null,null,null,null,null,null,null,null,null,null,null,null,null,null,null,null,null,null,null,null,null,{"$f":"IF(AND(C328=\"\",LEN(E328)>0),LEN(E328),\"\")","v":""}]
[null,null,null,"音声内容"]
[null,161,null,"フリガナ",null,null,null,null,null,null,null,null,null,null,null,null,null,null,null,null,null,null,null,null,null,null,{"$f":"IF(AND(C330=\"\",LEN(E330)>0),LEN(E330),\"\")","v":""}]
[null,null,null,"音声内容"]
[null,162,null,"フリガナ",null,null,null,null,null,null,null,null,null,null,null,null,null,null,null,null,null,null,null,null,null,null,{"$f":"IF(AND(C332=\"\",LEN(E332)>0),LEN(E332),\"\")","v":""}]
[null,null,null,"音声内容"]
[null,163,null,"フリガナ",null,null,null,null,null,null,null,null,null,null,null,null,null,null,null,null,null,null,null,null,null,null,{"$f":"IF(AND(C334=\"\",LEN(E334)>0),LEN(E334),\"\")","v":""}]
[null,null,null,"音声内容"]
[null,164,null,"フリガナ",null,null,null,null,null,null,null,null,null,null,null,null,null,null,null,null,null,null,null,null,null,null,{"$f":"IF(AND(C336=\"\",LEN(E336)>0),LEN(E336),\"\")","v":""}]
[null,null,null,"音声内容"]
[null,165,null,"フリガナ",null,null,null,null,null,null,null,null,null,null,null,null,null,null,null,null,null,null,null,null,null,null,{"$f":"IF(AND(C338=\"\",LEN(E338)>0),LEN(E338),\"\")","v":""}]
[null,null,null,"音声内容"]
[null,166,null,"フリガナ",null,null,null,null,null,null,null,null,null,null,null,null,null,null,null,null,null,null,null,null,null,null,{"$f":"IF(AND(C340=\"\",LEN(E340)>0),LEN(E340),\"\")","v":""}]
[null,null,null,"音声内容"]
[null,167,null,"フリガナ",null,null,null,null,null,null,null,null,null,null,null,null,null,null,null,null,null,null,null,null,null,null,{"$f":"IF(AND(C342=\"\",LEN(E342)>0),LEN(E342),\"\")","v":""}]
[null,null,null,"音声内容"]
[null,168,null,"フリガナ",null,null,null,null,null,null,null,null,null,null,null,null,null,null,null,null,null,null,null,null,null,null,{"$f":"IF(AND(C344=\"\",LEN(E344)>0),LEN(E344),\"\")","v":""}]
[null,null,null,"音声内容"]
[null,169,null,"フリガナ",null,null,null,null,null,null,null,null,null,null,null,null,null,null,null,null,null,null,null,null,null,null,{"$f":"IF(AND(C346=\"\",LEN(E346)>0),LEN(E346),\"\")","v":""}]
[null,null,null,"音声内容"]
[null,170,null,"フリガナ",null,null,null,null,null,null,null,null,null,null,null,null,null,null,null,null,null,null,null,null,null,null,{"$f":"IF(AND(C348=\"\",LEN(E348)>0),LEN(E348),\"\")","v":""}]
[null,null,null,"音声内容"]
[null,171,null,"フリガナ",null,null,null,null,null,null,null,null,null,null,null,null,null,null,null,null,null,null,null,null,null,null,{"$f":"IF(AND(C350=\"\",LEN(E350)>0),LEN(E350),\"\")","v":""}]
[null,null,null,"音声内容"]
[null,172,null,"フリガナ",null,null,null,null,null,null,null,null,null,null,null,null,null,null,null,null,null,null,null,null,null,null,{"$f":"IF(AND(C352=\"\",LEN(E352)>0),LEN(E352),\"\")","v":""}]
[null,null,null,"音声内容"]
[null,173,null,"フリガナ",null,null,null,null,null,null,null,null,null,null,null,null,null,null,null,null,null,null,null,null,null,null,{"$f":"IF(AND(C354=\"\",LEN(E354)>0),LEN(E354),\"\")","v":""}]
[null,null,null,"音声内容"]
[null,174,null,"フリガナ",null,null,null,null,null,null,null,null,null,null,null,null,null,null,null,null,null,null,null,null,null,null,{"$f":"IF(AND(C356=\"\",LEN(E356)>0),LEN(E356),\"\")","v":""}]
[null,null,null,"音声内容"]
[null,175,null,"フリガナ",null,null,null,null,null,null,null,null,null,null,null,null,null,null,null,null,null,null,null,null,null,null,{"$f":"IF(AND(C358=\"\",LEN(E358)>0),LEN(E358),\"\")","v":""}]
[null,null,null,"音声内容"]
[null,176,null,"フリガナ",null,null,null,null,null,null,null,null,null,null,null,null,null,null,null,null,null,null,null,null,null,null,{"$f":"IF(AND(C360=\"\",LEN(E360)>0),LEN(E360),\"\")","v":""}]
[null,null,null,"音声内容"]
[null,177,null,"フリガナ",null,null,null,null,null,null,null,null,null,null,null,null,null,null,null,null,null,null,null,null,null,null,{"$f":"IF(AND(C362=\"\",LEN(E362)>0),LEN(E362),\"\")","v":""}]
[null,null,null,"音声内容"]
[null,178,null,"フリガナ",null,null,null,null,null,null,null,null,null,null,null,null,null,null,null,null,null,null,null,null,null,null,{"$f":"IF(AND(C364=\"\",LEN(E364)>0),LEN(E364),\"\")","v":""}]
[null,null,null,"音声内容"]
[null,179,null,"フリガナ",null,null,null,null,null,null,null,null,null,null,null,null,null,null,null,null,null,null,null,null,null,null,{"$f":"IF(AND(C366=\"\",LEN(E366)>0),LEN(E366),\"\")","v":""}]
[null,null,null,"音声内容"]
[null,180,null,"フリガナ",null,null,null,null,null,null,null,null,null,null,null,null,null,null,null,null,null,null,null,null,null,null,{"$f":"IF(AND(C368=\"\",LEN(E368)>0),LEN(E368),\"\")","v":""}]
[null,null,null,"音声内容"]
[null,181,null,"フリガナ",null,null,null,null,null,null,null,null,null,null,null,null,null,null,null,null,null,null,null,null,null,null,{"$f":"IF(AND(C370=\"\",LEN(E370)>0),LEN(E370),\"\")","v":""}]
[null,null,null,"音声内容"]
[null,182,null,"フリガナ",null,null,null,null,null,null,null,null,null,null,null,null,null,null,null,null,null,null,null,null,null,null,{"$f":"IF(AND(C372=\"\",LEN(E372)>0),LEN(E372),\"\")","v":""}]
[null,null,null,"音声内容"]
[null,183,null,"フリガナ",null,null,null,null,null,null,null,null,null,null,null,null,null,null,null,null,null,null,null,null,null,null,{"$f":"IF(AND(C374=\"\",LEN(E374)>0),LEN(E374),\"\")","v":""}]
[null,null,null,"音声内容"]
[null,184,null,"フリガナ",null,null,null,null,null,null,null,null,null,null,null,null,null,null,null,null,null,null,null,null,null,null,{"$f":"IF(AND(C376=\"\",LEN(E376)>0),LEN(E376),\"\")","v":""}]
[null,null,null,"音声内容"]
[null,185,null,"フリガナ",null,null,null,null,null,null,null,null,null,null,null,null,null,null,null,null,null,null,null,null,null,null,{"$f":"IF(AND(C378=\"\",LEN(E378)>0),LEN(E378),\"\")","v":""}]
[null,null,null,"音声内容"]
[null,186,null,"フリガナ",null,null,null,null,null,null,null,null,null,null,null,null,null,null,null,null,null,null,null,null,null,null,{"$f":"IF(AND(C380=\"\",LEN(E380)>0),LEN(E380),\"\")","v":""}]
[null,null,null,"音声内容"]
[null,187,null,"フリガナ",null,null,null,null,null,null,null,null,null,null,null,null,null,null,null,null,null,null,null,null,null,null,{"$f":"IF(AND(C382=\"\",LEN(E382)>0),LEN(E382),\"\")","v":""}]
[null,null,null,"音声内容"]
[null,188,null,"フリガナ",null,null,null,null,null,null,null,null,null,null,null,null,null,null,null,null,null,null,null,null,null,null,{"$f":"IF(AND(C384=\"\",LEN(E384)>0),LEN(E384),\"\")","v":""}]
[null,null,null,"音声内容"]
[null,189,null,"フリガナ",null,null,null,null,null,null,null,null,null,null,null,null,null,null,null,null,null,null,null,null,null,null,{"$f":"IF(AND(C386=\"\",LEN(E386)>0),LEN(E386),\"\")","v":""}]
[null,null,null,"音声内容"]
[null,190,null,"フリガナ",null,null,null,null,null,null,null,null,null,null,null,null,null,null,null,null,null,null,null,null,null,null,{"$f":"IF(AND(C388=\"\",LEN(E388)>0),LEN(E388),\"\")","v":""}]
[null,null,null,"音声内容"]
[null,191,null,"フリガナ",null,null,null,null,null,null,null,null,null,null,null,null,null,null,null,null,null,null,null,null,null,null,{"$f":"IF(AND(C390=\"\",LEN(E390)>0),LEN(E390),\"\")","v":""}]
[null,null,null,"音声内容"]
[null,192,null,"フリガナ",null,null,null,null,null,null,null,null,null,null,null,null,null,null,null,null,null,null,null,null,null,null,{"$f":"IF(AND(C392=\"\",LEN(E392)>0),LEN(E392),\"\")","v":""}]
[null,null,null,"音声内容"]
[null,193,null,"フリガナ",null,null,null,null,null,null,null,null,null,null,null,null,null,null,null,null,null,null,null,null,null,null,{"$f":"IF(AND(C394=\"\",LEN(E394)>0),LEN(E394),\"\")","v":""}]
[null,null,null,"音声内容"]
[null,194,null,"フリガナ",null,null,null,null,null,null,null,null,null,null,null,null,null,null,null,null,null,null,null,null,null,null,{"$f":"IF(AND(C396=\"\",LEN(E396)>0),LEN(E396),\"\")","v":""}]
[null,null,null,"音声内容"]
[null,195,null,"フリガナ",null,null,null,null,null,null,null,null,null,null,null,null,null,null,null,null,null,null,null,null,null,null,{"$f":"IF(AND(C398=\"\",LEN(E398)>0),LEN(E398),\"\")","v":""}]
[null,null,null,"音声内容"]
[null,196,null,"フリガナ",null,null,null,null,null,null,null,null,null,null,null,null,null,null,null,null,null,null,null,null,null,null,{"$f":"IF(AND(C400=\"\",LEN(E400)>0),LEN(E400),\"\")","v":""}]
[null,null,null,"音声内容"]
[null,197,null,"フリガナ",null,null,null,null,null,null,null,null,null,null,null,null,null,null,null,null,null,null,null,null,null,null,{"$f":"IF(AND(C402=\"\",LEN(E402)>0),LEN(E402),\"\")","v":""}]
[null,null,null,"音声内容"]
[null,198,null,"フリガナ",null,null,null,null,null,null,null,null,null,null,null,null,null,null,null,null,null,null,null,null,null,null,{"$f":"IF(AND(C404=\"\",LEN(E404)>0),LEN(E404),\"\")","v":""}]
[null,null,null,"音声内容"]
[null,199,null,"フリガナ",null,null,null,null,null,null,null,null,null,null,null,null,null,null,null,null,null,null,null,null,null,null,{"$f":"IF(AND(C406=\"\",LEN(E406)>0),LEN(E406),\"\")","v":""}]
[null,null,null,"音声内容"]
[null,200,null,"フリガナ",null,null,null,null,null,null,null,null,null,null,null,null,null,null,null,null,null,null,null,null,null,null,{"$f":"IF(AND(C408=\"\",LEN(E408)>0),LEN(E408),\"\")","v":""}]
[null,null,null,"音声内容"]
[null,201,null,"フリガナ",null,null,null,null,null,null,null,null,null,null,null,null,null,null,null,null,null,null,null,null,null,null,{"$f":"IF(AND(C410=\"\",LEN(E410)>0),LEN(E410),\"\")","v":""}]
[null,null,null,"音声内容"]
[null,202,null,"フリガナ",null,null,null,null,null,null,null,null,null,null,null,null,null,null,null,null,null,null,null,null,null,null,{"$f":"IF(AND(C412=\"\",LEN(E412)>0),LEN(E412),\"\")","v":""}]
[null,null,null,"音声内容"]
[null,203,null,"フリガナ",null,null,null,null,null,null,null,null,null,null,null,null,null,null,null,null,null,null,null,null,null,null,{"$f":"IF(AND(C414=\"\",LEN(E414)>0),LEN(E414),\"\")","v":""}]
[null,null,null,"音声内容"]
[null,204,null,"フリガナ",null,null,null,null,null,null,null,null,null,null,null,null,null,null,null,null,null,null,null,null,null,null,{"$f":"IF(AND(C416=\"\",LEN(E416)>0),LEN(E416),\"\")","v":""}]
[null,null,null,"音声内容"]
[null,205,null,"フリガナ",null,null,null,null,null,null,null,null,null,null,null,null,null,null,null,null,null,null,null,null,null,null,{"$f":"IF(AND(C418=\"\",LEN(E418)>0),LEN(E418),\"\")","v":""}]
[null,null,null,"音声内容"]
[null,206,null,"フリガナ",null,null,null,null,null,null,null,null,null,null,null,null,null,null,null,null,null,null,null,null,null,null,{"$f":"IF(AND(C420=\"\",LEN(E420)>0),LEN(E420),\"\")","v":""}]
[null,null,null,"音声内容"]
[null,207,null,"フリガナ",null,null,null,null,null,null,null,null,null,null,null,null,null,null,null,null,null,null,null,null,null,null,{"$f":"IF(AND(C422=\"\",LEN(E422)>0),LEN(E422),\"\")","v":""}]
[null,null,null,"音声内容"]
[null,208,null,"フリガナ",null,null,null,null,null,null,null,null,null,null,null,null,null,null,null,null,null,null,null,null,null,null,{"$f":"IF(AND(C424=\"\",LEN(E424)>0),LEN(E424),\"\")","v":""}]
[null,null,null,"音声内容"]
[null,209,null,"フリガナ",null,null,null,null,null,null,null,null,null,null,null,null,null,null,null,null,null,null,null,null,null,null,{"$f":"IF(AND(C426=\"\",LEN(E426)>0),LEN(E426),\"\")","v":""}]
[null,null,null,"音声内容"]
[null,210,null,"フリガナ",null,null,null,null,null,null,null,null,null,null,null,null,null,null,null,null,null,null,null,null,null,null,{"$f":"IF(AND(C428=\"\",LEN(E428)>0),LEN(E428),\"\")","v":""}]
[null,null,null,"音声内容"]
[null,211,null,"フリガナ",null,null,null,null,null,null,null,null,null,null,null,null,null,null,null,null,null,null,null,null,null,null,{"$f":"IF(AND(C430=\"\",LEN(E430)>0),LEN(E430),\"\")","v":""}]
[null,null,null,"音声内容"]
[null,212,null,"フリガナ",null,null,null,null,null,null,null,null,null,null,null,null,null,null,null,null,null,null,null,null,null,null,{"$f":"IF(AND(C432=\"\",LEN(E432)>0),LEN(E432),\"\")","v":""}]
[null,null,null,"音声内容"]
[null,213,null,"フリガナ",null,null,null,null,null,null,null,null,null,null,null,null,null,null,null,null,null,null,null,null,null,null,{"$f":"IF(AND(C434=\"\",LEN(E434)>0),LEN(E434),\"\")","v":""}]
[null,null,null,"音声内容"]
[null,214,null,"フリガナ",null,null,null,null,null,null,null,null,null,null,null,null,null,null,null,null,null,null,null,null,null,null,{"$f":"IF(AND(C436=\"\",LEN(E436)>0),LEN(E436),\"\")","v":""}]
[null,null,null,"音声内容"]
[null,215,null,"フリガナ",null,null,null,null,null,null,null,null,null,null,null,null,null,null,null,null,null,null,null,null,null,null,{"$f":"IF(AND(C438=\"\",LEN(E438)>0),LEN(E438),\"\")","v":""}]
[null,null,null,"音声内容"]
[null,216,null,"フリガナ",null,null,null,null,null,null,null,null,null,null,null,null,null,null,null,null,null,null,null,null,null,null,{"$f":"IF(AND(C440=\"\",LEN(E440)>0),LEN(E440),\"\")","v":""}]
[null,null,null,"音声内容"]
[null,217,null,"フリガナ",null,null,null,null,null,null,null,null,null,null,null,null,null,null,null,null,null,null,null,null,null,null,{"$f":"IF(AND(C442=\"\",LEN(E442)>0),LEN(E442),\"\")","v":""}]
[null,null,null,"音声内容"]
[null,218,null,"フリガナ",null,null,null,null,null,null,null,null,null,null,null,null,null,null,null,null,null,null,null,null,null,null,{"$f":"IF(AND(C444=\"\",LEN(E444)>0),LEN(E444),\"\")","v":""}]
[null,null,null,"音声内容"]
[null,219,null,"フリガナ",null,null,null,null,null,null,null,null,null,null,null,null,null,null,null,null,null,null,null,null,null,null,{"$f":"IF(AND(C446=\"\",LEN(E446)>0),LEN(E446),\"\")","v":""}]
[null,null,null,"音声内容"]
[null,220,null,"フリガナ",null,null,null,null,null,null,null,null,null,null,null,null,null,null,null,null,null,null,null,null,null,null,{"$f":"IF(AND(C448=\"\",LEN(E448)>0),LEN(E448),\"\")","v":""}]
[null,null,null,"音声内容"]
[null,221,null,"フリガナ",null,null,null,null,null,null,null,null,null,null,null,null,null,null,null,null,null,null,null,null,null,null,{"$f":"IF(AND(C450=\"\",LEN(E450)>0),LEN(E450),\"\")","v":""}]
[null,null,null,"音声内容"]
[null,222,null,"フリガナ",null,null,null,null,null,null,null,null,null,null,null,null,null,null,null,null,null,null,null,null,null,null,{"$f":"IF(AND(C452=\"\",LEN(E452)>0),LEN(E452),\"\")","v":""}]
[null,null,null,"音声内容"]
[null,223,null,"フリガナ",null,null,null,null,null,null,null,null,null,null,null,null,null,null,null,null,null,null,null,null,null,null,{"$f":"IF(AND(C454=\"\",LEN(E454)>0),LEN(E454),\"\")","v":""}]
[null,null,null,"音声内容"]
[null,224,null,"フリガナ",null,null,null,null,null,null,null,null,null,null,null,null,null,null,null,null,null,null,null,null,null,null,{"$f":"IF(AND(C456=\"\",LEN(E456)>0),LEN(E456),\"\")","v":""}]
[null,null,null,"音声内容"]
[null,225,null,"フリガナ",null,null,null,null,null,null,null,null,null,null,null,null,null,null,null,null,null,null,null,null,null,null,{"$f":"IF(AND(C458=\"\",LEN(E458)>0),LEN(E458),\"\")","v":""}]
[null,null,null,"音声内容"]
[null,226,null,"フリガナ",null,null,null,null,null,null,null,null,null,null,null,null,null,null,null,null,null,null,null,null,null,null,{"$f":"IF(AND(C460=\"\",LEN(E460)>0),LEN(E460),\"\")","v":""}]
[null,null,null,"音声内容"]
[null,227,null,"フリガナ",null,null,null,null,null,null,null,null,null,null,null,null,null,null,null,null,null,null,null,null,null,null,{"$f":"IF(AND(C462=\"\",LEN(E462)>0),LEN(E462),\"\")","v":""}]
[null,null,null,"音声内容"]
[null,228,null,"フリガナ",null,null,null,null,null,null,null,null,null,null,null,null,null,null,null,null,null,null,null,null,null,null,{"$f":"IF(AND(C464=\"\",LEN(E464)>0),LEN(E464),\"\")","v":""}]
[null,null,null,"音声内容"]
[null,229,null,"フリガナ",null,null,null,null,null,null,null,null,null,null,null,null,null,null,null,null,null,null,null,null,null,null,{"$f":"IF(AND(C466=\"\",LEN(E466)>0),LEN(E466),\"\")","v":""}]
[null,null,null,"音声内容"]
[null,230,null,"フリガナ",null,null,null,null,null,null,null,null,null,null,null,null,null,null,null,null,null,null,null,null,null,null,{"$f":"IF(AND(C468=\"\",LEN(E468)>0),LEN(E468),\"\")","v":""}]
[null,null,null,"音声内容"]
[null,231,null,"フリガナ",null,null,null,null,null,null,null,null,null,null,null,null,null,null,null,null,null,null,null,null,null,null,{"$f":"IF(AND(C470=\"\",LEN(E470)>0),LEN(E470),\"\")","v":""}]
[null,null,null,"音声内容"]
[null,232,null,"フリガナ",null,null,null,null,null,null,null,null,null,null,null,null,null,null,null,null,null,null,null,null,null,null,{"$f":"IF(AND(C472=\"\",LEN(E472)>0),LEN(E472),\"\")","v":""}]
[null,null,null,"音声内容"]
[null,233,null,"フリガナ",null,null,null,null,null,null,null,null,null,null,null,null,null,null,null,null,null,null,null,null,null,null,{"$f":"IF(AND(C474=\"\",LEN(E474)>0),LEN(E474),\"\")","v":""}]
[null,null,null,"音声内容"]
[null,234,null,"フリガナ",null,null,null,null,null,null,null,null,null,null,null,null,null,null,null,null,null,null,null,null,null,null,{"$f":"IF(AND(C476=\"\",LEN(E476)>0),LEN(E476),\"\")","v":""}]
[null,null,null,"音声内容"]
[null,235,null,"フリガナ",null,null,null,null,null,null,null,null,null,null,null,null,null,null,null,null,null,null,null,null,null,null,{"$f":"IF(AND(C478=\"\",LEN(E478)>0),LEN(E478),\"\")","v":""}]
[null,null,null,"音声内容"]
[null,236,null,"フリガナ",null,null,null,null,null,null,null,null,null,null,null,null,null,null,null,null,null,null,null,null,null,null,{"$f":"IF(AND(C480=\"\",LEN(E480)>0),LEN(E480),\"\")","v":""}]
[null,null,null,"音声内容"]
[null,237,null,"フリガナ",null,null,null,null,null,null,null,null,null,null,null,null,null,null,null,null,null,null,null,null,null,null,{"$f":"IF(AND(C482=\"\",LEN(E482)>0),LEN(E482),\"\")","v":""}]
[null,null,null,"音声内容"]
[null,238,null,"フリガナ",null,null,null,null,null,null,null,null,null,null,null,null,null,null,null,null,null,null,null,null,null,null,{"$f":"IF(AND(C484=\"\",LEN(E484)>0),LEN(E484),\"\")","v":""}]
[null,null,null,"音声内容"]
[null,239,null,"フリガナ",null,null,null,null,null,null,null,null,null,null,null,null,null,null,null,null,null,null,null,null,null,null,{"$f":"IF(AND(C486=\"\",LEN(E486)>0),LEN(E486),\"\")","v":""}]
[null,null,null,"音声内容"]
[null,240,null,"フリガナ",null,null,null,null,null,null,null,null,null,null,null,null,null,null,null,null,null,null,null,null,null,null,{"$f":"IF(AND(C488=\"\",LEN(E488)>0),LEN(E488),\"\")","v":""}]
[null,null,null,"音声内容"]
[null,241,null,"フリガナ",null,null,null,null,null,null,null,null,null,null,null,null,null,null,null,null,null,null,null,null,null,null,{"$f":"IF(AND(C490=\"\",LEN(E490)>0),LEN(E490),\"\")","v":""}]
[null,null,null,"音声内容"]
[null,242,null,"フリガナ",null,null,null,null,null,null,null,null,null,null,null,null,null,null,null,null,null,null,null,null,null,null,{"$f":"IF(AND(C492=\"\",LEN(E492)>0),LEN(E492),\"\")","v":""}]
[null,null,null,"音声内容"]
[null,243,null,"フリガナ",null,null,null,null,null,null,null,null,null,null,null,null,null,null,null,null,null,null,null,null,null,null,{"$f":"IF(AND(C494=\"\",LEN(E494)>0),LEN(E494),\"\")","v":""}]
[null,null,null,"音声内容"]
[null,244,null,"フリガナ",null,null,null,null,null,null,null,null,null,null,null,null,null,null,null,null,null,null,null,null,null,null,{"$f":"IF(AND(C496=\"\",LEN(E496)>0),LEN(E496),\"\")","v":""}]
[null,null,null,"音声内容"]
[null,245,null,"フリガナ",null,null,null,null,null,null,null,null,null,null,null,null,null,null,null,null,null,null,null,null,null,null,{"$f":"IF(AND(C498=\"\",LEN(E498)>0),LEN(E498),\"\")","v":""}]
[null,null,null,"音声内容"]
[null,246,null,"フリガナ",null,null,null,null,null,null,null,null,null,null,null,null,null,null,null,null,null,null,null,null,null,null,{"$f":"IF(AND(C500=\"\",LEN(E500)>0),LEN(E500),\"\")","v":""}]
[null,null,null,"音声内容"]
[null,247,null,"フリガナ",null,null,null,null,null,null,null,null,null,null,null,null,null,null,null,null,null,null,null,null,null,null,{"$f":"IF(AND(C502=\"\",LEN(E502)>0),LEN(E502),\"\")","v":""}]
[null,null,null,"音声内容"]
[null,248,null,"フリガナ",null,null,null,null,null,null,null,null,null,null,null,null,null,null,null,null,null,null,null,null,null,null,{"$f":"IF(AND(C504=\"\",LEN(E504)>0),LEN(E504),\"\")","v":""}]
[null,null,null,"音声内容"]
[null,249,null,"フリガナ",null,null,null,null,null,null,null,null,null,null,null,null,null,null,null,null,null,null,null,null,null,null,{"$f":"IF(AND(C506=\"\",LEN(E506)>0),LEN(E506),\"\")","v":""}]
[null,null,null,"音声内容"]
[null,250,null,"フリガナ",null,null,null,null,null,null,null,null,null,null,null,null,null,null,null,null,null,null,null,null,null,null,{"$f":"IF(AND(C508=\"\",LEN(E508)>0),LEN(E508),\"\")","v":""}]
[null,null,null,"音声内容"]
[null,251,null,"フリガナ",null,null,null,null,null,null,null,null,null,null,null,null,null,null,null,null,null,null,null,null,null,null,{"$f":"IF(AND(C510=\"\",LEN(E510)>0),LEN(E510),\"\")","v":""}]
[null,null,null,"音声内容"]
[null,252,null,"フリガナ",null,null,null,null,null,null,null,null,null,null,null,null,null,null,null,null,null,null,null,null,null,null,{"$f":"IF(AND(C512=\"\",LEN(E512)>0),LEN(E512),\"\")","v":""}]
[null,null,null,"音声内容"]
[null,253,null,"フリガナ",null,null,null,null,null,null,null,null,null,null,null,null,null,null,null,null,null,null,null,null,null,null,{"$f":"IF(AND(C514=\"\",LEN(E514)>0),LEN(E514),\"\")","v":""}]
[null,null,null,"音声内容"]
[null,254,null,"フリガナ",null,null,null,null,null,null,null,null,null,null,null,null,null,null,null,null,null,null,null,null,null,null,{"$f":"IF(AND(C516=\"\",LEN(E516)>0),LEN(E516),\"\")","v":""}]
[null,null,null,"音声内容"]
[null,255,null,"フリガナ",null,null,null,null,null,null,null,null,null,null,null,null,null,null,null,null,null,null,null,null,null,null,{"$f":"IF(AND(C518=\"\",LEN(E518)>0),LEN(E518),\"\")","v":""}]
[null,null,null,"音声内容"]
[null,256,null,"フリガナ",null,null,null,null,null,null,null,null,null,null,null,null,null,null,null,null,null,null,null,null,null,null,{"$f":"IF(AND(C520=\"\",LEN(E520)>0),LEN(E520),\"\")","v":""}]
[null,null,null,"音声内容"]
[null,257,null,"フリガナ",null,null,null,null,null,null,null,null,null,null,null,null,null,null,null,null,null,null,null,null,null,null,{"$f":"IF(AND(C522=\"\",LEN(E522)>0),LEN(E522),\"\")","v":""}]
[null,null,null,"音声内容"]
[null,258,null,"フリガナ",null,null,null,null,null,null,null,null,null,null,null,null,null,null,null,null,null,null,null,null,null,null,{"$f":"IF(AND(C524=\"\",LEN(E524)>0),LEN(E524),\"\")","v":""}]
[null,null,null,"音声内容"]
[null,259,null,"フリガナ",null,null,null,null,null,null,null,null,null,null,null,null,null,null,null,null,null,null,null,null,null,null,{"$f":"IF(AND(C526=\"\",LEN(E526)>0),LEN(E526),\"\")","v":""}]
[null,null,null,"音声内容"]
[null,260,null,"フリガナ",null,null,null,null,null,null,null,null,null,null,null,null,null,null,null,null,null,null,null,null,null,null,{"$f":"IF(AND(C528=\"\",LEN(E528)>0),LEN(E528),\"\")","v":""}]
[null,null,null,"音声内容"]
[null,261,null,"フリガナ",null,null,null,null,null,null,null,null,null,null,null,null,null,null,null,null,null,null,null,null,null,null,{"$f":"IF(AND(C530=\"\",LEN(E530)>0),LEN(E530),\"\")","v":""}]
[null,null,null,"音声内容"]
[null,262,null,"フリガナ",null,null,null,null,null,null,null,null,null,null,null,null,null,null,null,null,null,null,null,null,null,null,{"$f":"IF(AND(C532=\"\",LEN(E532)>0),LEN(E532),\"\")","v":""}]
[null,null,null,"音声内容"]
[null,263,null,"フリガナ",null,null,null,null,null,null,null,null,null,null,null,null,null,null,null,null,null,null,null,null,null,null,{"$f":"IF(AND(C534=\"\",LEN(E534)>0),LEN(E534),\"\")","v":""}]
[null,null,null,"音声内容"]
[null,264,null,"フリガナ",null,null,null,null,null,null,null,null,null,null,null,null,null,null,null,null,null,null,null,null,null,null,{"$f":"IF(AND(C536=\"\",LEN(E536)>0),LEN(E536),\"\")","v":""}]
[null,null,null,"音声内容"]
[null,265,null,"フリガナ",null,null,null,null,null,null,null,null,null,null,null,null,null,null,null,null,null,null,null,null,null,null,{"$f":"IF(AND(C538=\"\",LEN(E538)>0),LEN(E538),\"\")","v":""}]
[null,null,null,"音声内容"]
[null,266,null,"フリガナ",null,null,null,null,null,null,null,null,null,null,null,null,null,null,null,null,null,null,null,null,null,null,{"$f":"IF(AND(C540=\"\",LEN(E540)>0),LEN(E540),\"\")","v":""}]
[null,null,null,"音声内容"]
[null,267,null,"フリガナ",null,null,null,null,null,null,null,null,null,null,null,null,null,null,null,null,null,null,null,null,null,null,{"$f":"IF(AND(C542=\"\",LEN(E542)>0),LEN(E542),\"\")","v":""}]
[null,null,null,"音声内容"]
[null,268,null,"フリガナ",null,null,null,null,null,null,null,null,null,null,null,null,null,null,null,null,null,null,null,null,null,null,{"$f":"IF(AND(C544=\"\",LEN(E544)>0),LEN(E544),\"\")","v":""}]
[null,null,null,"音声内容"]
[null,269,null,"フリガナ",null,null,null,null,null,null,null,null,null,null,null,null,null,null,null,null,null,null,null,null,null,null,{"$f":"IF(AND(C546=\"\",LEN(E546)>0),LEN(E546),\"\")","v":""}]
[null,null,null,"音声内容"]
[null,270,null,"フリガナ",null,null,null,null,null,null,null,null,null,null,null,null,null,null,null,null,null,null,null,null,null,null,{"$f":"IF(AND(C548=\"\",LEN(E548)>0),LEN(E548),\"\")","v":""}]
[null,null,null,"音声内容"]
[null,271,null,"フリガナ",null,null,null,null,null,null,null,null,null,null,null,null,null,null,null,null,null,null,null,null,null,null,{"$f":"IF(AND(C550=\"\",LEN(E550)>0),LEN(E550),\"\")","v":""}]
[null,null,null,"音声内容"]
[null,272,null,"フリガナ",null,null,null,null,null,null,null,null,null,null,null,null,null,null,null,null,null,null,null,null,null,null,{"$f":"IF(AND(C552=\"\",LEN(E552)>0),LEN(E552),\"\")","v":""}]
[null,null,null,"音声内容"]
[null,273,null,"フリガナ",null,null,null,null,null,null,null,null,null,null,null,null,null,null,null,null,null,null,null,null,null,null,{"$f":"IF(AND(C554=\"\",LEN(E554)>0),LEN(E554),\"\")","v":""}]
[null,null,null,"音声内容"]
[null,274,null,"フリガナ",null,null,null,null,null,null,null,null,null,null,null,null,null,null,null,null,null,null,null,null,null,null,{"$f":"IF(AND(C556=\"\",LEN(E556)>0),LEN(E556),\"\")","v":""}]
[null,null,null,"音声内容"]
[null,275,null,"フリガナ",null,null,null,null,null,null,null,null,null,null,null,null,null,null,null,null,null,null,null,null,null,null,{"$f":"IF(AND(C558=\"\",LEN(E558)>0),LEN(E558),\"\")","v":""}]
[null,null,null,"音声内容"]
[null,276,null,"フリガナ",null,null,null,null,null,null,null,null,null,null,null,null,null,null,null,null,null,null,null,null,null,null,{"$f":"IF(AND(C560=\"\",LEN(E560)>0),LEN(E560),\"\")","v":""}]
[null,null,null,"音声内容"]
[null,277,null,"フリガナ",null,null,null,null,null,null,null,null,null,null,null,null,null,null,null,null,null,null,null,null,null,null,{"$f":"IF(AND(C562=\"\",LEN(E562)>0),LEN(E562),\"\")","v":""}]
[null,null,null,"音声内容"]
[null,278,null,"フリガナ",null,null,null,null,null,null,null,null,null,null,null,null,null,null,null,null,null,null,null,null,null,null,{"$f":"IF(AND(C564=\"\",LEN(E564)>0),LEN(E564),\"\")","v":""}]
[null,null,null,"音声内容"]
[null,279,null,"フリガナ",null,null,null,null,null,null,null,null,null,null,null,null,null,null,null,null,null,null,null,null,null,null,{"$f":"IF(AND(C566=\"\",LEN(E566)>0),LEN(E566),\"\")","v":""}]
[null,null,null,"音声内容"]
[null,280,null,"フリガナ",null,null,null,null,null,null,null,null,null,null,null,null,null,null,null,null,null,null,null,null,null,null,{"$f":"IF(AND(C568=\"\",LEN(E568)>0),LEN(E568),\"\")","v":""}]
[null,null,null,"音声内容"]
[null,281,null,"フリガナ",null,null,null,null,null,null,null,null,null,null,null,null,null,null,null,null,null,null,null,null,null,null,{"$f":"IF(AND(C570=\"\",LEN(E570)>0),LEN(E570),\"\")","v":""}]
[null,null,null,"音声内容"]
[null,282,null,"フリガナ",null,null,null,null,null,null,null,null,null,null,null,null,null,null,null,null,null,null,null,null,null,null,{"$f":"IF(AND(C572=\"\",LEN(E572)>0),LEN(E572),\"\")","v":""}]
[null,null,null,"音声内容"]
[null,283,null,"フリガナ",null,null,null,null,null,null,null,null,null,null,null,null,null,null,null,null,null,null,null,null,null,null,{"$f":"IF(AND(C574=\"\",LEN(E574)>0),LEN(E574),\"\")","v":""}]
[null,null,null,"音声内容"]
[null,284,null,"フリガナ",null,null,null,null,null,null,null,null,null,null,null,null,null,null,null,null,null,null,null,null,null,null,{"$f":"IF(AND(C576=\"\",LEN(E576)>0),LEN(E576),\"\")","v":""}]
[null,null,null,"音声内容"]
[null,285,null,"フリガナ",null,null,null,null,null,null,null,null,null,null,null,null,null,null,null,null,null,null,null,null,null,null,{"$f":"IF(AND(C578=\"\",LEN(E578)>0),LEN(E578),\"\")","v":""}]
[null,null,null,"音声内容"]
[null,286,null,"フリガナ",null,null,null,null,null,null,null,null,null,null,null,null,null,null,null,null,null,null,null,null,null,null,{"$f":"IF(AND(C580=\"\",LEN(E580)>0),LEN(E580),\"\")","v":""}]
[null,null,null,"音声内容"]
[null,287,null,"フリガナ",null,null,null,null,null,null,null,null,null,null,null,null,null,null,null,null,null,null,null,null,null,null,{"$f":"IF(AND(C582=\"\",LEN(E582)>0),LEN(E582),\"\")","v":""}]
[null,null,null,"音声内容"]
[null,288,null,"フリガナ",null,null,null,null,null,null,null,null,null,null,null,null,null,null,null,null,null,null,null,null,null,null,{"$f":"IF(AND(C584=\"\",LEN(E584)>0),LEN(E584),\"\")","v":""}]
[null,null,null,"音声内容"]
[null,289,null,"フリガナ",null,null,null,null,null,null,null,null,null,null,null,null,null,null,null,null,null,null,null,null,null,null,{"$f":"IF(AND(C586=\"\",LEN(E586)>0),LEN(E586),\"\")","v":""}]
[null,null,null,"音声内容"]
[null,290,null,"フリガナ",null,null,null,null,null,null,null,null,null,null,null,null,null,null,null,null,null,null,null,null,null,null,{"$f":"IF(AND(C588=\"\",LEN(E588)>0),LEN(E588),\"\")","v":""}]
[null,null,null,"音声内容"]
[null,291,null,"フリガナ",null,null,null,null,null,null,null,null,null,null,null,null,null,null,null,null,null,null,null,null,null,null,{"$f":"IF(AND(C590=\"\",LEN(E590)>0),LEN(E590),\"\")","v":""}]
[null,null,null,"音声内容"]
[null,292,null,"フリガナ",null,null,null,null,null,null,null,null,null,null,null,null,null,null,null,null,null,null,null,null,null,null,{"$f":"IF(AND(C592=\"\",LEN(E592)>0),LEN(E592),\"\")","v":""}]
[null,null,null,"音声内容"]
[null,293,null,"フリガナ",null,null,null,null,null,null,null,null,null,null,null,null,null,null,null,null,null,null,null,null,null,null,{"$f":"IF(AND(C594=\"\",LEN(E594)>0),LEN(E594),\"\")","v":""}]
[null,null,null,"音声内容"]
[null,294,null,"フリガナ",null,null,null,null,null,null,null,null,null,null,null,null,null,null,null,null,null,null,null,null,null,null,{"$f":"IF(AND(C596=\"\",LEN(E596)>0),LEN(E596),\"\")","v":""}]
[null,null,null,"音声内容"]
[null,295,null,"フリガナ",null,null,null,null,null,null,null,null,null,null,null,null,null,null,null,null,null,null,null,null,null,null,{"$f":"IF(AND(C598=\"\",LEN(E598)>0),LEN(E598),\"\")","v":""}]
[null,null,null,"音声内容"]
[null,296,null,"フリガナ",null,null,null,null,null,null,null,null,null,null,null,null,null,null,null,null,null,null,null,null,null,null,{"$f":"IF(AND(C600=\"\",LEN(E600)>0),LEN(E600),\"\")","v":""}]
[null,null,null,"音声内容"]
[null,297,null,"フリガナ",null,null,null,null,null,null,null,null,null,null,null,null,null,null,null,null,null,null,null,null,null,null,{"$f":"IF(AND(C602=\"\",LEN(E602)>0),LEN(E602),\"\")","v":""}]
[null,null,null,"音声内容"]
[null,298,null,"フリガナ",null,null,null,null,null,null,null,null,null,null,null,null,null,null,null,null,null,null,null,null,null,null,{"$f":"IF(AND(C604=\"\",LEN(E604)>0),LEN(E604),\"\")","v":""}]
[null,null,null,"音声内容"]
[null,299,null,"フリガナ",null,null,null,null,null,null,null,null,null,null,null,null,null,null,null,null,null,null,null,null,null,null,{"$f":"IF(AND(C606=\"\",LEN(E606)>0),LEN(E606),\"\")","v":""}]
[null,null,null,"音声内容"]
[null,300,null,"フリガナ",null,null,null,null,null,null,null,null,null,null,null,null,null,null,null,null,null,null,null,null,null,null,{"$f":"IF(AND(C608=\"\",LEN(E608)>0),LEN(E608),\"\")","v":""}]
[null,null,null,"音声内容"]
[null,301,null,"フリガナ",null,null,null,null,null,null,null,null,null,null,null,null,null,null,null,null,null,null,null,null,null,null,{"$f":"IF(AND(C610=\"\",LEN(E610)>0),LEN(E610),\"\")","v":""}]
[null,null,null,"音声内容"]
[null,302,null,"フリガナ",null,null,null,null,null,null,null,null,null,null,null,null,null,null,null,null,null,null,null,null,null,null,{"$f":"IF(AND(C612=\"\",LEN(E612)>0),LEN(E612),\"\")","v":""}]
[null,null,null,"音声内容"]
[null,303,null,"フリガナ",null,null,null,null,null,null,null,null,null,null,null,null,null,null,null,null,null,null,null,null,null,null,{"$f":"IF(AND(C614=\"\",LEN(E614)>0),LEN(E614),\"\")","v":""}]
[null,null,null,"音声内容"]
[null,304,null,"フリガナ",null,null,null,null,null,null,null,null,null,null,null,null,null,null,null,null,null,null,null,null,null,null,{"$f":"IF(AND(C616=\"\",LEN(E616)>0),LEN(E616),\"\")","v":""}]
[null,null,null,"音声内容"]
[null,305,null,"フリガナ",null,null,null,null,null,null,null,null,null,null,null,null,null,null,null,null,null,null,null,null,null,null,{"$f":"IF(AND(C618=\"\",LEN(E618)>0),LEN(E618),\"\")","v":""}]
[null,null,null,"音声内容"]
[null,306,null,"フリガナ",null,null,null,null,null,null,null,null,null,null,null,null,null,null,null,null,null,null,null,null,null,null,{"$f":"IF(AND(C620=\"\",LEN(E620)>0),LEN(E620),\"\")","v":""}]
[null,null,null,"音声内容"]
[null,307,null,"フリガナ",null,null,null,null,null,null,null,null,null,null,null,null,null,null,null,null,null,null,null,null,null,null,{"$f":"IF(AND(C622=\"\",LEN(E622)>0),LEN(E622),\"\")","v":""}]
[null,null,null,"音声内容"]
[null,308,null,"フリガナ",null,null,null,null,null,null,null,null,null,null,null,null,null,null,null,null,null,null,null,null,null,null,{"$f":"IF(AND(C624=\"\",LEN(E624)>0),LEN(E624),\"\")","v":""}]
[null,null,null,"音声内容"]
[null,309,null,"フリガナ",null,null,null,null,null,null,null,null,null,null,null,null,null,null,null,null,null,null,null,null,null,null,{"$f":"IF(AND(C626=\"\",LEN(E626)>0),LEN(E626),\"\")","v":""}]
[null,null,null,"音声内容"]
[null,310,null,"フリガナ",null,null,null,null,null,null,null,null,null,null,null,null,null,null,null,null,null,null,null,null,null,null,{"$f":"IF(AND(C628=\"\",LEN(E628)>0),LEN(E628),\"\")","v":""}]
[null,null,null,"音声内容"]
[null,311,null,"フリガナ",null,null,null,null,null,null,null,null,null,null,null,null,null,null,null,null,null,null,null,null,null,null,{"$f":"IF(AND(C630=\"\",LEN(E630)>0),LEN(E630),\"\")","v":""}]
[null,null,null,"音声内容"]
[null,312,null,"フリガナ",null,null,null,null,null,null,null,null,null,null,null,null,null,null,null,null,null,null,null,null,null,null,{"$f":"IF(AND(C632=\"\",LEN(E632)>0),LEN(E632),\"\")","v":""}]
[null,null,null,"音声内容"]
[null,313,null,"フリガナ",null,null,null,null,null,null,null,null,null,null,null,null,null,null,null,null,null,null,null,null,null,null,{"$f":"IF(AND(C634=\"\",LEN(E634)>0),LEN(E634),\"\")","v":""}]
[null,null,null,"音声内容"]
[null,314,null,"フリガナ",null,null,null,null,null,null,null,null,null,null,null,null,null,null,null,null,null,null,null,null,null,null,{"$f":"IF(AND(C636=\"\",LEN(E636)>0),LEN(E636),\"\")","v":""}]
[null,null,null,"音声内容"]
[null,315,null,"フリガナ",null,null,null,null,null,null,null,null,null,null,null,null,null,null,null,null,null,null,null,null,null,null,{"$f":"IF(AND(C638=\"\",LEN(E638)>0),LEN(E638),\"\")","v":""}]
[null,null,null,"音声内容"]
[null,316,null,"フリガナ",null,null,null,null,null,null,null,null,null,null,null,null,null,null,null,null,null,null,null,null,null,null,{"$f":"IF(AND(C640=\"\",LEN(E640)>0),LEN(E640),\"\")","v":""}]
[null,null,null,"音声内容"]
[null,317,null,"フリガナ",null,null,null,null,null,null,null,null,null,null,null,null,null,null,null,null,null,null,null,null,null,null,{"$f":"IF(AND(C642=\"\",LEN(E642)>0),LEN(E642),\"\")","v":""}]
[null,null,null,"音声内容"]
[null,318,null,"フリガナ",null,null,null,null,null,null,null,null,null,null,null,null,null,null,null,null,null,null,null,null,null,null,{"$f":"IF(AND(C644=\"\",LEN(E644)>0),LEN(E644),\"\")","v":""}]
[null,null,null,"音声内容"]
[null,319,null,"フリガナ",null,null,null,null,null,null,null,null,null,null,null,null,null,null,null,null,null,null,null,null,null,null,{"$f":"IF(AND(C646=\"\",LEN(E646)>0),LEN(E646),\"\")","v":""}]
[null,null,null,"音声内容"]
[null,320,null,"フリガナ",null,null,null,null,null,null,null,null,null,null,null,null,null,null,null,null,null,null,null,null,null,null,{"$f":"IF(AND(C648=\"\",LEN(E648)>0),LEN(E648),\"\")","v":""}]
[null,null,null,"音声内容"]
[null,321,null,"フリガナ",null,null,null,null,null,null,null,null,null,null,null,null,null,null,null,null,null,null,null,null,null,null,{"$f":"IF(AND(C650=\"\",LEN(E650)>0),LEN(E650),\"\")","v":""}]
[null,null,null,"音声内容"]
[null,322,null,"フリガナ",null,null,null,null,null,null,null,null,null,null,null,null,null,null,null,null,null,null,null,null,null,null,{"$f":"IF(AND(C652=\"\",LEN(E652)>0),LEN(E652),\"\")","v":""}]
[null,null,null,"音声内容"]
[null,323,null,"フリガナ",null,null,null,null,null,null,null,null,null,null,null,null,null,null,null,null,null,null,null,null,null,null,{"$f":"IF(AND(C654=\"\",LEN(E654)>0),LEN(E654),\"\")","v":""}]
[null,null,null,"音声内容"]
[null,324,null,"フリガナ",null,null,null,null,null,null,null,null,null,null,null,null,null,null,null,null,null,null,null,null,null,null,{"$f":"IF(AND(C656=\"\",LEN(E656)>0),LEN(E656),\"\")","v":""}]
[null,null,null,"音声内容"]
[null,325,null,"フリガナ",null,null,null,null,null,null,null,null,null,null,null,null,null,null,null,null,null,null,null,null,null,null,{"$f":"IF(AND(C658=\"\",LEN(E658)>0),LEN(E658),\"\")","v":""}]
[null,null,null,"音声内容"]
[null,326,null,"フリガナ",null,null,null,null,null,null,null,null,null,null,null,null,null,null,null,null,null,null,null,null,null,null,{"$f":"IF(AND(C660=\"\",LEN(E660)>0),LEN(E660),\"\")","v":""}]
[null,null,null,"音声内容"]
[null,327,null,"フリガナ",null,null,null,null,null,null,null,null,null,null,null,null,null,null,null,null,null,null,null,null,null,null,{"$f":"IF(AND(C662=\"\",LEN(E662)>0),LEN(E662),\"\")","v":""}]
[null,null,null,"音声内容"]
[null,328,null,"フリガナ",null,null,null,null,null,null,null,null,null,null,null,null,null,null,null,null,null,null,null,null,null,null,{"$f":"IF(AND(C664=\"\",LEN(E664)>0),LEN(E664),\"\")","v":""}]
[null,null,null,"音声内容"]
[null,329,null,"フリガナ",null,null,null,null,null,null,null,null,null,null,null,null,null,null,null,null,null,null,null,null,null,null,{"$f":"IF(AND(C666=\"\",LEN(E666)>0),LEN(E666),\"\")","v":""}]
[null,null,null,"音声内容"]
[null,330,null,"フリガナ",null,null,null,null,null,null,null,null,null,null,null,null,null,null,null,null,null,null,null,null,null,null,{"$f":"IF(AND(C668=\"\",LEN(E668)>0),LEN(E668),\"\")","v":""}]
[null,null,null,"音声内容"]
[null,331,null,"フリガナ",null,null,null,null,null,null,null,null,null,null,null,null,null,null,null,null,null,null,null,null,null,null,{"$f":"IF(AND(C670=\"\",LEN(E670)>0),LEN(E670),\"\")","v":""}]
[null,null,null,"音声内容"]
[null,332,null,"フリガナ",null,null,null,null,null,null,null,null,null,null,null,null,null,null,null,null,null,null,null,null,null,null,{"$f":"IF(AND(C672=\"\",LEN(E672)>0),LEN(E672),\"\")","v":""}]
[null,null,null,"音声内容"]
[null,333,null,"フリガナ",null,null,null,null,null,null,null,null,null,null,null,null,null,null,null,null,null,null,null,null,null,null,{"$f":"IF(AND(C674=\"\",LEN(E674)>0),LEN(E674),\"\")","v":""}]
[null,null,null,"音声内容"]
[null,334,null,"フリガナ",null,null,null,null,null,null,null,null,null,null,null,null,null,null,null,null,null,null,null,null,null,null,{"$f":"IF(AND(C676=\"\",LEN(E676)>0),LEN(E676),\"\")","v":""}]
[null,null,null,"音声内容"]
[null,335,null,"フリガナ",null,null,null,null,null,null,null,null,null,null,null,null,null,null,null,null,null,null,null,null,null,null,{"$f":"IF(AND(C678=\"\",LEN(E678)>0),LEN(E678),\"\")","v":""}]
[null,null,null,"音声内容"]
[null,336,null,"フリガナ",null,null,null,null,null,null,null,null,null,null,null,null,null,null,null,null,null,null,null,null,null,null,{"$f":"IF(AND(C680=\"\",LEN(E680)>0),LEN(E680),\"\")","v":""}]
[null,null,null,"音声内容"]
[null,337,null,"フリガナ",null,null,null,null,null,null,null,null,null,null,null,null,null,null,null,null,null,null,null,null,null,null,{"$f":"IF(AND(C682=\"\",LEN(E682)>0),LEN(E682),\"\")","v":""}]
[null,null,null,"音声内容"]
[null,338,null,"フリガナ",null,null,null,null,null,null,null,null,null,null,null,null,null,null,null,null,null,null,null,null,null,null,{"$f":"IF(AND(C684=\"\",LEN(E684)>0),LEN(E684),\"\")","v":""}]
[null,null,null,"音声内容"]
[null,339,null,"フリガナ",null,null,null,null,null,null,null,null,null,null,null,null,null,null,null,null,null,null,null,null,null,null,{"$f":"IF(AND(C686=\"\",LEN(E686)>0),LEN(E686),\"\")","v":""}]
[null,null,null,"音声内容"]
[null,340,null,"フリガナ",null,null,null,null,null,null,null,null,null,null,null,null,null,null,null,null,null,null,null,null,null,null,{"$f":"IF(AND(C688=\"\",LEN(E688)>0),LEN(E688),\"\")","v":""}]
[null,null,null,"音声内容"]
[null,341,null,"フリガナ",null,null,null,null,null,null,null,null,null,null,null,null,null,null,null,null,null,null,null,null,null,null,{"$f":"IF(AND(C690=\"\",LEN(E690)>0),LEN(E690),\"\")","v":""}]
[null,null,null,"音声内容"]
[null,342,null,"フリガナ",null,null,null,null,null,null,null,null,null,null,null,null,null,null,null,null,null,null,null,null,null,null,{"$f":"IF(AND(C692=\"\",LEN(E692)>0),LEN(E692),\"\")","v":""}]
[null,null,null,"音声内容"]
[null,343,null,"フリガナ",null,null,null,null,null,null,null,null,null,null,null,null,null,null,null,null,null,null,null,null,null,null,{"$f":"IF(AND(C694=\"\",LEN(E694)>0),LEN(E694),\"\")","v":""}]
[null,null,null,"音声内容"]
[null,344,null,"フリガナ",null,null,null,null,null,null,null,null,null,null,null,null,null,null,null,null,null,null,null,null,null,null,{"$f":"IF(AND(C696=\"\",LEN(E696)>0),LEN(E696),\"\")","v":""}]
[null,null,null,"音声内容"]
[null,345,null,"フリガナ",null,null,null,null,null,null,null,null,null,null,null,null,null,null,null,null,null,null,null,null,null,null,{"$f":"IF(AND(C698=\"\",LEN(E698)>0),LEN(E698),\"\")","v":""}]
[null,null,null,"音声内容"]
[null,346,null,"フリガナ",null,null,null,null,null,null,null,null,null,null,null,null,null,null,null,null,null,null,null,null,null,null,{"$f":"IF(AND(C700=\"\",LEN(E700)>0),LEN(E700),\"\")","v":""}]
[null,null,null,"音声内容"]
[null,347,null,"フリガナ",null,null,null,null,null,null,null,null,null,null,null,null,null,null,null,null,null,null,null,null,null,null,{"$f":"IF(AND(C702=\"\",LEN(E702)>0),LEN(E702),\"\")","v":""}]
[null,null,null,"音声内容"]
[null,348,null,"フリガナ",null,null,null,null,null,null,null,null,null,null,null,null,null,null,null,null,null,null,null,null,null,null,{"$f":"IF(AND(C704=\"\",LEN(E704)>0),LEN(E704),\"\")","v":""}]
[null,null,null,"音声内容"]
[null,349,null,"フリガナ",null,null,null,null,null,null,null,null,null,null,null,null,null,null,null,null,null,null,null,null,null,null,{"$f":"IF(AND(C706=\"\",LEN(E706)>0),LEN(E706),\"\")","v":""}]
[null,null,null,"音声内容"]
[null,350,null,"フリガナ",null,null,null,null,null,null,null,null,null,null,null,null,null,null,null,null,null,null,null,null,null,null,{"$f":"IF(AND(C708=\"\",LEN(E708)>0),LEN(E708),\"\")","v":""}]
[null,null,null,"音声内容"]
[null,351,null,"フリガナ",null,null,null,null,null,null,null,null,null,null,null,null,null,null,null,null,null,null,null,null,null,null,{"$f":"IF(AND(C710=\"\",LEN(E710)>0),LEN(E710),\"\")","v":""}]
[null,null,null,"音声内容"]
[null,352,null,"フリガナ",null,null,null,null,null,null,null,null,null,null,null,null,null,null,null,null,null,null,null,null,null,null,{"$f":"IF(AND(C712=\"\",LEN(E712)>0),LEN(E712),\"\")","v":""}]
[null,null,null,"音声内容"]
[null,353,null,"フリガナ",null,null,null,null,null,null,null,null,null,null,null,null,null,null,null,null,null,null,null,null,null,null,{"$f":"IF(AND(C714=\"\",LEN(E714)>0),LEN(E714),\"\")","v":""}]
[null,null,null,"音声内容"]
[null,354,null,"フリガナ",null,null,null,null,null,null,null,null,null,null,null,null,null,null,null,null,null,null,null,null,null,null,{"$f":"IF(AND(C716=\"\",LEN(E716)>0),LEN(E716),\"\")","v":""}]
[null,null,null,"音声内容"]
[null,355,null,"フリガナ",null,null,null,null,null,null,null,null,null,null,null,null,null,null,null,null,null,null,null,null,null,null,{"$f":"IF(AND(C718=\"\",LEN(E718)>0),LEN(E718),\"\")","v":""}]
[null,null,null,"音声内容"]
[null,356,null,"フリガナ",null,null,null,null,null,null,null,null,null,null,null,null,null,null,null,null,null,null,null,null,null,null,{"$f":"IF(AND(C720=\"\",LEN(E720)>0),LEN(E720),\"\")","v":""}]
[null,null,null,"音声内容"]
[null,357,null,"フリガナ",null,null,null,null,null,null,null,null,null,null,null,null,null,null,null,null,null,null,null,null,null,null,{"$f":"IF(AND(C722=\"\",LEN(E722)>0),LEN(E722),\"\")","v":""}]
[null,null,null,"音声内容"]
[null,358,null,"フリガナ",null,null,null,null,null,null,null,null,null,null,null,null,null,null,null,null,null,null,null,null,null,null,{"$f":"IF(AND(C724=\"\",LEN(E724)>0),LEN(E724),\"\")","v":""}]
[null,null,null,"音声内容"]
[null,359,null,"フリガナ",null,null,null,null,null,null,null,null,null,null,null,null,null,null,null,null,null,null,null,null,null,null,{"$f":"IF(AND(C726=\"\",LEN(E726)>0),LEN(E726),\"\")","v":""}]
[null,null,null,"音声内容"]
[null,360,null,"フリガナ",null,null,null,null,null,null,null,null,null,null,null,null,null,null,null,null,null,null,null,null,null,null,{"$f":"IF(AND(C728=\"\",LEN(E728)>0),LEN(E728),\"\")","v":""}]
[null,null,null,"音声内容"]
[null,361,null,"フリガナ",null,null,null,null,null,null,null,null,null,null,null,null,null,null,null,null,null,null,null,null,null,null,{"$f":"IF(AND(C730=\"\",LEN(E730)>0),LEN(E730),\"\")","v":""}]
[null,null,null,"音声内容"]
[null,362,null,"フリガナ",null,null,null,null,null,null,null,null,null,null,null,null,null,null,null,null,null,null,null,null,null,null,{"$f":"IF(AND(C732=\"\",LEN(E732)>0),LEN(E732),\"\")","v":""}]
[null,null,null,"音声内容"]
[null,363,null,"フリガナ",null,null,null,null,null,null,null,null,null,null,null,null,null,null,null,null,null,null,null,null,null,null,{"$f":"IF(AND(C734=\"\",LEN(E734)>0),LEN(E734),\"\")","v":""}]
[null,null,null,"音声内容"]
[null,364,null,"フリガナ",null,null,null,null,null,null,null,null,null,null,null,null,null,null,null,null,null,null,null,null,null,null,{"$f":"IF(AND(C736=\"\",LEN(E736)>0),LEN(E736),\"\")","v":""}]
[null,null,null,"音声内容"]
[null,365,null,"フリガナ",null,null,null,null,null,null,null,null,null,null,null,null,null,null,null,null,null,null,null,null,null,null,{"$f":"IF(AND(C738=\"\",LEN(E738)>0),LEN(E738),\"\")","v":""}]
[null,null,null,"音声内容"]
[null,366,null,"フリガナ",null,null,null,null,null,null,null,null,null,null,null,null,null,null,null,null,null,null,null,null,null,null,{"$f":"IF(AND(C740=\"\",LEN(E740)>0),LEN(E740),\"\")","v":""}]
[null,null,null,"音声内容"]
[null,367,null,"フリガナ",null,null,null,null,null,null,null,null,null,null,null,null,null,null,null,null,null,null,null,null,null,null,{"$f":"IF(AND(C742=\"\",LEN(E742)>0),LEN(E742),\"\")","v":""}]
[null,null,null,"音声内容"]
[null,368,null,"フリガナ",null,null,null,null,null,null,null,null,null,null,null,null,null,null,null,null,null,null,null,null,null,null,{"$f":"IF(AND(C744=\"\",LEN(E744)>0),LEN(E744),\"\")","v":""}]
[null,null,null,"音声内容"]
[null,369,null,"フリガナ",null,null,null,null,null,null,null,null,null,null,null,null,null,null,null,null,null,null,null,null,null,null,{"$f":"IF(AND(C746=\"\",LEN(E746)>0),LEN(E746),\"\")","v":""}]
[null,null,null,"音声内容"]
[null,370,null,"フリガナ",null,null,null,null,null,null,null,null,null,null,null,null,null,null,null,null,null,null,null,null,null,null,{"$f":"IF(AND(C748=\"\",LEN(E748)>0),LEN(E748),\"\")","v":""}]
[null,null,null,"音声内容"]
[null,371,null,"フリガナ",null,null,null,null,null,null,null,null,null,null,null,null,null,null,null,null,null,null,null,null,null,null,{"$f":"IF(AND(C750=\"\",LEN(E750)>0),LEN(E750),\"\")","v":""}]
[null,null,null,"音声内容"]
[null,372,null,"フリガナ",null,null,null,null,null,null,null,null,null,null,null,null,null,null,null,null,null,null,null,null,null,null,{"$f":"IF(AND(C752=\"\",LEN(E752)>0),LEN(E752),\"\")","v":""}]
[null,null,null,"音声内容"]
[null,373,null,"フリガナ",null,null,null,null,null,null,null,null,null,null,null,null,null,null,null,null,null,null,null,null,null,null,{"$f":"IF(AND(C754=\"\",LEN(E754)>0),LEN(E754),\"\")","v":""}]
[null,null,null,"音声内容"]
[null,374,null,"フリガナ",null,null,null,null,null,null,null,null,null,null,null,null,null,null,null,null,null,null,null,null,null,null,{"$f":"IF(AND(C756=\"\",LEN(E756)>0),LEN(E756),\"\")","v":""}]
[null,null,null,"音声内容"]
[null,375,null,"フリガナ",null,null,null,null,null,null,null,null,null,null,null,null,null,null,null,null,null,null,null,null,null,null,{"$f":"IF(AND(C758=\"\",LEN(E758)>0),LEN(E758),\"\")","v":""}]
[null,null,null,"音声内容"]
[null,376,null,"フリガナ",null,null,null,null,null,null,null,null,null,null,null,null,null,null,null,null,null,null,null,null,null,null,{"$f":"IF(AND(C760=\"\",LEN(E760)>0),LEN(E760),\"\")","v":""}]
[null,null,null,"音声内容"]
[null,377,null,"フリガナ",null,null,null,null,null,null,null,null,null,null,null,null,null,null,null,null,null,null,null,null,null,null,{"$f":"IF(AND(C762=\"\",LEN(E762)>0),LEN(E762),\"\")","v":""}]
[null,null,null,"音声内容"]
[null,378,null,"フリガナ",null,null,null,null,null,null,null,null,null,null,null,null,null,null,null,null,null,null,null,null,null,null,{"$f":"IF(AND(C764=\"\",LEN(E764)>0),LEN(E764),\"\")","v":""}]
[null,null,null,"音声内容"]
[null,379,null,"フリガナ",null,null,null,null,null,null,null,null,null,null,null,null,null,null,null,null,null,null,null,null,null,null,{"$f":"IF(AND(C766=\"\",LEN(E766)>0),LEN(E766),\"\")","v":""}]
[null,null,null,"音声内容"]
[null,380,null,"フリガナ",null,null,null,null,null,null,null,null,null,null,null,null,null,null,null,null,null,null,null,null,null,null,{"$f":"IF(AND(C768=\"\",LEN(E768)>0),LEN(E768),\"\")","v":""}]
[null,null,null,"音声内容"]
[null,381,null,"フリガナ",null,null,null,null,null,null,null,null,null,null,null,null,null,null,null,null,null,null,null,null,null,null,{"$f":"IF(AND(C770=\"\",LEN(E770)>0),LEN(E770),\"\")","v":""}]
[null,null,null,"音声内容"]
[null,382,null,"フリガナ",null,null,null,null,null,null,null,null,null,null,null,null,null,null,null,null,null,null,null,null,null,null,{"$f":"IF(AND(C772=\"\",LEN(E772)>0),LEN(E772),\"\")","v":""}]
[null,null,null,"音声内容"]
[null,383,null,"フリガナ",null,null,null,null,null,null,null,null,null,null,null,null,null,null,null,null,null,null,null,null,null,null,{"$f":"IF(AND(C774=\"\",LEN(E774)>0),LEN(E774),\"\")","v":""}]
[null,null,null,"音声内容"]
[null,384,null,"フリガナ",null,null,null,null,null,null,null,null,null,null,null,null,null,null,null,null,null,null,null,null,null,null,{"$f":"IF(AND(C776=\"\",LEN(E776)>0),LEN(E776),\"\")","v":""}]
[null,null,null,"音声内容"]
[null,385,null,"フリガナ",null,null,null,null,null,null,null,null,null,null,null,null,null,null,null,null,null,null,null,null,null,null,{"$f":"IF(AND(C778=\"\",LEN(E778)>0),LEN(E778),\"\")","v":""}]
[null,null,null,"音声内容"]
[null,386,null,"フリガナ",null,null,null,null,null,null,null,null,null,null,null,null,null,null,null,null,null,null,null,null,null,null,{"$f":"IF(AND(C780=\"\",LEN(E780)>0),LEN(E780),\"\")","v":""}]
[null,null,null,"音声内容"]
[null,387,null,"フリガナ",null,null,null,null,null,null,null,null,null,null,null,null,null,null,null,null,null,null,null,null,null,null,{"$f":"IF(AND(C782=\"\",LEN(E782)>0),LEN(E782),\"\")","v":""}]
[null,null,null,"音声内容"]
[null,388,null,"フリガナ",null,null,null,null,null,null,null,null,null,null,null,null,null,null,null,null,null,null,null,null,null,null,{"$f":"IF(AND(C784=\"\",LEN(E784)>0),LEN(E784),\"\")","v":""}]
[null,null,null,"音声内容"]
[null,389,null,"フリガナ",null,null,null,null,null,null,null,null,null,null,null,null,null,null,null,null,null,null,null,null,null,null,{"$f":"IF(AND(C786=\"\",LEN(E786)>0),LEN(E786),\"\")","v":""}]
[null,null,null,"音声内容"]
[null,390,null,"フリガナ",null,null,null,null,null,null,null,null,null,null,null,null,null,null,null,null,null,null,null,null,null,null,{"$f":"IF(AND(C788=\"\",LEN(E788)>0),LEN(E788),\"\")","v":""}]
[null,null,null,"音声内容"]
[null,391,null,"フリガナ",null,null,null,null,null,null,null,null,null,null,null,null,null,null,null,null,null,null,null,null,null,null,{"$f":"IF(AND(C790=\"\",LEN(E790)>0),LEN(E790),\"\")","v":""}]
[null,null,null,"音声内容"]
[null,392,null,"フリガナ",null,null,null,null,null,null,null,null,null,null,null,null,null,null,null,null,null,null,null,null,null,null,{"$f":"IF(AND(C792=\"\",LEN(E792)>0),LEN(E792),\"\")","v":""}]
[null,null,null,"音声内容"]
[null,393,null,"フリガナ",null,null,null,null,null,null,null,null,null,null,null,null,null,null,null,null,null,null,null,null,null,null,{"$f":"IF(AND(C794=\"\",LEN(E794)>0),LEN(E794),\"\")","v":""}]
[null,null,null,"音声内容"]
[null,394,null,"フリガナ",null,null,null,null,null,null,null,null,null,null,null,null,null,null,null,null,null,null,null,null,null,null,{"$f":"IF(AND(C796=\"\",LEN(E796)>0),LEN(E796),\"\")","v":""}]
[null,null,null,"音声内容"]
[null,395,null,"フリガナ",null,null,null,null,null,null,null,null,null,null,null,null,null,null,null,null,null,null,null,null,null,null,{"$f":"IF(AND(C798=\"\",LEN(E798)>0),LEN(E798),\"\")","v":""}]
[null,null,null,"音声内容"]
[null,396,null,"フリガナ",null,null,null,null,null,null,null,null,null,null,null,null,null,null,null,null,null,null,null,null,null,null,{"$f":"IF(AND(C800=\"\",LEN(E800)>0),LEN(E800),\"\")","v":""}]
[null,null,null,"音声内容"]
[null,397,null,"フリガナ",null,null,null,null,null,null,null,null,null,null,null,null,null,null,null,null,null,null,null,null,null,null,{"$f":"IF(AND(C802=\"\",LEN(E802)>0),LEN(E802),\"\")","v":""}]
[null,null,null,"音声内容"]
[null,398,null,"フリガナ",null,null,null,null,null,null,null,null,null,null,null,null,null,null,null,null,null,null,null,null,null,null,{"$f":"IF(AND(C804=\"\",LEN(E804)>0),LEN(E804),\"\")","v":""}]
[null,null,null,"音声内容"]
[null,399,null,"フリガナ",null,null,null,null,null,null,null,null,null,null,null,null,null,null,null,null,null,null,null,null,null,null,{"$f":"IF(AND(C806=\"\",LEN(E806)>0),LEN(E806),\"\")","v":""}]
[null,null,null,"音声内容"]
[null,400,null,"フリガナ",null,null,null,null,null,null,null,null,null,null,null,null,null,null,null,null,null,null,null,null,null,null,{"$f":"IF(AND(C808=\"\",LEN(E808)>0),LEN(E808),\"\")","v":""}]
[null,null,null,"音声内容"]
[null,401,null,"フリガナ",null,null,null,null,null,null,null,null,null,null,null,null,null,null,null,null,null,null,null,null,null,null,{"$f":"IF(AND(C810=\"\",LEN(E810)>0),LEN(E810),\"\")","v":""}]
[null,null,null,"音声内容"]
[null,402,null,"フリガナ",null,null,null,null,null,null,null,null,null,null,null,null,null,null,null,null,null,null,null,null,null,null,{"$f":"IF(AND(C812=\"\",LEN(E812)>0),LEN(E812),\"\")","v":""}]
[null,null,null,"音声内容"]
[null,403,null,"フリガナ",null,null,null,null,null,null,null,null,null,null,null,null,null,null,null,null,null,null,null,null,null,null,{"$f":"IF(AND(C814=\"\",LEN(E814)>0),LEN(E814),\"\")","v":""}]
[null,null,null,"音声内容"]
[null,404,null,"フリガナ",null,null,null,null,null,null,null,null,null,null,null,null,null,null,null,null,null,null,null,null,null,null,{"$f":"IF(AND(C816=\"\",LEN(E816)>0),LEN(E816),\"\")","v":""}]
[null,null,null,"音声内容"]
[null,405,null,"フリガナ",null,null,null,null,null,null,null,null,null,null,null,null,null,null,null,null,null,null,null,null,null,null,{"$f":"IF(AND(C818=\"\",LEN(E818)>0),LEN(E818),\"\")","v":""}]
[null,null,null,"音声内容"]
[null,406,null,"フリガナ",null,null,null,null,null,null,null,null,null,null,null,null,null,null,null,null,null,null,null,null,null,null,{"$f":"IF(AND(C820=\"\",LEN(E820)>0),LEN(E820),\"\")","v":""}]
[null,null,null,"音声内容"]
[null,407,null,"フリガナ",null,null,null,null,null,null,null,null,null,null,null,null,null,null,null,null,null,null,null,null,null,null,{"$f":"IF(AND(C822=\"\",LEN(E822)>0),LEN(E822),\"\")","v":""}]
[null,null,null,"音声内容"]
[null,408,null,"フリガナ",null,null,null,null,null,null,null,null,null,null,null,null,null,null,null,null,null,null,null,null,null,null,{"$f":"IF(AND(C824=\"\",LEN(E824)>0),LEN(E824),\"\")","v":""}]
[null,null,null,"音声内容"]
[null,409,null,"フリガナ",null,null,null,null,null,null,null,null,null,null,null,null,null,null,null,null,null,null,null,null,null,null,{"$f":"IF(AND(C826=\"\",LEN(E826)>0),LEN(E826),\"\")","v":""}]
[null,null,null,"音声内容"]
[null,410,null,"フリガナ",null,null,null,null,null,null,null,null,null,null,null,null,null,null,null,null,null,null,null,null,null,null,{"$f":"IF(AND(C828=\"\",LEN(E828)>0),LEN(E828),\"\")","v":""}]
[null,null,null,"音声内容"]
[null,411,null,"フリガナ",null,null,null,null,null,null,null,null,null,null,null,null,null,null,null,null,null,null,null,null,null,null,{"$f":"IF(AND(C830=\"\",LEN(E830)>0),LEN(E830),\"\")","v":""}]
[null,null,null,"音声内容"]
[null,412,null,"フリガナ",null,null,null,null,null,null,null,null,null,null,null,null,null,null,null,null,null,null,null,null,null,null,{"$f":"IF(AND(C832=\"\",LEN(E832)>0),LEN(E832),\"\")","v":""}]
[null,null,null,"音声内容"]
[null,413,null,"フリガナ",null,null,null,null,null,null,null,null,null,null,null,null,null,null,null,null,null,null,null,null,null,null,{"$f":"IF(AND(C834=\"\",LEN(E834)>0),LEN(E834),\"\")","v":""}]
[null,null,null,"音声内容"]
[null,414,null,"フリガナ",null,null,null,null,null,null,null,null,null,null,null,null,null,null,null,null,null,null,null,null,null,null,{"$f":"IF(AND(C836=\"\",LEN(E836)>0),LEN(E836),\"\")","v":""}]
[null,null,null,"音声内容"]
[null,415,null,"フリガナ",null,null,null,null,null,null,null,null,null,null,null,null,null,null,null,null,null,null,null,null,null,null,{"$f":"IF(AND(C838=\"\",LEN(E838)>0),LEN(E838),\"\")","v":""}]
[null,null,null,"音声内容"]
[null,416,null,"フリガナ",null,null,null,null,null,null,null,null,null,null,null,null,null,null,null,null,null,null,null,null,null,null,{"$f":"IF(AND(C840=\"\",LEN(E840)>0),LEN(E840),\"\")","v":""}]
[null,null,null,"音声内容"]
[null,417,null,"フリガナ",null,null,null,null,null,null,null,null,null,null,null,null,null,null,null,null,null,null,null,null,null,null,{"$f":"IF(AND(C842=\"\",LEN(E842)>0),LEN(E842),\"\")","v":""}]
[null,null,null,"音声内容"]
[null,418,null,"フリガナ",null,null,null,null,null,null,null,null,null,null,null,null,null,null,null,null,null,null,null,null,null,null,{"$f":"IF(AND(C844=\"\",LEN(E844)>0),LEN(E844),\"\")","v":""}]
[null,null,null,"音声内容"]
[null,419,null,"フリガナ",null,null,null,null,null,null,null,null,null,null,null,null,null,null,null,null,null,null,null,null,null,null,{"$f":"IF(AND(C846=\"\",LEN(E846)>0),LEN(E846),\"\")","v":""}]
[null,null,null,"音声内容"]
[null,420,null,"フリガナ",null,null,null,null,null,null,null,null,null,null,null,null,null,null,null,null,null,null,null,null,null,null,{"$f":"IF(AND(C848=\"\",LEN(E848)>0),LEN(E848),\"\")","v":""}]
[null,null,null,"音声内容"]
[null,421,null,"フリガナ",null,null,null,null,null,null,null,null,null,null,null,null,null,null,null,null,null,null,null,null,null,null,{"$f":"IF(AND(C850=\"\",LEN(E850)>0),LEN(E850),\"\")","v":""}]
[null,null,null,"音声内容"]
[null,422,null,"フリガナ",null,null,null,null,null,null,null,null,null,null,null,null,null,null,null,null,null,null,null,null,null,null,{"$f":"IF(AND(C852=\"\",LEN(E852)>0),LEN(E852),\"\")","v":""}]
[null,null,null,"音声内容"]
[null,423,null,"フリガナ",null,null,null,null,null,null,null,null,null,null,null,null,null,null,null,null,null,null,null,null,null,null,{"$f":"IF(AND(C854=\"\",LEN(E854)>0),LEN(E854),\"\")","v":""}]
[null,null,null,"音声内容"]
[null,424,null,"フリガナ",null,null,null,null,null,null,null,null,null,null,null,null,null,null,null,null,null,null,null,null,null,null,{"$f":"IF(AND(C856=\"\",LEN(E856)>0),LEN(E856),\"\")","v":""}]
[null,null,null,"音声内容"]
[null,425,null,"フリガナ",null,null,null,null,null,null,null,null,null,null,null,null,null,null,null,null,null,null,null,null,null,null,{"$f":"IF(AND(C858=\"\",LEN(E858)>0),LEN(E858),\"\")","v":""}]
[null,null,null,"音声内容"]
[null,426,null,"フリガナ",null,null,null,null,null,null,null,null,null,null,null,null,null,null,null,null,null,null,null,null,null,null,{"$f":"IF(AND(C860=\"\",LEN(E860)>0),LEN(E860),\"\")","v":""}]
[null,null,null,"音声内容"]
[null,427,null,"フリガナ",null,null,null,null,null,null,null,null,null,null,null,null,null,null,null,null,null,null,null,null,null,null,{"$f":"IF(AND(C862=\"\",LEN(E862)>0),LEN(E862),\"\")","v":""}]
[null,null,null,"音声内容"]
[null,428,null,"フリガナ",null,null,null,null,null,null,null,null,null,null,null,null,null,null,null,null,null,null,null,null,null,null,{"$f":"IF(AND(C864=\"\",LEN(E864)>0),LEN(E864),\"\")","v":""}]
[null,null,null,"音声内容"]
[null,429,null,"フリガナ",null,null,null,null,null,null,null,null,null,null,null,null,null,null,null,null,null,null,null,null,null,null,{"$f":"IF(AND(C866=\"\",LEN(E866)>0),LEN(E866),\"\")","v":""}]
[null,null,null,"音声内容"]
[null,430,null,"フリガナ",null,null,null,null,null,null,null,null,null,null,null,null,null,null,null,null,null,null,null,null,null,null,{"$f":"IF(AND(C868=\"\",LEN(E868)>0),LEN(E868),\"\")","v":""}]
[null,null,null,"音声内容"]
[null,431,null,"フリガナ",null,null,null,null,null,null,null,null,null,null,null,null,null,null,null,null,null,null,null,null,null,null,{"$f":"IF(AND(C870=\"\",LEN(E870)>0),LEN(E870),\"\")","v":""}]
[null,null,null,"音声内容"]
[null,432,null,"フリガナ",null,null,null,null,null,null,null,null,null,null,null,null,null,null,null,null,null,null,null,null,null,null,{"$f":"IF(AND(C872=\"\",LEN(E872)>0),LEN(E872),\"\")","v":""}]
[null,null,null,"音声内容"]
[null,433,null,"フリガナ",null,null,null,null,null,null,null,null,null,null,null,null,null,null,null,null,null,null,null,null,null,null,{"$f":"IF(AND(C874=\"\",LEN(E874)>0),LEN(E874),\"\")","v":""}]
[null,null,null,"音声内容"]
[null,434,null,"フリガナ",null,null,null,null,null,null,null,null,null,null,null,null,null,null,null,null,null,null,null,null,null,null,{"$f":"IF(AND(C876=\"\",LEN(E876)>0),LEN(E876),\"\")","v":""}]
[null,null,null,"音声内容"]
[null,435,null,"フリガナ",null,null,null,null,null,null,null,null,null,null,null,null,null,null,null,null,null,null,null,null,null,null,{"$f":"IF(AND(C878=\"\",LEN(E878)>0),LEN(E878),\"\")","v":""}]
[null,null,null,"音声内容"]
[null,436,null,"フリガナ",null,null,null,null,null,null,null,null,null,null,null,null,null,null,null,null,null,null,null,null,null,null,{"$f":"IF(AND(C880=\"\",LEN(E880)>0),LEN(E880),\"\")","v":""}]
[null,null,null,"音声内容"]
[null,437,null,"フリガナ",null,null,null,null,null,null,null,null,null,null,null,null,null,null,null,null,null,null,null,null,null,null,{"$f":"IF(AND(C882=\"\",LEN(E882)>0),LEN(E882),\"\")","v":""}]
[null,null,null,"音声内容"]
[null,438,null,"フリガナ",null,null,null,null,null,null,null,null,null,null,null,null,null,null,null,null,null,null,null,null,null,null,{"$f":"IF(AND(C884=\"\",LEN(E884)>0),LEN(E884),\"\")","v":""}]
[null,null,null,"音声内容"]
[null,439,null,"フリガナ",null,null,null,null,null,null,null,null,null,null,null,null,null,null,null,null,null,null,null,null,null,null,{"$f":"IF(AND(C886=\"\",LEN(E886)>0),LEN(E886),\"\")","v":""}]
[null,null,null,"音声内容"]
[null,440,null,"フリガナ",null,null,null,null,null,null,null,null,null,null,null,null,null,null,null,null,null,null,null,null,null,null,{"$f":"IF(AND(C888=\"\",LEN(E888)>0),LEN(E888),\"\")","v":""}]
[null,null,null,"音声内容"]
[null,441,null,"フリガナ",null,null,null,null,null,null,null,null,null,null,null,null,null,null,null,null,null,null,null,null,null,null,{"$f":"IF(AND(C890=\"\",LEN(E890)>0),LEN(E890),\"\")","v":""}]
[null,null,null,"音声内容"]
[null,442,null,"フリガナ",null,null,null,null,null,null,null,null,null,null,null,null,null,null,null,null,null,null,null,null,null,null,{"$f":"IF(AND(C892=\"\",LEN(E892)>0),LEN(E892),\"\")","v":""}]
[null,null,null,"音声内容"]
[null,443,null,"フリガナ",null,null,null,null,null,null,null,null,null,null,null,null,null,null,null,null,null,null,null,null,null,null,{"$f":"IF(AND(C894=\"\",LEN(E894)>0),LEN(E894),\"\")","v":""}]
[null,null,null,"音声内容"]
[null,444,null,"フリガナ",null,null,null,null,null,null,null,null,null,null,null,null,null,null,null,null,null,null,null,null,null,null,{"$f":"IF(AND(C896=\"\",LEN(E896)>0),LEN(E896),\"\")","v":""}]
[null,null,null,"音声内容"]
[null,445,null,"フリガナ",null,null,null,null,null,null,null,null,null,null,null,null,null,null,null,null,null,null,null,null,null,null,{"$f":"IF(AND(C898=\"\",LEN(E898)>0),LEN(E898),\"\")","v":""}]
[null,null,null,"音声内容"]
[null,446,null,"フリガナ",null,null,null,null,null,null,null,null,null,null,null,null,null,null,null,null,null,null,null,null,null,null,{"$f":"IF(AND(C900=\"\",LEN(E900)>0),LEN(E900),\"\")","v":""}]
[null,null,null,"音声内容"]
[null,447,null,"フリガナ",null,null,null,null,null,null,null,null,null,null,null,null,null,null,null,null,null,null,null,null,null,null,{"$f":"IF(AND(C902=\"\",LEN(E902)>0),LEN(E902),\"\")","v":""}]
[null,null,null,"音声内容"]
[null,448,null,"フリガナ",null,null,null,null,null,null,null,null,null,null,null,null,null,null,null,null,null,null,null,null,null,null,{"$f":"IF(AND(C904=\"\",LEN(E904)>0),LEN(E904),\"\")","v":""}]
[null,null,null,"音声内容"]
[null,449,null,"フリガナ",null,null,null,null,null,null,null,null,null,null,null,null,null,null,null,null,null,null,null,null,null,null,{"$f":"IF(AND(C906=\"\",LEN(E906)>0),LEN(E906),\"\")","v":""}]
[null,null,null,"音声内容"]
[null,450,null,"フリガナ",null,null,null,null,null,null,null,null,null,null,null,null,null,null,null,null,null,null,null,null,null,null,{"$f":"IF(AND(C908=\"\",LEN(E908)>0),LEN(E908),\"\")","v":""}]
[null,null,null,"音声内容"]
[null,451,null,"フリガナ",null,null,null,null,null,null,null,null,null,null,null,null,null,null,null,null,null,null,null,null,null,null,{"$f":"IF(AND(C910=\"\",LEN(E910)>0),LEN(E910),\"\")","v":""}]
[null,null,null,"音声内容"]
[null,452,null,"フリガナ",null,null,null,null,null,null,null,null,null,null,null,null,null,null,null,null,null,null,null,null,null,null,{"$f":"IF(AND(C912=\"\",LEN(E912)>0),LEN(E912),\"\")","v":""}]
[null,null,null,"音声内容"]
[null,453,null,"フリガナ",null,null,null,null,null,null,null,null,null,null,null,null,null,null,null,null,null,null,null,null,null,null,{"$f":"IF(AND(C914=\"\",LEN(E914)>0),LEN(E914),\"\")","v":""}]
[null,null,null,"音声内容"]
[null,454,null,"フリガナ",null,null,null,null,null,null,null,null,null,null,null,null,null,null,null,null,null,null,null,null,null,null,{"$f":"IF(AND(C916=\"\",LEN(E916)>0),LEN(E916),\"\")","v":""}]
[null,null,null,"音声内容"]
[null,455,null,"フリガナ",null,null,null,null,null,null,null,null,null,null,null,null,null,null,null,null,null,null,null,null,null,null,{"$f":"IF(AND(C918=\"\",LEN(E918)>0),LEN(E918),\"\")","v":""}]
[null,null,null,"音声内容"]
[null,456,null,"フリガナ",null,null,null,null,null,null,null,null,null,null,null,null,null,null,null,null,null,null,null,null,null,null,{"$f":"IF(AND(C920=\"\",LEN(E920)>0),LEN(E920),\"\")","v":""}]
[null,null,null,"音声内容"]
[null,457,null,"フリガナ",null,null,null,null,null,null,null,null,null,null,null,null,null,null,null,null,null,null,null,null,null,null,{"$f":"IF(AND(C922=\"\",LEN(E922)>0),LEN(E922),\"\")","v":""}]
[null,null,null,"音声内容"]
[null,458,null,"フリガナ",null,null,null,null,null,null,null,null,null,null,null,null,null,null,null,null,null,null,null,null,null,null,{"$f":"IF(AND(C924=\"\",LEN(E924)>0),LEN(E924),\"\")","v":""}]
[null,null,null,"音声内容"]
[null,459,null,"フリガナ",null,null,null,null,null,null,null,null,null,null,null,null,null,null,null,null,null,null,null,null,null,null,{"$f":"IF(AND(C926=\"\",LEN(E926)>0),LEN(E926),\"\")","v":""}]
[null,null,null,"音声内容"]
[null,460,null,"フリガナ",null,null,null,null,null,null,null,null,null,null,null,null,null,null,null,null,null,null,null,null,null,null,{"$f":"IF(AND(C928=\"\",LEN(E928)>0),LEN(E928),\"\")","v":""}]
[null,null,null,"音声内容"]
[null,461,null,"フリガナ",null,null,null,null,null,null,null,null,null,null,null,null,null,null,null,null,null,null,null,null,null,null,{"$f":"IF(AND(C930=\"\",LEN(E930)>0),LEN(E930),\"\")","v":""}]
[null,null,null,"音声内容"]
[null,462,null,"フリガナ",null,null,null,null,null,null,null,null,null,null,null,null,null,null,null,null,null,null,null,null,null,null,{"$f":"IF(AND(C932=\"\",LEN(E932)>0),LEN(E932),\"\")","v":""}]
[null,null,null,"音声内容"]
[null,463,null,"フリガナ",null,null,null,null,null,null,null,null,null,null,null,null,null,null,null,null,null,null,null,null,null,null,{"$f":"IF(AND(C934=\"\",LEN(E934)>0),LEN(E934),\"\")","v":""}]
[null,null,null,"音声内容"]
[null,464,null,"フリガナ",null,null,null,null,null,null,null,null,null,null,null,null,null,null,null,null,null,null,null,null,null,null,{"$f":"IF(AND(C936=\"\",LEN(E936)>0),LEN(E936),\"\")","v":""}]
[null,null,null,"音声内容"]
[null,465,null,"フリガナ",null,null,null,null,null,null,null,null,null,null,null,null,null,null,null,null,null,null,null,null,null,null,{"$f":"IF(AND(C938=\"\",LEN(E938)>0),LEN(E938),\"\")","v":""}]
[null,null,null,"音声内容"]
[null,466,null,"フリガナ",null,null,null,null,null,null,null,null,null,null,null,null,null,null,null,null,null,null,null,null,null,null,{"$f":"IF(AND(C940=\"\",LEN(E940)>0),LEN(E940),\"\")","v":""}]
[null,null,null,"音声内容"]
[null,467,null,"フリガナ",null,null,null,null,null,null,null,null,null,null,null,null,null,null,null,null,null,null,null,null,null,null,{"$f":"IF(AND(C942=\"\",LEN(E942)>0),LEN(E942),\"\")","v":""}]
[null,null,null,"音声内容"]
[null,468,null,"フリガナ",null,null,null,null,null,null,null,null,null,null,null,null,null,null,null,null,null,null,null,null,null,null,{"$f":"IF(AND(C944=\"\",LEN(E944)>0),LEN(E944),\"\")","v":""}]
[null,null,null,"音声内容"]
[null,469,null,"フリガナ",null,null,null,null,null,null,null,null,null,null,null,null,null,null,null,null,null,null,null,null,null,null,{"$f":"IF(AND(C946=\"\",LEN(E946)>0),LEN(E946),\"\")","v":""}]
[null,null,null,"音声内容"]
[null,470,null,"フリガナ",null,null,null,null,null,null,null,null,null,null,null,null,null,null,null,null,null,null,null,null,null,null,{"$f":"IF(AND(C948=\"\",LEN(E948)>0),LEN(E948),\"\")","v":""}]
[null,null,null,"音声内容"]
[null,471,null,"フリガナ",null,null,null,null,null,null,null,null,null,null,null,null,null,null,null,null,null,null,null,null,null,null,{"$f":"IF(AND(C950=\"\",LEN(E950)>0),LEN(E950),\"\")","v":""}]
[null,null,null,"音声内容"]
[null,472,null,"フリガナ",null,null,null,null,null,null,null,null,null,null,null,null,null,null,null,null,null,null,null,null,null,null,{"$f":"IF(AND(C952=\"\",LEN(E952)>0),LEN(E952),\"\")","v":""}]
[null,null,null,"音声内容"]
[null,473,null,"フリガナ",null,null,null,null,null,null,null,null,null,null,null,null,null,null,null,null,null,null,null,null,null,null,{"$f":"IF(AND(C954=\"\",LEN(E954)>0),LEN(E954),\"\")","v":""}]
[null,null,null,"音声内容"]
[null,474,null,"フリガナ",null,null,null,null,null,null,null,null,null,null,null,null,null,null,null,null,null,null,null,null,null,null,{"$f":"IF(AND(C956=\"\",LEN(E956)>0),LEN(E956),\"\")","v":""}]
[null,null,null,"音声内容"]
[null,475,null,"フリガナ",null,null,null,null,null,null,null,null,null,null,null,null,null,null,null,null,null,null,null,null,null,null,{"$f":"IF(AND(C958=\"\",LEN(E958)>0),LEN(E958),\"\")","v":""}]
[null,null,null,"音声内容"]
[null,476,null,"フリガナ",null,null,null,null,null,null,null,null,null,null,null,null,null,null,null,null,null,null,null,null,null,null,{"$f":"IF(AND(C960=\"\",LEN(E960)>0),LEN(E960),\"\")","v":""}]
[null,null,null,"音声内容"]
[null,477,null,"フリガナ",null,null,null,null,null,null,null,null,null,null,null,null,null,null,null,null,null,null,null,null,null,null,{"$f":"IF(AND(C962=\"\",LEN(E962)>0),LEN(E962),\"\")","v":""}]
[null,null,null,"音声内容"]
[null,478,null,"フリガナ",null,null,null,null,null,null,null,null,null,null,null,null,null,null,null,null,null,null,null,null,null,null,{"$f":"IF(AND(C964=\"\",LEN(E964)>0),LEN(E964),\"\")","v":""}]
[null,null,null,"音声内容"]
[null,479,null,"フリガナ",null,null,null,null,null,null,null,null,null,null,null,null,null,null,null,null,null,null,null,null,null,null,{"$f":"IF(AND(C966=\"\",LEN(E966)>0),LEN(E966),\"\")","v":""}]
[null,null,null,"音声内容"]
[null,480,null,"フリガナ",null,null,null,null,null,null,null,null,null,null,null,null,null,null,null,null,null,null,null,null,null,null,{"$f":"IF(AND(C968=\"\",LEN(E968)>0),LEN(E968),\"\")","v":""}]
[null,null,null,"音声内容"]
[null,481,null,"フリガナ",null,null,null,null,null,null,null,null,null,null,null,null,null,null,null,null,null,null,null,null,null,null,{"$f":"IF(AND(C970=\"\",LEN(E970)>0),LEN(E970),\"\")","v":""}]
[null,null,null,"音声内容"]
[null,482,null,"フリガナ",null,null,null,null,null,null,null,null,null,null,null,null,null,null,null,null,null,null,null,null,null,null,{"$f":"IF(AND(C972=\"\",LEN(E972)>0),LEN(E972),\"\")","v":""}]
[null,null,null,"音声内容"]
[null,483,null,"フリガナ",null,null,null,null,null,null,null,null,null,null,null,null,null,null,null,null,null,null,null,null,null,null,{"$f":"IF(AND(C974=\"\",LEN(E974)>0),LEN(E974),\"\")","v":""}]
[null,null,null,"音声内容"]
[null,484,null,"フリガナ",null,null,null,null,null,null,null,null,null,null,null,null,null,null,null,null,null,null,null,null,null,null,{"$f":"IF(AND(C976=\"\",LEN(E976)>0),LEN(E976),\"\")","v":""}]
[null,null,null,"音声内容"]
[null,485,null,"フリガナ",null,null,null,null,null,null,null,null,null,null,null,null,null,null,null,null,null,null,null,null,null,null,{"$f":"IF(AND(C978=\"\",LEN(E978)>0),LEN(E978),\"\")","v":""}]
[null,null,null,"音声内容"]
[null,486,null,"フリガナ",null,null,null,null,null,null,null,null,null,null,null,null,null,null,null,null,null,null,null,null,null,null,{"$f":"IF(AND(C980=\"\",LEN(E980)>0),LEN(E980),\"\")","v":""}]
[null,null,null,"音声内容"]
[null,487,null,"フリガナ",null,null,null,null,null,null,null,null,null,null,null,null,null,null,null,null,null,null,null,null,null,null,{"$f":"IF(AND(C982=\"\",LEN(E982)>0),LEN(E982),\"\")","v":""}]
[null,null,null,"音声内容"]
[null,488,null,"フリガナ",null,null,null,null,null,null,null,null,null,null,null,null,null,null,null,null,null,null,null,null,null,null,{"$f":"IF(AND(C984=\"\",LEN(E984)>0),LEN(E984),\"\")","v":""}]
[null,null,null,"音声内容"]
[null,489,null,"フリガナ",null,null,null,null,null,null,null,null,null,null,null,null,null,null,null,null,null,null,null,null,null,null,{"$f":"IF(AND(C986=\"\",LEN(E986)>0),LEN(E986),\"\")","v":""}]
[null,null,null,"音声内容"]
[null,490,null,"フリガナ",null,null,null,null,null,null,null,null,null,null,null,null,null,null,null,null,null,null,null,null,null,null,{"$f":"IF(AND(C988=\"\",LEN(E988)>0),LEN(E988),\"\")","v":""}]
[null,null,null,"音声内容"]
[null,491,null,"フリガナ",null,null,null,null,null,null,null,null,null,null,null,null,null,null,null,null,null,null,null,null,null,null,{"$f":"IF(AND(C990=\"\",LEN(E990)>0),LEN(E990),\"\")","v":""}]
[null,null,null,"音声内容"]
[null,492,null,"フリガナ",null,null,null,null,null,null,null,null,null,null,null,null,null,null,null,null,null,null,null,null,null,null,{"$f":"IF(AND(C992=\"\",LEN(E992)>0),LEN(E992),\"\")","v":""}]
[null,null,null,"音声内容"]
[null,493,null,"フリガナ",null,null,null,null,null,null,null,null,null,null,null,null,null,null,null,null,null,null,null,null,null,null,{"$f":"IF(AND(C994=\"\",LEN(E994)>0),LEN(E994),\"\")","v":""}]
[null,null,null,"音声内容"]
[null,494,null,"フリガナ",null,null,null,null,null,null,null,null,null,null,null,null,null,null,null,null,null,null,null,null,null,null,{"$f":"IF(AND(C996=\"\",LEN(E996)>0),LEN(E996),\"\")","v":""}]
[null,null,null,"音声内容"]
[null,495,null,"フリガナ",null,null,null,null,null,null,null,null,null,null,null,null,null,null,null,null,null,null,null,null,null,null,{"$f":"IF(AND(C998=\"\",LEN(E998)>0),LEN(E998),\"\")","v":""}]
[null,null,null,"音声内容"]
[null,496,null,"フリガナ",null,null,null,null,null,null,null,null,null,null,null,null,null,null,null,null,null,null,null,null,null,null,{"$f":"IF(AND(C1000=\"\",LEN(E1000)>0),LEN(E1000),\"\")","v":""}]
[null,null,null,"音声内容"]
[null,497,null,"フリガナ",null,null,null,null,null,null,null,null,null,null,null,null,null,null,null,null,null,null,null,null,null,null,{"$f":"IF(AND(C1002=\"\",LEN(E1002)>0),LEN(E1002),\"\")","v":""}]
[null,null,null,"音声内容"]
[null,498,null,"フリガナ",null,null,null,null,null,null,null,null,null,null,null,null,null,null,null,null,null,null,null,null,null,null,{"$f":"IF(AND(C1004=\"\",LEN(E1004)>0),LEN(E1004),\"\")","v":""}]
[null,null,null,"音声内容"]
[null,499,null,"フリガナ",null,null,null,null,null,null,null,null,null,null,null,null,null,null,null,null,null,null,null,null,null,null,{"$f":"IF(AND(C1006=\"\",LEN(E1006)>0),LEN(E1006),\"\")","v":""}]
[null,null,null,"音声内容"]
[null,500,null,"フリガナ",null,null,null,null,null,null,null,null,null,null,null,null,null,null,null,null,null,null,null,null,null,null,{"$f":"IF(AND(C1008=\"\",LEN(E1008)>0),LEN(E1008),\"\")","v":""}]
[null,null,null,"音声内容"]
[null,501,null,"フリガナ",null,null,null,null,null,null,null,null,null,null,null,null,null,null,null,null,null,null,null,null,null,null,{"$f":"IF(AND(C1010=\"\",LEN(E1010)>0),LEN(E1010),\"\")","v":""}]
[null,null,null,"音声内容"]
[null,502,null,"フリガナ",null,null,null,null,null,null,null,null,null,null,null,null,null,null,null,null,null,null,null,null,null,null,{"$f":"IF(AND(C1012=\"\",LEN(E1012)>0),LEN(E1012),\"\")","v":""}]
[null,null,null,"音声内容"]
[null,503,null,"フリガナ",null,null,null,null,null,null,null,null,null,null,null,null,null,null,null,null,null,null,null,null,null,null,{"$f":"IF(AND(C1014=\"\",LEN(E1014)>0),LEN(E1014),\"\")","v":""}]
[null,null,null,"音声内容"]
[null,504,null,"フリガナ",null,null,null,null,null,null,null,null,null,null,null,null,null,null,null,null,null,null,null,null,null,null,{"$f":"IF(AND(C1016=\"\",LEN(E1016)>0),LEN(E1016),\"\")","v":""}]
[null,null,null,"音声内容"]
[null,505,null,"フリガナ",null,null,null,null,null,null,null,null,null,null,null,null,null,null,null,null,null,null,null,null,null,null,{"$f":"IF(AND(C1018=\"\",LEN(E1018)>0),LEN(E1018),\"\")","v":""}]
[null,null,null,"音声内容"]
[null,506,null,"フリガナ",null,null,null,null,null,null,null,null,null,null,null,null,null,null,null,null,null,null,null,null,null,null,{"$f":"IF(AND(C1020=\"\",LEN(E1020)>0),LEN(E1020),\"\")","v":""}]
[null,null,null,"音声内容"]
[null,507,null,"フリガナ",null,null,null,null,null,null,null,null,null,null,null,null,null,null,null,null,null,null,null,null,null,null,{"$f":"IF(AND(C1022=\"\",LEN(E1022)>0),LEN(E1022),\"\")","v":""}]
[null,null,null,"音声内容"]
[null,508,null,"フリガナ",null,null,null,null,null,null,null,null,null,null,null,null,null,null,null,null,null,null,null,null,null,null,{"$f":"IF(AND(C1024=\"\",LEN(E1024)>0),LEN(E1024),\"\")","v":""}]
[null,null,null,"音声内容"]
[null,509,null,"フリガナ",null,null,null,null,null,null,null,null,null,null,null,null,null,null,null,null,null,null,null,null,null,null,{"$f":"IF(AND(C1026=\"\",LEN(E1026)>0),LEN(E1026),\"\")","v":""}]
[null,null,null,"音声内容"]
[null,510,null,"フリガナ",null,null,null,null,null,null,null,null,null,null,null,null,null,null,null,null,null,null,null,null,null,null,{"$f":"IF(AND(C1028=\"\",LEN(E1028)>0),LEN(E1028),\"\")","v":""}]
[null,null,null,"音声内容"]
[null,511,null,"フリガナ",null,null,null,null,null,null,null,null,null,null,null,null,null,null,null,null,null,null,null,null,null,null,{"$f":"IF(AND(C1030=\"\",LEN(E1030)>0),LEN(E1030),\"\")","v":""}]
[null,null,null,"音声内容"]
[null,512,null,"フリガナ",null,null,null,null,null,null,null,null,null,null,null,null,null,null,null,null,null,null,null,null,null,null,{"$f":"IF(AND(C1032=\"\",LEN(E1032)>0),LEN(E1032),\"\")","v":""}]
[null,null,null,"音声内容"]

{"sheet":"見本・説明","index":4,"n_rows":28,"n_cols":28,"rows_kept":28,"cut":false,"hidden":false,"merged":[[9,3,9,25],[0,0,0,11],[0,23,0,25],[1,2,1,8],[1,11,1,25],[2,2,2,8],[2,11,6,25],[3,2,3,6],[4,2,4,3],[4,4,4,5],[4,7,4,8],[5,3,5,5],[5,7,5,8],[6,1,6,9],[7,23,7,24],[10,1,11,1],[10,2,11,2],[10,4,10,25],[11,4,11,25],[12,1,13,1],[12,2,13,2],[12,4,12,25],[13,4,13,25],[14,1,14,25],[15,3,15,25],[15,26,16,26],[16,1,17,1],[16,2,17,2],[16,4,16,25],[16,28,17,28],[17,4,17,25],[17,26,18,26],[18,1,19,1],[18,2,19,2],[18,4,18,25],[19,4,19,25],[19,26,20,26],[20,1,21,1],[20,2,21,2],[20,4,20,25],[21,4,21,25],[26,1,27,1],[26,2,27,2],[26,4,26,25],[27,4,27,25],[22,1,23,1],[22,2,23,2],[22,4,22,25],[23,4,23,25],[24,1,25,1],[24,2,25,2],[24,4,24,25],[25,4,25,25]]}
["音声合成報知器　メッセージ表",null,null,null,null,null,null,null,null,null,null,null,null,null,null,null,null,null,null,null,null,null,"記入日：","年　　月　　日"]
[null,"会社名","株式会社パトライト",null,null,null,null,null,null,null,null,"【特記事項】登録内容について何かございましたらこちらでご記入ください。　"]
[null,"ご担当者","羽戸　雷人",null,null,null,null,null,null,null,null,null,null,null,null,null,null,null,null,null,null,null,null,null,null,null,null,"日本語"]
[null,"製品型式　","EHV-M2HFM",null,null,null,null,"数量",1,null,null,null,null,null,null,null,null,null,null,null,null,null,null,null,null,null,null,"英語（アメリカ）"]
[null,"言語","日本語",null,null,null,"アナウンサ","女性",null,null,null,null,null,null,null,null,null,null,null,null,null,null,null,null,null,null,null,"英語（イギリス）"]
[null,"受注情報\n(弊社記入欄)","受注№",null,null,null,"手配№",null,null,null,null,null,null,null,null,null,null,null,null,null,null,null,null,null,null,null,null,"中国語（北京）"]
[null,"　",null,null,null,null,null,null,null,null,null,null,null,null,null,null,null,null,null,null,null,null,null,null,null,null,null,"中国語（台湾）"]
[null,null,null,null,null,null,null,null,null,null,null,null,null,null,null,null,null,null,null,null,null,"合計CH",null,"新規録音合計秒数\n※参考値となります",null,null,null,"その他言語はこちら　➡"]
[null,"【見本】「指定音声番号」、「メッセージ詳細」をクッリクしていただくと、個別の説明が表示されます。"]
[null,"CH","指定音声番号","メッセージ詳細"]
[null,1,"EK+00557","フリガナ","クルマガデマス。ゴチュウイクダサイ。"]
[null,null,null,"音声内容","＃車が出ます。ご注意ください。"]
[null,2,null,"フリガナ","エーラインデ、イジョウハッセイシマシタ、ナイヨウカクニンシテクダサイ。イジョウハッセイシマシタ、ナイヨウカクニンシテクダサイ。"]
[null,null,null,"音声内容","ブー（２回）Ａラインで、異常発生しました、内容確認してください。（空白１秒）異常発生しました、内容確認してください。　ＯＹＨ００００１"]
[null,"【説明】「指定音声番号」、「メッセージ詳細」、「CH欄の番号」をクッリクしていただくと、個別の説明が表示されます。"]
[null,"CH","指定音声番号","メッセージ詳細",null,null,null,null,null,null,null,null,null,null,null,null,null,null,null,null,null,null,null,null,null,null,{"$f":"IF(AND(#REF!=\"\",LEN(#REF!)>0),LEN(#REF!),\"\")","v":{"$error":"#REF!"}}]
[null,1,"EK+00557","フリガナ","クルマガデマス。ゴチュウイクダサイ。"]
[null,null,null,"音声内容","＃車が出ます。ご注意ください。",null,null,null,null,null,null,null,null,null,null,null,null,null,null,null,null,null,null,null,null,null,{"$f":"IF(AND(#REF!=\"\",LEN(#REF!)>0),LEN(#REF!),\"\")","v":{"$error":"#REF!"}}]
[null,2,"ＯＹＨ００００４","フリガナ"]
[null,null,null,"音声内容","パララ×３（１．１秒＋空白０．４秒）２回",null,null,null,null,null,null,null,null,null,null,null,null,null,null,null,null,null,null,null,null,null,{"$f":"IF(AND(#REF!=\"\",LEN(#REF!)>0),LEN(#REF!),\"\")","v":{"$error":"#REF!"}}]
[null,3,"EK+00193\nEK+02797","フリガナ"]
[null,null,null,"音声内容","エラーが発生しました。一時停止中です"]
[null,4,null,"フリガナ"]
[null,null,null,"音声内容","無音"]
[null,5,null,"フリガナ","クルマガデマス。ゴチュウイクダサイ。"]
[null,null,null,"音声内容","ピーポ×２（２回）車が出ます。ご注意下さい。ＯＹＨ００００５"]
[null,6,null,"フリガナ","クルマガデマス　ゴチュウイクダサイ"]
[null,null,null,"音声内容","車が出ます（空白１秒）ご注意下さい（空白１秒）"]

{"sheet":"標準電子音検索","index":5,"n_rows":320,"n_cols":2,"rows_kept":320,"cut":false,"hidden":false,"merged":[[9,0,10,0],[9,1,9,22],[7,0,8,0],[7,1,7,22],[6,1,6,22],[15,0,16,0],[15,1,15,22],[13,0,14,0],[13,1,13,22],[11,0,12,0],[11,1,11,22],[21,0,22,0],[21,1,21,22],[19,0,20,0],[19,1,19,22],[17,0,18,0],[17,1,17,22],[27,0,28,0],[27,1,27,22],[25,0,26,0],[25,1,25,22],[23,0,24,0],[23,1,23,22],[33,0,34,0],[33,1,33,22],[31,0,32,0],[31,1,31,22],[29,0,30,0],[29,1,29,22],[39,0,40,0],[39,1,39,22],[37,0,38,0],[37,1,37,22],[35,0,36,0],[35,1,35,22],[45,0,46,0],[45,1,45,22],[43,0,44,0],[43,1,43,22],[41,0,42,0],[41,1,41,22],[51,0,52,0],[51,1,51,22],[49,0,50,0],[49,1,49,22],[47,0,48,0],[47,1,47,22],[57,0,58,0],[57,1,57,22],[55,0,56,0],[55,1,55,22],[53,0,54,0],[53,1,53,22],[63,0,64,0],[63,1,63,22],[61,0,62,0],[61,1,61,22],[59,0,60,0],[59,1,59,22],[69,0,70,0],[69,1,69,22],[67,0,68,0],[67,1,67,22],[65,0,66,0],[65,1,65,22],[75,0,76,0],[75,1,75,22],[73,0,74,0],[73,1,73,22],[71,0,72,0],[71,1,71,22],[81,0,82,0],[81,1,81,22],[79,0,80,0],[79,1,79,22],[77,0,78,0],[77,1,77,22],[87,0,88,0],[87,1,87,22],[85,0,86,0],[85,1,85,22],[83,0,84,0],[83,1,83,22],[93,0,94,0],[93,1,93,22],[91,0,92,0],[91,1,91,22],[89,0,90,0],[89,1,89,22],[99,0,100,0],[99,1,99,22],[97,0,98,0],[97,1,97,22],[95,0,96,0],[95,1,95,22],[105,0,106,0],[105,1,105,22],[103,0,104,0],[103,1,103,22],[101,0,102,0],[101,1,101,22],[111,0,112,0],[111,1,111,22],[109,0,110,0],[109,1,109,22],[107,0,108,0],[107,1,107,22],[117,0,118,0],[117,1,117,22],[115,0,116,0],[115,1,115,22],[113,0,114,0],[113,1,113,22],[123,0,124,0],[123,1,123,22],[121,0,122,0],[121,1,121,22],[119,0,120,0],[119,1,119,22],[129,0,130,0],[129,1,129,22],[127,0,128,0],[127,1,127,22],[125,0,126,0],[125,1,125,22],[135,0,136,0],[135,1,135,22],[133,0,134,0],[133,1,133,22],[131,0,132,0],[131,1,131,22],[141,0,142,0],[141,1,141,22],[139,0,140,0],[139,1,139,22],[137,0,138,0],[137,1,137,22],[147,0,148,0],[147,1,147,22],[145,0,146,0],[145,1,145,22],[143,0,144,0],[143,1,143,22],[153,0,154,0],[153,1,153,22],[151,0,152,0],[151,1,151,22],[149,0,150,0],[149,1,149,22],[159,0,160,0],[159,1,159,22],[157,0,158,0],[157,1,157,22],[155,0,156,0],[155,1,155,22],[165,0,166,0],[165,1,165,22],[163,0,164,0],[163,1,163,22],[161,0,162,0],[161,1,161,22],[171,0,172,0],[171,1,171,22],[169,0,170,0],[169,1,169,22],[167,0,168,0],[167,1,167,22],[177,0,178,0],[177,1,177,22],[175,0,176,0],[175,1,175,22],[173,0,174,0],[173,1,173,22],[183,0,184,0],[183,1,183,22],[181,0,182,0],[181,1,181,22],[179,0,180,0],[179,1,179,22],[189,0,190,0],[189,1,189,22],[187,0,188,0],[187,1,187,22],[185,0,186,0],[185,1,185,22],[195,0,196,0],[195,1,195,22],[193,0,194,0],[193,1,193,22],[191,0,192,0],[191,1,191,22],[201,0,202,0],[201,1,201,22],[199,0,200,0],[199,1,199,22],[197,0,198,0],[197,1,197,22],[207,0,208,0],[207,1,207,22],[205,0,206,0],[205,1,205,22],[203,0,204,0],[203,1,203,22],[213,0,214,0],[213,1,213,22],[211,0,212,0],[211,1,211,22],[209,0,210,0],[209,1,209,22],[219,0,220,0],[219,1,219,22],[217,0,218,0],[217,1,217,22],[215,0,216,0],[215,1,215,22],[225,0,226,0],[225,1,225,22],[223,0,224,0],[223,1,223,22],[221,0,222,0],[221,1,221,22],[231,0,232,0],[231,1,231,22],[229,0,230,0],[229,1,229,22],[227,0,228,0],[227,1,227,22],[237,0,238,0],[237,1,237,22],[235,0,236,0],[235,1,235,22],[233,0,234,0],[233,1,233,22],[243,0,244,0],[243,1,243,22],[241,0,242,0],[241,1,241,22],[239,0,240,0],[239,1,239,22],[249,0,250,0],[249,1,249,22],[247,0,248,0],[247,1,247,22],[245,0,246,0],[245,1,245,22],[255,0,256,0],[255,1,255,22],[253,0,254,0],[253,1,253,22],[251,0,252,0],[251,1,251,22],[261,0,262,0],[261,1,261,22],[259,0,260,0],[259,1,259,22],[257,0,258,0],[257,1,257,22],[267,0,268,0],[267,1,267,22],[265,0,266,0],[265,1,265,22],[263,0,264,0],[263,1,263,22],[271,0,272,0],[271,1,271,22],[269,0,270,0],[269,1,269,22],[279,0,280,0],[279,1,279,22],[277,0,278,0],[277,1,277,22],[275,0,276,0],[275,1,275,22],[281,0,282,0],[281,1,281,22],[291,0,292,0],[291,1,291,22],[289,0,290,0],[289,1,289,22],[287,0,288,0],[287,1,287,22],[273,0,274,0],[273,1,273,22],[303,1,303,22],[301,0,302,0],[301,1,301,22],[299,0,300,0],[299,1,299,22],[285,0,286,0],[285,1,285,22],[283,0,284,0],[283,1,283,22],[311,1,311,22],[309,0,310,0],[309,1,309,22],[307,0,308,0],[307,1,307,22],[305,0,306,0],[305,1,305,22],[5,0,5,1],[319,0,320,0],[319,1,319,22],[317,0,318,0],[317,1,317,22],[315,0,316,0],[315,1,315,22],[313,0,314,0],[313,1,313,22],[311,0,312,0],[297,0,298,0],[297,1,297,22],[295,0,296,0],[295,1,295,22],[293,0,294,0],[293,1,293,22],[303,0,304,0]]}
["メッセージ表へ戻る"]
["音声合成製品へ登録可能な、アラーム・チャイム・メロディー音です。　"]
["※登録回数を必ずご指定ください。(1回のみの場合は回数指定は不要です。）　"]
["　例：OYH00001を2回希望の場合　⇒　ブー（1.5秒＋空白1.5秒）２回　"]
["※弊社HP「音声メッセージサービス」にてご視聴いただけます。"]
["https://www.patlite.co.jp/support/mp3_list/"]
["指定音声番号","メッセージ詳細（電子音内容）"]
["ＯＹＨ００００１","ブー（１．５秒＋空白１．５秒）"]
[]
["ＯＹＨ００００２","プルル（１．２秒）"]
[]
["ＯＹＨ００００３","カン（０．４秒＋空白０．２秒）"]
[]
["ＯＹＨ００００４","パララ×３（１．１秒＋空白０．４秒）"]
[]
["ＯＹＨ００００５","ピーポ×２（１．０秒）"]
[]
["ＯＹＨ００００６","ピポパポピポパン（１．５秒）"]
[]
["ＯＹＨ００００７","ピロロン（１．５秒）"]
[]
["ＯＹＨ００００８","ピピピン（１．１秒）"]
[]
["ＯＹＨ００００９","プルル＋カンカン（３秒）"]
[]
["ＯＹＨ０００１０","列車通過音（３秒）"]
[]
["ＯＹＨ０００１１","ピンポン（１．０秒）"]
[]
["ＯＹＨ０００１２","ピ×６（０．８秒＋空白０．６秒）"]
[]
["ＯＹＨ０００１３","予兆アラーム（９．７秒）"]
[]
["ＯＹＨ０００１４","緊急アラーム（２．９秒）"]
[]
["ＯＹＨ０００１５","ゆるやかな警報音（１．８秒）"]
[]
["ＯＹＨ０００１６","トンチン×３（２．２秒）"]
[]
["ＯＹＨ０００１７","ピポパポーン（１．５秒）"]
[]
["ＯＹＨ０００１８","ピロリロ×４（２．４秒）"]
[]
["ＯＹＨ０００１９","ボー（１．３秒＋空白０．５秒）"]
[]
["ＯＹＨ０００２０","ピ～ロ～ン（１．６秒）"]
[]
["ＯＹＨ０００２１","お知らせ開始チャイム１（１０秒）"]
[]
["ＯＹＨ０００２２","お知らせ開始チャイム２（８秒）"]
[]
["ＯＹＨ０００２３","お知らせ開始チャイム３（８．２秒）"]
[]
["ＯＹＨ０００２４","お知らせ終了チャイム１（１５秒）"]
[]
["ＯＹＨ０００２５","お知らせ終了チャイム２（１８．５秒）"]
[]
["ＯＹＨ０００２６","エリーゼのために（１８．７秒）"]
[]
["ＯＹＨ０００２７","乙女の祈り（１９秒）"]
[]
["ＯＹＨ０００２８","メヌエット（２０．７秒）"]
[]
["ＯＹＨ０００２９","アニーローリー（１８．２秒）"]
[]
["ＯＹＨ０００３０","ロンドン橋（１９秒）"]
[]
["ＯＹＨ０００３１","ホルディリディア（８秒）"]
[]
["ＯＹＨ０００３２","メリーさんの羊（９．５秒）"]
[]
["ＯＹＨ０００３３","草競馬（１６．３秒）"]
[]
["ＯＹＨ０００３４","かっこう（９．６秒）"]
[]
["ＯＹＨ０００３５","村のかじや（８．７秒）"]
[]
["ＯＹＨ０００３６","アビニヨンの橋の上で（２０．８秒）"]
[]
["ＯＹＨ０００３８","アマリリス（１３．６秒）"]
[]
["ＯＹＨ０００３９","モーツァルト４０番（９．９秒）"]
[]
["ＯＹＨ０００４０","静かな湖畔（１１．９秒）"]
[]
["ＯＹＨ０００４１","山の音楽家（１５．７秒）"]
[]
["ＯＹＨ０００４２","禁じられた遊び（２４．８秒）"]
[]
["ＯＹＨ０００４４","大きな古時計（２１．７秒）"]
[]
["ＯＹＨ０００４５","アヴェ・マリア（４１秒）"]
[]
["ＯＹＨ０００５７","おもちゃの兵隊の観兵式（２０．９秒）"]
[]
["ＯＹＨ０００５８","オクラホマミキサー（１４．４秒）"]
[]
["ＯＹＨ０００６０","フニクリ・フニクラ（１６．３秒）"]
[]
["ＯＹＨ０００６１","故郷（３２．６秒）"]
[]
["ＯＹＨ０００６２","ＢＥＡＵＴＩＦＵＬ　ＤＲＥＡＭＥＲ（２４．３秒）"]
[]
["ＯＹＨ０００６３","楽しい休日（１６．３秒）"]
[]
["ＯＹＨ０００６４","ピピポポ（０．６秒）"]
[]
["ＯＹＨ０００６５","ビーム音(１．７秒)"]
[]
["ＯＹＨ０００６６","ハープ音(１．９秒)"]
[]
["ＯＹＨ０００６７","ピポピ×３(１．９秒)"]
[]
["ＯＹＨ０００６８","警告音(０．９秒)"]
[]
["ＯＹＨ０００６９","トゥルルル(１．９秒)"]
[]
["ＯＹＨ０００７０","ピロロロ(０．５秒)"]
[]
["ＯＹＨ０００７１","ピリリ×８(１．０秒)"]
[]
["ＯＹＨ０００７２","ポポピピ(１秒)"]
[]
["ＯＹＨ０００７３","幸せなら手をたたこう(１６秒)"]
[]
["ＯＹＨ０００７４","猫ふんじゃった(２１．６秒)"]
[]
["ＯＹＨ０００７５","リパブリック賛歌(１４．７秒)"]
[]
["ＯＹＨ０００７６","クラリネットこわしちゃった(２２．５秒)"]
[]
["ＯＹＨ０００７７","天国と地獄(２４．３秒)"]
[]
["ＯＹＨ０００７８","ラデツキー行進曲(２４．１秒)"]
[]
["ＯＹＨ０００７９","クシコスポスト(２４．２秒)"]
[]
["ＯＹＨ０００８０","踊ろう楽しいポーレチケ(１５．８秒)"]
[]
["ＯＹＨ０００８１","おおブレネリ(２９．１秒)"]
[]
["ＯＹＨ０００８２","カエルの合唱(１５．５秒)"]
[]
["ＯＹＨ０００８３","コンドルは飛んでいく(１９．９秒)"]
[]
["ＯＹＨ０００８４","ハンガリー舞曲第５番(１２．４秒)"]
[]
["ＯＹＨ０００８５","ウィリアム・テル序曲(２３．４秒)"]
[]
["ＯＹＨ０００８６","威風堂々(２８．１秒)"]
[]
["ＯＹＨ０００８７","グリーンスリーヴス(４８．１秒)"]
[]
["ＯＹＨ０００８８","一週間(１４．７秒)"]
[]
["ＯＹＨ０００８９","ムーンライト・セレナーデ(３１．４秒)"]
[]
["ＯＹＨ０００９０","我は海の子(３２．２秒)"]
[]
["ＯＹＨ０００９１","ＥＮＴＥＲＴＡＩＮＥＲ(２１．７秒)"]
[]
["ＯＹＨ０００９２","ＡＭＡＺＩＮＧ　ＧＲＡＣＥ(３７．２秒)"]
[]
["ＯＹＨ０００９３","カノン(１０．１秒)"]
[]
["ＯＹＨ０００９４","ＨＡＰＰＹ　ＢＩＲＴＨＤＡＹ(１５．３秒)"]
[]
["ＯＹＨ０００９５","ＨＩＨＯ(１５．８秒)"]
[]
["ＯＹＨ０００９６","線路は続くよどこまでも(２５．３秒)"]
[]
["ＯＹＨ０００９７","森のくまさん(１６．６秒)"]
[]
["ＯＹＨ０００９８","シューベルトの子守唄(２１．０秒)"]
[]
["ＯＹＨ０００９９","黄色いリボン(２２．８秒)"]
[]
["ＯＹＨ００１００","テキサスの黄色いバラ(１５．２秒)"]
[]
["ＯＹＨ００１０１","アルプス一万尺(１５．９秒)"]
[]
["ＯＹＨ００１０２","聖者が街にやってくる(１５．９秒)"]
[]
["ＯＹＨ００１０３","ロンドンデリーの歌(１９．７秒)"]
[]
["Ａ－０１","ブー（１．４秒＋空白１．４秒）"]
[]
["Ａ－０２","プルル（１．９秒）"]
[]
["Ａ－０３","カン（０．６秒）"]
[]
["Ａ－０４","パララ×３（１．１秒＋空白０．２秒）"]
[]
["Ａ－０５","ピーポ（０．５秒）"]
[]
["Ａ－０６","ピポパポピポパン（１．４秒＋空白０．３秒）"]
[]
["Ａ－０７","ピロロン（１．７秒）"]
[]
["Ａ－０８","ピピピン（１．１秒）"]
[]
["Ａ－０９","プルル＋カンカン（２．８秒）"]
[]
["Ａ－１０","列車通過音（３．２秒）"]
[]
["Ａ－１１","ピンポン（１．５秒）"]
[]
["Ａ－１２","ピ×６（０．７秒＋空白０．７秒）"]
[]
["Ａ－１３","エリーゼのために（１７．０秒）"]
[]
["Ａ－１４","乙女の祈り（１９．０秒）"]
[]
["Ａ－１５","メヌエット（１０．５秒）"]
[]
["Ａ－１６","アニーローリー（９．０秒）"]
[]
["Ａ－１７","ロンドン橋（１９．５秒）"]
[]
["Ａ－１８","ホルディリディア（９．０秒）"]
[]
["Ａ－１９","メリーさんの羊（９．０秒）"]
[]
["Ａ－２０","草競馬（１８．５秒）"]
[]
["Ａ－２１","かっこう（９．０秒）"]
[]
["Ａ－２２","村のかじや（９．０秒）"]
[]
["Ａ－２３","アビニヨンの橋の上で（１６．０秒）"]
[]
["Ａ－２５","アマリリス（１３．５秒）"]
[]
["Ａ－２６","モーツァルト４０番（１１．０秒）"]
[]
["Ａ－２７","静かな湖畔（１１．５秒）"]
[]
["Ａ－２８","山の音楽家（１５．０秒）"]
[]
["Ａ－２９","禁じられた遊び（２６．０秒）"]
[]
["Ａ－３１","大きな古時計（２０．５秒）"]
[]
["Ａ－３２","アヴェ・マリア（３８．５秒）"]
[]
["Ｃ－１５","ＥＮＴＥＲＴＡＩＮＥＲ（１０．２秒）"]
[]
["Ｃ－１６","ＡＭＡＺＩＮＧ　ＧＲＡＣＥ（３８．２秒）"]
[]
["Ｃ－１９","カノン（１０．２秒）"]
[]
["Ｄ－１９","Ｈａｐｐｙ　Ｂｉｒｔｈｄａｙ（１３．４秒）"]
[]
["Ｄ－２０","ＨＩＨＯ（７．７秒）"]
[]
["Ｄ－２１","線路は続くよどこまでも（２５．５秒）"]
[]
["Ｄ－２２","森のくまさん（１５．３秒）"]
[]
["Ｄ－２５","シューベルトの子守唄（１７．９秒）"]
[]
["Ｄ－２７","黄色いリボン（７．６秒）"]
[]
["Ｄ－２９","テキサスの黄色いバラ（１５．３秒）"]
[]
["Ｄ－３０","アルプス一万尺（１５．３秒）"]
[]
["Ｄ－３１","聖者が街にやってくる（１５．３秒）"]
[]
["Ｄ－３２","ロンドンデリーの歌（２０．４秒）"]
[]
["Ｅ－１３","ピ～ロ～ン（１．５秒）"]
[]
["Ｅ－１４","ピピポポ（０．６秒）"]
[]
["Ｅ－１５","ビーム音（０．８秒）"]
[]
["Ｅ－１６","ハープ音（１．６秒）"]
[]
["Ｅ－１７","ピポピ×３（２．１秒）"]
[]
["Ｅ－１８","警告音（０．５秒）"]
[]
["Ｅ－１９","トウルル・・・（１．１秒）"]
[]
["Ｅ－２０","ピロロロロ（０．６秒）"]
[]
["Ｅ－２１","ピリリ×８（１．１秒）"]
[]
["Ｅ－２２","ポポピピ（０．７秒）"]
[]
["Ｅ－２３","ピンポン（１．８秒）"]
[]
["Ｅ－２４","ブー（１．６秒）"]
[]
["Ｅ－２５","プルル×８（１．２秒）"]
[]
["Ｅ－２６","カン×４（２．５秒）"]
[]
["Ｅ－２７","パララ×３（１．３秒）"]
[]
["Ｅ－２８","ピーポ×４（２．２秒）"]
[]
["Ｅ－２９","ピポパポピポパン（１．９秒）"]
[]
["Ｅ－３０","ピロロン（１．８秒）"]
[]
["Ｅ－３１","ピピピン（１．７秒）"]
[]
["Ｅ－３２","プルル＋カンカン（２．９秒）"]
[]
["Ｅ－３３","列車通過音（３．３秒）"]
[]
["Ｅ－３４","ピ×６（０．７３秒＋空白０．５秒）　"]
[]
["Ｅ－３５","ピポピ×３（２．２秒）"]
[]
["Ｅ－３６","警告音（０．５秒）"]
[]
["Ｅ－３７","ピロロロロ（０．６秒）"]